{"text_format":"1","workbook":"xlsx","n_sheets":5,"sheets":["dok.jawna","dok.niejawna","Ewid1","Ewid2","Jednostki"],"not_rendered":{"charts":0,"images":0,"macros":1,"external_links":0,"defined_names":13,"comments":5,"pivot_tables":0},"unopened":[],"bounds":{"document_bytes":16777216,"sheet_cells":100000,"rows_first":2000,"rows_last":500,"rows_between":2000,"halvings":0,"cell_chars":16384,"cell_head_chars":4096},"cells_cut":0,"cells_raw":0,"read":"whole","date_system":"1900"}

{"sheet":"dok.jawna","index":0,"n_rows":770,"n_cols":15,"rows_kept":770,"cut":false,"hidden":false,"merged":[[220,0,220,2],[221,0,221,2],[222,0,222,2],[204,0,204,2],[205,0,205,2],[206,0,206,2],[223,0,223,2],[224,0,224,2],[209,0,209,2],[210,0,210,2],[211,0,211,2],[212,0,212,2],[213,0,213,2],[214,0,214,2],[215,0,215,2],[216,0,216,2],[217,0,217,2],[218,0,218,2],[219,0,219,2],[188,0,188,2],[189,0,189,2],[190,0,190,2],[207,0,207,2],[208,0,208,2],[193,0,193,2],[194,0,194,2],[195,0,195,2],[196,0,196,2],[197,0,197,2],[198,0,198,2],[199,0,199,2],[200,0,200,2],[201,0,201,2],[202,0,202,2],[203,0,203,2],[171,0,171,2],[172,0,172,2],[173,0,173,2],[191,0,191,2],[192,0,192,2],[176,0,176,2],[177,0,177,2],[178,0,178,2],[179,0,179,2],[180,0,180,2],[181,0,181,2],[182,0,182,2],[183,0,183,2],[184,0,184,2],[186,0,186,2],[187,0,187,2],[136,5,136,9],[140,0,140,3],[143,0,143,3],[174,0,174,2],[175,0,175,2],[146,0,146,1],[146,2,146,3],[162,0,162,2],[163,0,163,2],[164,0,164,2],[165,0,165,2],[166,0,166,2],[167,0,167,2],[168,0,168,2],[169,0,169,2],[170,0,170,2],[130,5,130,9],[131,1,131,3],[131,5,131,9],[135,1,135,3],[135,5,135,9],[145,0,145,1],[145,2,145,3],[22,1,23,1],[22,2,24,2],[22,4,24,4],[130,1,130,3],[136,1,136,3],[14,0,14,9],[17,4,17,5],[21,0,24,0],[21,1,21,2],[21,3,24,3],[21,4,21,5],[21,6,24,6],[21,7,24,7],[21,8,24,8],[21,9,24,9],[22,5,24,5],[9,0,9,9],[11,3,11,5],[11,6,11,7],[0,0,0,3],[1,0,1,3],[1,4,1,9],[2,0,2,3],[4,0,4,1],[4,2,4,3]]}
["Komenda Wojewódzka Policji w Łodzi",null,null,null,null,null,null,{"$f":"IF(Ewid1!G5=\"KWP1241\",J164,IF(Ewid1!G5=\"KWP1212\",J164,J163))","v":"Łódź"},", dnia"]
["Wydział ds. Ochrony Informacji Niejawnych ",null,null,null," "]
["(Nazwa komórki organizacyjnej, która wytworzyła akta)"]
[null,null,null,null,null,null,null,null,"Egz. nr "]
["L. dz. \nwytwórcy akt"]
[]
[]
[]
[]
["S P I S"]
[]
[null,null,null,"                    akt przekazanych Nr"]
[null,null,null,null,null,null,"(nadaje archiwum)"]
[]
["do ARCHIWUM KWP  w Łodzi"]
[]
[null,null,null,null,null,null,null,null,null,null,null,2007]
[null,null,null,"dnia",null,null,null,null,null,null,null,2020]
[null,null,null,null,"    (wpisuje archiwum)"]
[]
[]
["L.p.","Symbol teczki wg",null,"Tytuł teczki","Daty skrajne",null,"Ilość teczek","Kate-goria","Nr i data protokołu brakowania lub przekazania","Uwagi"]
[null,"wykazu akt","opisu",null,"początkowa","końcowa"]
[]
[null,2020]
[1,null,null,null,null,null,null,null,null,null,null,null,{"$f":"IF(H26=$H$172,2,1)","v":1},{"$f":"RIGHT(E26,4)*1","v":{"$error":"#VALUE!"}},{"$f":"RIGHT(F26,4)*1","v":{"$error":"#VALUE!"}}]
[2,null,null,null,null,null,null,null,null,null,null,null,1,{"$error":"#VALUE!"},{"$error":"#VALUE!"}]
[3,null,null,null,null,null,null,null,null,null,null,null,1,{"$error":"#VALUE!"},{"$error":"#VALUE!"}]
[4,null,null,null,null,null,null,null,null,null,null,null,1,{"$error":"#VALUE!"},{"$error":"#VALUE!"}]
[5,null,null,null,null,null,null,null,null,null,null,null,1,{"$error":"#VALUE!"},{"$error":"#VALUE!"}]
[6,null,null,null,null,null,null,null,null,null,null,null,1,{"$error":"#VALUE!"},{"$error":"#VALUE!"}]
[7,null,null,null,null,null,null,null,null,null,null,null,1,{"$error":"#VALUE!"},{"$error":"#VALUE!"}]
[8,null,null,null,null,null,null,null,null,null,null,null,1,{"$error":"#VALUE!"},{"$error":"#VALUE!"}]
[9,null,null,null,null,null,null,null,null,null,null,null,1,{"$error":"#VALUE!"},{"$error":"#VALUE!"}]
[10,null,null,null,null,null,null,null,null,null,null,null,1,{"$error":"#VALUE!"},{"$error":"#VALUE!"}]
[11,null,null,null,null,null,null,null,null,null,null,null,1,{"$error":"#VALUE!"},{"$error":"#VALUE!"}]
[12,null,null,null,null,null,null,null,null,null,null,null,1,{"$error":"#VALUE!"},{"$error":"#VALUE!"}]
[13,null,null,null,null,null,null,null,null,null,null,null,1,{"$error":"#VALUE!"},{"$error":"#VALUE!"}]
[14,null,null,null,null,null,null,null,null,null,null,null,1,{"$error":"#VALUE!"},{"$error":"#VALUE!"}]
[15,null,null,null,null,null,null,null,null,null,null,null,1,{"$error":"#VALUE!"},{"$error":"#VALUE!"}]
[16,null,null,null,null,null,null,null,null,null,null,null,1,{"$error":"#VALUE!"},{"$error":"#VALUE!"}]
[17,null,null,null,null,null,null,null,null,null,null,null,1,{"$error":"#VALUE!"},{"$error":"#VALUE!"}]
[18,null,null,null,null,null,null,null,null,null,null,null,1,{"$error":"#VALUE!"},{"$error":"#VALUE!"}]
[19,null,null,null,null,null,null,null,null,null,null,null,1,{"$error":"#VALUE!"},{"$error":"#VALUE!"}]
[20,null,null,null,null,null,null,null,null,null,null,null,1,{"$error":"#VALUE!"},{"$error":"#VALUE!"}]
[21,null,null,null,null,null,null,null,null,null,null,null,1,{"$error":"#VALUE!"},{"$error":"#VALUE!"}]
[22,null,null,null,null,null,null,null,null,null,null,null,1,{"$error":"#VALUE!"},{"$error":"#VALUE!"}]
[23,null,null,null,null,null,null,null,null,null,null,null,1,{"$error":"#VALUE!"},{"$error":"#VALUE!"}]
[24,null,null,null,null,null,null,null,null,null,null,null,1,{"$error":"#VALUE!"},{"$error":"#VALUE!"}]
[25,null,null,null,null,null,null,null,null,null,null,null,1,{"$error":"#VALUE!"},{"$error":"#VALUE!"}]
[26,null,null,null,null,null,null,null,null,null,null,null,1,{"$error":"#VALUE!"},{"$error":"#VALUE!"}]
[27,null,null,null,null,null,null,null,null,null,null,null,1,{"$error":"#VALUE!"},{"$error":"#VALUE!"}]
[28,null,null,null,null,null,null,null,null,null,null,null,1,{"$error":"#VALUE!"},{"$error":"#VALUE!"}]
[29,null,null,null,null,null,null,null,null,null,null,null,1,{"$error":"#VALUE!"},{"$error":"#VALUE!"}]
[30,null,null,null,null,null,null,null,null,null,null,null,1,{"$error":"#VALUE!"},{"$error":"#VALUE!"}]
[31,null,null,null,null,null,null,null,null,null,null,null,1,{"$error":"#VALUE!"},{"$error":"#VALUE!"}]
[32,null,null,null,null,null,null,null,null,null,null,null,1,{"$error":"#VALUE!"},{"$error":"#VALUE!"}]
[33,null,null,null,null,null,null,null,null,null,null,null,{"$f":"IF(H58=$H$172,2,1)","v":1},{"$f":"RIGHT(E58,4)*1","v":{"$error":"#VALUE!"}},{"$f":"RIGHT(F58,4)*1","v":{"$error":"#VALUE!"}}]
[34,null,null,null,null,null,null,null,null,null,null,null,1,{"$error":"#VALUE!"},{"$error":"#VALUE!"}]
[35,null,null,null,null,null,null,null,null,null,null,null,1,{"$error":"#VALUE!"},{"$error":"#VALUE!"}]
[36,null,null,null,null,null,null,null,null,null,null,null,1,{"$error":"#VALUE!"},{"$error":"#VALUE!"}]
[37,null,null,null,null,null,null,null,null,null,null,null,1,{"$error":"#VALUE!"},{"$error":"#VALUE!"}]
[38,null,null,null,null,null,null,null,null,null,null,null,1,{"$error":"#VALUE!"},{"$error":"#VALUE!"}]
[39,null,null,null,null,null,null,null,null,null,null,null,1,{"$error":"#VALUE!"},{"$error":"#VALUE!"}]
[40,null,null,null,null,null,null,null,null,null,null,null,1,{"$error":"#VALUE!"},{"$error":"#VALUE!"}]
[41,null,null,null,null,null,null,null,null,null,null,null,{"$f":"IF(H66=$H$172,2,1)","v":1},{"$error":"#VALUE!"},{"$error":"#VALUE!"}]
[42,null,null,null,null,null,null,null,null,null,null,null,1,{"$error":"#VALUE!"},{"$error":"#VALUE!"}]
[43,null,null,null,null,null,null,null,null,null,null,null,1,{"$error":"#VALUE!"},{"$error":"#VALUE!"}]
[44,null,null,null,null,null,null,null,null,null,null,null,1,{"$error":"#VALUE!"},{"$error":"#VALUE!"}]
[45,null,null,null,null,null,null,null,null,null,null,null,1,{"$error":"#VALUE!"},{"$error":"#VALUE!"}]
[46,null,null,null,null,null,null,null,null,null,null,null,1,{"$error":"#VALUE!"},{"$error":"#VALUE!"}]
[47,null,null,null,null,null,null,null,null,null,null,null,1,{"$error":"#VALUE!"},{"$error":"#VALUE!"}]
[48,null,null,null,null,null,null,null,null,null,null,null,1,{"$error":"#VALUE!"},{"$error":"#VALUE!"}]
[49,null,null,null,null,null,null,null,null,null,null,null,1,{"$error":"#VALUE!"},{"$error":"#VALUE!"}]
[50,null,null,null,null,null,null,null,null,null,null,null,1,{"$error":"#VALUE!"},{"$error":"#VALUE!"}]
[51,null,null,null,null,null,null,null,null,null,null,null,1,{"$error":"#VALUE!"},{"$error":"#VALUE!"}]
[52,null,null,null,null,null,null,null,null,null,null,null,1,{"$error":"#VALUE!"},{"$error":"#VALUE!"}]
[53,null,null,null,null,null,null,null,null,null,null,null,1,{"$error":"#VALUE!"},{"$error":"#VALUE!"}]
[54,null,null,null,null,null,null,null,null,null,null,null,1,{"$error":"#VALUE!"},{"$error":"#VALUE!"}]
[55,null,null,null,null,null,null,null,null,null,null,null,1,{"$error":"#VALUE!"},{"$error":"#VALUE!"}]
[56,null,null,null,null,null,null,null,null,null,null,null,1,{"$error":"#VALUE!"},{"$error":"#VALUE!"}]
[57,null,null,null,null,null,null,null,null,null,null,null,1,{"$error":"#VALUE!"},{"$error":"#VALUE!"}]
[58,null,null,null,null,null,null,null,null,null,null,null,1,{"$error":"#VALUE!"},{"$error":"#VALUE!"}]
[59,null,null,null,null,null,null,null,null,null,null,null,1,{"$error":"#VALUE!"},{"$error":"#VALUE!"}]
[60,null,null,null,null,null,null,null,null,null,null,null,1,{"$error":"#VALUE!"},{"$error":"#VALUE!"}]
[61,null,null,null,null,null,null,null,null,null,null,null,1,{"$error":"#VALUE!"},{"$error":"#VALUE!"}]
[62,null,null,null,null,null,null,null,null,null,null,null,1,{"$error":"#VALUE!"},{"$error":"#VALUE!"}]
[63,null,null,null,null,null,null,null,null,null,null,null,1,{"$error":"#VALUE!"},{"$error":"#VALUE!"}]
[64,null,null,null,null,null,null,null,null,null,null,null,1,{"$error":"#VALUE!"},{"$error":"#VALUE!"}]
[65,null,null,null,null,null,null,null,null,null,null,null,1,{"$f":"RIGHT(E90,4)*1","v":{"$error":"#VALUE!"}},{"$f":"RIGHT(F90,4)*1","v":{"$error":"#VALUE!"}}]
[66,null,null,null,null,null,null,null,null,null,null,null,{"$f":"IF(H91=$H$172,2,1)","v":1},{"$error":"#VALUE!"},{"$error":"#VALUE!"}]
[67,null,null,null,null,null,null,null,null,null,null,null,1,{"$error":"#VALUE!"},{"$error":"#VALUE!"}]
[68,null,null,null,null,null,null,null,null,null,null,null,1,{"$error":"#VALUE!"},{"$error":"#VALUE!"}]
[69,null,null,null,null,null,null,null,null,null,null,null,1,{"$error":"#VALUE!"},{"$error":"#VALUE!"}]
[70,null,null,null,null,null,null,null,null,null,null,null,1,{"$error":"#VALUE!"},{"$error":"#VALUE!"}]
[71,null,null,null,null,null,null,null,null,null,null,null,1,{"$error":"#VALUE!"},{"$error":"#VALUE!"}]
[72,null,null,null,null,null,null,null,null,null,null,null,1,{"$error":"#VALUE!"},{"$error":"#VALUE!"}]
[73,null,null,null,null,null,null,null,null,null,null,null,1,{"$error":"#VALUE!"},{"$error":"#VALUE!"}]
[74,null,null,null,null,null,null,null,null,null,null,null,1,{"$error":"#VALUE!"},{"$error":"#VALUE!"}]
[75,null,null,null,null,null,null,null,null,null,null,null,1,{"$error":"#VALUE!"},{"$error":"#VALUE!"}]
[76,null,null,null,null,null,null,null,null,null,null,null,1,{"$error":"#VALUE!"},{"$error":"#VALUE!"}]
[77,null,null,null,null,null,null,null,null,null,null,null,1,{"$error":"#VALUE!"},{"$error":"#VALUE!"}]
[78,null,null,null,null,null,null,null,null,null,null,null,1,{"$error":"#VALUE!"},{"$error":"#VALUE!"}]
[79,null,null,null,null,null,null,null,null,null,null,null,1,{"$error":"#VALUE!"},{"$error":"#VALUE!"}]
[80,null,null,null,null,null,null,null,null,null,null,null,1,{"$error":"#VALUE!"},{"$error":"#VALUE!"}]
[81,null,null,null,null,null,null,null,null,null,null,null,1,{"$error":"#VALUE!"},{"$error":"#VALUE!"}]
[82,null,null,null,null,null,null,null,null,null,null,null,1,{"$error":"#VALUE!"},{"$error":"#VALUE!"}]
[83,null,null,null,null,null,null,null,null,null,null,null,1,{"$error":"#VALUE!"},{"$error":"#VALUE!"}]
[84,null,null,null,null,null,null,null,null,null,null,null,1,{"$error":"#VALUE!"},{"$error":"#VALUE!"}]
[85,null,null,null,null,null,null,null,null,null,null,null,1,{"$error":"#VALUE!"},{"$error":"#VALUE!"}]
[86,null,null,null,null,null,null,null,null,null,null,null,1,{"$error":"#VALUE!"},{"$error":"#VALUE!"}]
[87,null,null,null,null,null,null,null,null,null,null,null,1,{"$error":"#VALUE!"},{"$error":"#VALUE!"}]
[88,null,null,null,null,null,null,null,null,null,null,null,1,{"$error":"#VALUE!"},{"$error":"#VALUE!"}]
[89,null,null,null,null,null,null,null,null,null,null,null,1,{"$error":"#VALUE!"},{"$error":"#VALUE!"}]
[90,null,null,null,null,null,null,null,null,null,null,null,1,{"$error":"#VALUE!"},{"$error":"#VALUE!"}]
[91,null,null,null,null,null,null,null,null,null,null,null,1,{"$error":"#VALUE!"},{"$error":"#VALUE!"}]
[92,null,null,null,null,null,null,null,null,null,null,null,1,{"$error":"#VALUE!"},{"$error":"#VALUE!"}]
[93,null,null,null,null,null,null,null,null,null,null,null,1,{"$error":"#VALUE!"},{"$error":"#VALUE!"}]
[94,null,null,null,null,null,null,null,null,null,null,null,1,{"$error":"#VALUE!"},{"$error":"#VALUE!"}]
[95,null,null,null,null,null,null,null,null,null,null,null,1,{"$error":"#VALUE!"},{"$error":"#VALUE!"}]
[96,null,null,null,null,null,null,null,null,null,null,null,1,{"$error":"#VALUE!"},{"$error":"#VALUE!"}]
[97,null,null,null,null,null,null,null,null,null,null,null,1,{"$error":"#VALUE!"},{"$error":"#VALUE!"}]
[98,null,null,null,null,null,null,null,null,null,null,null,1,{"$error":"#VALUE!"},{"$error":"#VALUE!"}]
[99,null,null,null,null,null,null,null,null,null,null,null,1,{"$error":"#VALUE!"},{"$error":"#VALUE!"}]
[100,null,null,null,null,null,null,null,null,null,null,null,1,{"$error":"#VALUE!"},{"$error":"#VALUE!"}]
[]
[{"$f":"CONCATENATE(\"Spis zawiera \",DCOUNT(A22:D125,1,A22:A125),\" j.a., co stanowi \",SUM(G26:G125),\" teczek (teczki)\")","v":"Spis zawiera 100 j.a., co stanowi 0 teczek (teczki)"}]
[]
[]
[]
[null,"…..………………...……….....………….",null,null,null,"..............................................................."]
[null,"(podpis osoby sporządzającej spis akt przekazanych\nz komórki w której wytworzono akta)",null,null,null,"(pieczęć imienna i podpis kierownika\njednostki/komórki organizacyjnej przekazującej akta)"]
[]
[]
[]
[null,".........................................................",null,null,null," ................................................................."]
[null,"(podpis archiwisty)",null,null,null,"(pieczęć imienna i podpis osoby kierującej archiwum)"]
[]
[]
[]
[{"$f":"IF(I172=2,J167,J166)","v":"Wykonano w 3 egz.:"}]
["Egz. nr 1-2 - Archiwum KWP w Łodzi"]
[{"$f":"CONCATENATE(\"Egz. nr 3 - \",Ewid1!G7,IF(A1=\"Komenda Wojewódzka Policji w Łodzi\",\" KWP w Łodzi\",\" \"),IF(A1=\"Centralne Biuro Śledcze Policji\",\"Zarząd w Łodzi\",\" \"))","v":"Egz. nr 3 - Wydział ds. Ochrony Informacji Niejawnych KWP w Łodzi "}]
[{"$f":"IF(I172=2,J168,J169)","v":" "}]
[]
["opracował: "]
["nr tel. sł.:"]
[]
["Przyjęto ____ pozycji"]
["co stanowi _____ teczek, ____ j.a."]
[]
[]
[]
[]
[]
[]
[]
[]
[]
[null,null,null,"Aktualne jednostki i komórki organizacyjne",null,null,"KLAUZULE I KATEGORIE",null,null,null,null,"000"]
[null,null,null,null,null,null,"(po odłączeniu załączników - jawne)",null,null,null,null,"001"]
[null,null,null,"NazwaJedn",null,"IDJedn",null,"Tajne",null,null,null,"002"]
[null,null,null,{"$f":"Jednostki!B4","v":"Centralne Biuro Śledcze Policji"},{"$f":"Jednostki!A4","v":"CBŚ1161"},{"$f":"Jednostki!C4","v":"Łódź"},null,"Ściśle tajne",null,{"$f":"VLOOKUP(A1,Siedziba,2)","v":"Łódź"},null,"003"]
[null,null,null,{"$f":"Jednostki!B5","v":"Komenda Miejska Policji w Łodzi"},{"$f":"Jednostki!A5","v":"KMP1241"},{"$f":"Jednostki!C5","v":"Łódź"},null,"Poufne",null,{"$f":"VLOOKUP(A2,Siedziba,2)","v":"Łódź"},null,"004"]
[null,null,null,{"$f":"Jednostki!B6","v":"Komenda Miejska Policji w Piotrkowie Trybunalskim"},{"$f":"Jednostki!A6","v":"KMP1255"},{"$f":"Jednostki!C6","v":"Piotrków Trybunalski"},null,"Zastrzeżone",null,null,null,"005"]
[null,null,null,{"$f":"Jednostki!B7","v":"Komenda Miejska Policji w Skierniewicach"},{"$f":"Jednostki!A7","v":"KMP1256"},{"$f":"Jednostki!C7","v":"Skierniewice"},null,"tajne",null,"Wykonano w 3 egz.:",null,"006"]
[null,null,null,{"$f":"Jednostki!B8","v":"I Komisariat Komendy Miejskiej Policji w Łodzi"},{"$f":"Jednostki!A8","v":"KOP1244"},{"$f":"Jednostki!C8","v":"Łódź"},null,"ściśle tajne",null,"Wykonano w 4 egz.:",null,"007"]
[null,null,null,{"$f":"Jednostki!B9","v":"II Komisariat Komendy Miejskiej Policji w Łodzi"},{"$f":"Jednostki!A9","v":"KOP1245"},{"$f":"Jednostki!C9","v":"Łódź"},null,"poufne",null,"Egz. nr 4 - Główne Archiwum Policji KGP",null,"008"]
[null,null,null,{"$f":"Jednostki!B10","v":"III Komisariat Komendy Miejskiej Policji w Łodzi"},{"$f":"Jednostki!A10","v":"KOP1246"},{"$f":"Jednostki!C10","v":"Łódź"},null,"zastrzeżone",null," ",null,"010"]
[null,null,null,{"$f":"Jednostki!B11","v":"IV Komisariat Komendy Miejskiej Policji w Łodzi"},{"$f":"Jednostki!A11","v":"KOP1247"},{"$f":"Jednostki!C11","v":"Łódź"},null,null,null,null,null,"011"]
[null,null,null,{"$f":"Jednostki!B12","v":"V Komisariat Komendy Miejskiej Policji w Łodzi"},{"$f":"Jednostki!A12","v":"KOP1248"},{"$f":"Jednostki!C12","v":"Łódź"},null,"Kat",null,null,null,"012"]
[null,null,null,{"$f":"Jednostki!B13","v":"VI Komisariat Komendy Miejskiej Policji w Łodzi"},{"$f":"Jednostki!A13","v":"KOP1249"},{"$f":"Jednostki!C13","v":"Łódź"},null,"A   -E",{"$f":"MAXA(M26:M125)","v":1},null,null,"0130"]
[null,null,null,{"$f":"Jednostki!B14","v":"VII Komisariat Komendy Miejskiej Policji w Łodzi"},{"$f":"Jednostki!A14","v":"KOP1250"},{"$f":"Jednostki!C14","v":"Łódź"},null,"A   -P",null,null,null,"0131"]
[null,null,null,{"$f":"Jednostki!B15","v":"VIII Komisariat Komendy Miejskiej Policji w Łodzi"},{"$f":"Jednostki!A15","v":"KOP1251"},{"$f":"Jednostki!C15","v":"Łódź"},null,"B 2 -E",null,null,null,"014"]
[null,null,null,{"$f":"Jednostki!B16","v":"Komenda Powiatowa Policji w Bełchatowie"},{"$f":"Jednostki!A16","v":"KPP1201"},{"$f":"Jednostki!C16","v":"Bełchatów"},null,"B 2 -Z",null,null,null,"0150"]
[null,null,null,{"$f":"Jednostki!B17","v":"Komenda Powiatowa Policji w Kutnie"},{"$f":"Jednostki!A17","v":"KPP1202"},{"$f":"Jednostki!C17","v":"Kutno"},null,"B 2 -P",null,null,null,"0151"]
[null,null,null,{"$f":"Jednostki!B18","v":"Komenda Powiatowa Policji w Łasku"},{"$f":"Jednostki!A18","v":"KPP1203"},{"$f":"Jednostki!C18","v":"Łask"},null,"B 3 -Z",null,null,null,"0160"]
[null,null,null,{"$f":"Jednostki!B19","v":"Komenda Powiatowa Policji w Łęczycy"},{"$f":"Jednostki!A19","v":"KPP1204"},{"$f":"Jednostki!C19","v":"Łęczyca"},null,"B 3 -P",null,null,null,"0161"]
[null,null,null,{"$f":"Jednostki!B20","v":"Komenda Powiatowa Policji w Łowiczu"},{"$f":"Jednostki!A20","v":"KPP1205"},{"$f":"Jednostki!C20","v":"Łowicz"},null,"B 5 -Z",null,null,null,"0162"]
[null,null,null,{"$f":"Jednostki!B21","v":"Komenda Powiatowa Policji w Opocznie"},{"$f":"Jednostki!A21","v":"KPP1206"},{"$f":"Jednostki!C21","v":"Opoczno"},null,"B 5 -E",null,null,null,"0163"]
[null,null,null,{"$f":"Jednostki!B22","v":"Komenda Powiatowa Policji w Pabianicach"},{"$f":"Jednostki!A22","v":"KPP1207"},{"$f":"Jednostki!C22","v":"Pabianice"},null,"B 5 -P",null,null,null,"0164"]
[null,null,null,{"$f":"Jednostki!B23","v":"Komenda Powiatowa Policji w Pajęcznie"},{"$f":"Jednostki!A23","v":"KPP1208"},{"$f":"Jednostki!C23","v":"Pajęczno"},null,"BE5 -E",null,null,null,"0165"]
[null,null,null,{"$f":"Jednostki!B24","v":"Komenda Powiatowa Policji w Poddębicach"},{"$f":"Jednostki!A24","v":"KPP1209"},{"$f":"Jednostki!C24","v":"Poddębice"},null,"BE5 -Z",null,null,null,"0166"]
[null,null,null,{"$f":"Jednostki!B25","v":"Komenda Powiatowa Policji w Radomsku"},{"$f":"Jednostki!A25","v":"KPP1210"},{"$f":"Jednostki!C25","v":"Radomsko"},null,"BE5 -P",null,null,null,"0167"]
[null,null,null,{"$f":"Jednostki!B26","v":"Komenda Powiatowa Policji w Rawie Mazowieckiej"},{"$f":"Jednostki!A26","v":"KPP1211"},{"$f":"Jednostki!C26","v":"Rawa Mazowiecka"},null,"BE6 -E",null,null,null,"0168"]
[null,null,null,{"$f":"Jednostki!B27","v":"Komenda Powiatowa Policji w Sieradzu"},{"$f":"Jednostki!A27","v":"KPP1212"},{"$f":"Jednostki!C27","v":"Sieradz"},null,"BE6 -Z",null,null,null,"0170"]
[null,null,null,{"$f":"Jednostki!B28","v":"Komenda Powiatowa Policji w Tomaszowie Mazowieckim"},{"$f":"Jednostki!A28","v":"KPP1213"},{"$f":"Jednostki!C28","v":"Tomaszów Mazowiecki"},null,"B 6 -E",null,null,null,"0171"]
[null,null,null,{"$f":"Jednostki!B29","v":"Komenda Powiatowa Policji w Wieluniu"},{"$f":"Jednostki!A29","v":"KPP1214"},{"$f":"Jednostki!C29","v":"Wieluń"},null,"B 10-Z",null,null,null,"0172"]
[null,null,null,{"$f":"Jednostki!B30","v":"Komenda Powiatowa Policji w Wieruszowie"},{"$f":"Jednostki!A30","v":"KPP1215"},{"$f":"Jednostki!C30","v":"Wieruszów"},null,"B 10-E",null,null,null,"0173"]
[null,null,null,{"$f":"Jednostki!B31","v":"Komenda Powiatowa Policji w Zduńskiej Woli"},{"$f":"Jednostki!A31","v":"KPP1216"},{"$f":"Jednostki!C31","v":"Zduńska Wola"},null,"B 10-P",null,null,null,"0174"]
[null,null,null,{"$f":"Jednostki!B32","v":"Komenda Powiatowa Policji w Zgierzu"},{"$f":"Jednostki!A32","v":"KPP1217"},{"$f":"Jednostki!C32","v":"Zgierz"},null,"BE10-Z",null,null,null,"0180"]
[null,null,null,{"$f":"Jednostki!B33","v":"Komenda Powiatowa Policji Łódź-Wschód"},{"$f":"Jednostki!A33","v":"KPP1218"},{"$f":"Jednostki!C33","v":"Koluszki"},null,"BE10-E",null,null,null,"0181"]
[null,null,null,{"$f":"Jednostki!B34","v":"Komenda Powiatowa Policji w Brzezinach"},{"$f":"Jednostki!A34","v":"KPP1219"},{"$f":"Jednostki!C34","v":"Brzeziny"},null,"BE10-P",null,null,null,"0182"]
[null,null,null,{"$f":"Jednostki!B35","v":"Komenda Wojewódzka Policji w Łodzi"},{"$f":"Jednostki!A35","v":"KWP1200"},{"$f":"Jednostki!C35","v":"Łódź"},null,"B 12-Z",null,null,null,"0183"]
[null,null,null,{"$f":"Jednostki!B36","v":"Komendant Wojewódzki Policji w Łodzi"},{"$f":"Jednostki!A36","v":"KWP1201"},{"$f":"Jednostki!C36","v":"Łódź"},null,"B 15-Z",null,null,null,"0184"]
[null,null,null,{"$f":"Jednostki!B37","v":"I Zastępca Komendanta Wojewódzkiego Policji w Łodzi "},{"$f":"Jednostki!A37","v":"KWP1202"},{"$f":"Jednostki!C37","v":"Łódź"},null,"B 15-E",null,null,null,"020"]
[null,null,null,{"$f":"Jednostki!B38","v":"Zastępca Komendanta Wojewódzkiego Policji w Łodzi"},{"$f":"Jednostki!A38","v":"KWP1203"},{"$f":"Jednostki!C38","v":"Łódź"},null,"B 15-P",null,null,null,"021"]
[null,null,null,{"$f":"Jednostki!B39","v":"Samodzielne Stanowisko do Spraw Audytu Wewnętrznego"},{"$f":"Jednostki!A39","v":"KWP1206"},{"$f":"Jednostki!C39","v":"Łódź"},null,"BE15-E",null,null,null,"0220"]
[null,null,null,{"$f":"Jednostki!B40","v":"Wydział ds. Ochrony Informacji Niejawnych "},{"$f":"Jednostki!A40","v":"KWP1208"},{"$f":"Jednostki!C40","v":"Łódź"},null,"BE15-Z",null,null,null,"0221"]
[null,null,null,{"$f":"Jednostki!B41","v":"Wydział Kadr i Szkolenia "},{"$f":"Jednostki!A41","v":"KWP1209"},{"$f":"Jednostki!C41","v":"Łódź"},null,"B 20-Z",null,null,null,"023"]
[null,null,null,{"$f":"Jednostki!B42","v":"Zespół Prawny "},{"$f":"Jednostki!A42","v":"KWP1210"},{"$f":"Jednostki!C42","v":"Łódź"},null,"B 20-E",null,null,null,"024"]
[null,null,null,{"$f":"Jednostki!B43","v":"Wydział Konwojowy"},{"$f":"Jednostki!A43","v":"KWP1211"},{"$f":"Jednostki!C43","v":"Łódź"},null,"B 20-P",null,null,null,"025"]
[null,null,null,{"$f":"Jednostki!B44","v":"Ośrodek Szkolenia Policji"},{"$f":"Jednostki!A44","v":"KWP1212"},{"$f":"Jednostki!C44","v":"Sieradz"},null,"BE20-Z",null,null,null,"026"]
[null,null,null,{"$f":"Jednostki!B45","v":"Oddział Prewencji Policji "},{"$f":"Jednostki!A45","v":"KWP1213"},{"$f":"Jednostki!C45","v":"Łódź"},null,"BE20-E",null,null,null,"027"]
[null,null,null,{"$f":"Jednostki!B46","v":"Samodzielny Pododdział Kontrterrorystyczny Policji w Łodzi"},{"$f":"Jednostki!A46","v":"KWP1214"},{"$f":"Jednostki!C46","v":"Łódź"},null,"BE20-P",null,null,null,"028"]
[null,null,null,{"$f":"Jednostki!B47","v":"Sekcja ds. Funduszy Pomocowych i Zamówień Publicznych "},{"$f":"Jednostki!A47","v":"KWP1215"},{"$f":"Jednostki!C47","v":"Łódź"},null,"B 25-Z",null,null,null,"030"]
[null,null,null,{"$f":"Jednostki!B48","v":"Wydział Kryminalny "},{"$f":"Jednostki!A48","v":"KWP1216"},{"$f":"Jednostki!C48","v":"Łódź"},null,"B 25-E",null,null,null,"031"]
[null,null,null,{"$f":"Jednostki!B49","v":"Wydział do walki z Przestępczością Gospodarczą "},{"$f":"Jednostki!A49","v":"KWP1217"},{"$f":"Jednostki!C49","v":"Łódź"},null,"B 25-P",null,null,null,"032"]
[null,null,null,{"$f":"Jednostki!B50","v":"Wydział Techniki Operacyjnej "},{"$f":"Jednostki!A50","v":"KWP1218"},{"$f":"Jednostki!C50","v":"Łódź"},null,"BE25-E",null,null,null,"033"]
[null,null,null,{"$f":"Jednostki!B51","v":"Laboratorium Kryminalistyczne "},{"$f":"Jednostki!A51","v":"KWP1219"},{"$f":"Jednostki!C51","v":"Łódź"},null,"B 30-E",null,null,null,"034"]
[null,null,null,{"$f":"Jednostki!B52","v":"Sztab Policji "},{"$f":"Jednostki!A52","v":"KWP1220"},{"$f":"Jednostki!C52","v":"Łódź"},null,"BE30-E",null,null,null,"035"]
[null,null,null,{"$f":"Jednostki!B53","v":"Wydział Postępowań Administracyjnych "},{"$f":"Jednostki!A53","v":"KWP1221"},{"$f":"Jednostki!C53","v":"Łódź"},null,"BE30-Z",null,null,null,"036"]
[null,null,null,{"$f":"Jednostki!B54","v":"Wydział Finansów "},{"$f":"Jednostki!A54","v":"KWP1223"},{"$f":"Jednostki!C54","v":"Łódź"},null,"B 35-E",null,null,null,"037"]
[null,null,null,{"$f":"Jednostki!B55","v":"Wydział Gospodarki Materiałowo - Technicznej "},{"$f":"Jednostki!A55","v":"KWP1225"},{"$f":"Jednostki!C55","v":"Łódź"},null,"BE35-E",null,null,null,"038"]
[null,null,null,{"$f":"Jednostki!B56","v":"Wydział Transportu "},{"$f":"Jednostki!A56","v":"KWP1226"},{"$f":"Jednostki!C56","v":"Łódź"},null,"BE40-E",null,null,null,"0400"]
[null,null,null,{"$f":"Jednostki!B57","v":"Wydział Inwestycji i Remontów "},{"$f":"Jednostki!A57","v":"KWP1227"},{"$f":"Jednostki!C57","v":"Łódź"},null,"B 50-Z",null,null,null,"0401"]
[null,null,null,{"$f":"Jednostki!B58","v":"Wydział Łączności i Informatyki "},{"$f":"Jednostki!A58","v":"KWP1228"},{"$f":"Jednostki!C58","v":"Łódź"},null,"B 50-E",null,null,null,"0402"]
[null,null,null,{"$f":"Jednostki!B59","v":"Wydział Dochodzeniowo-Śledczy "},{"$f":"Jednostki!A59","v":"KWP1236"},{"$f":"Jednostki!C59","v":"Łódź"},null,"BE50-E",null,null,null,"0410"]
[null,null,null,{"$f":"Jednostki!B60","v":"Wydział Prewencji "},{"$f":"Jednostki!A60","v":"KWP1240"},{"$f":"Jednostki!C60","v":"Łódź"},null,"B 60-E",null,null,null,"0411"]
[null,null,null,{"$f":"Jednostki!B61","v":"Wydział Ruchu Drogowego "},{"$f":"Jednostki!A61","v":"KWP1241"},{"$f":"Jednostki!C61","v":"Sosnowiec"},null,"BE60-E",null,null,null,"042"]
[null,null,null,{"$f":"Jednostki!B62","v":"Wydział Wywiadu Kryminalnego "},{"$f":"Jednostki!A62","v":"KWP1242"},{"$f":"Jednostki!C62","v":"Łódź"},null,null,null,null,null,"043"]
[null,null,null,{"$f":"Jednostki!B63","v":"Wydział Komunikacji Społecznej "},{"$f":"Jednostki!A63","v":"KWP1243"},{"$f":"Jednostki!C63","v":"Łódź"},null,null,null,null,null,"0440"]
[null,null,null,{"$f":"Jednostki!B64","v":"Zespół Prasowy "},{"$f":"Jednostki!A64","v":"KWP1244"},{"$f":"Jednostki!C64","v":"Łódź"},null,null,null,null,null,"0441"]
[null,null,null,{"$f":"Jednostki!B65","v":"Wydział Kontroli "},{"$f":"Jednostki!A65","v":"KWP1245"},{"$f":"Jednostki!C65","v":"Łódź"},null,null,null,null,null,"0442"]
[null,null,null,{"$f":"Jednostki!B66","v":"Wydział Psychologów "},{"$f":"Jednostki!A66","v":"KWP1247"},{"$f":"Jednostki!C66","v":"Łódź"},null,null,null,null,null,"0443"]
[null,null,null,{"$f":"Jednostki!B67","v":"Wydział do walki z Korupcją "},{"$f":"Jednostki!A67","v":"KWP1248"},{"$f":"Jednostki!C67","v":"Łódź"},null,null,null,null,null,"0444"]
[null,null,null,{"$f":"Jednostki!B68","v":"Wydział do walki z Cyberprzestępczością"},{"$f":"Jednostki!A68","v":"KWP1251"},{"$f":"Jednostki!C68","v":"Łódź"},null,null,null,null,null,"0445"]
[null,null,null,{"$f":"Jednostki!B69","v":"Wydział do walki z Przestępczością Narkotykową"},{"$f":"Jednostki!A69","v":"KWP1252"},{"$f":"Jednostki!C69","v":"Łódź"},null,null,null,null,null,"050"]
[null,null,null,{"$f":"Jednostki!B70","v":"Wydział ds. Zwalczania Przestępczości Pseudokibiców"},{"$f":"Jednostki!A70","v":"KWP1253"},{"$f":"Jednostki!C70","v":"Łódź"},null,null,null,null,null,"0510"]
[null,null,null,{"$f":"Jednostki!B71","v":"Zespół ds. Bezpieczeństwa i Higieny Pracy"},{"$f":"Jednostki!A71","v":"KWP1254"},{"$f":"Jednostki!C71","v":"Łódź"},null,null,null,null,null,"0511"]
[null,null,null,{"$f":"Jednostki!B72","v":"Wydział Doboru"},{"$f":"Jednostki!A72","v":"KWP1255"},{"$f":"Jednostki!C72","v":"Łódź"},null,null,null,null,null,"0512"]
[null,null,null,{"$f":"Jednostki!B73","v":"Zarząd w Łodzi "},{"$f":"Jednostki!A73","v":"CBŚ1162"},{"$f":"Jednostki!C73","v":"Łódź"},null,null,null,null,null,"052"]
[null,null,null,null,null,null,null,null,null,null,null,"053"]
[null,null,null,null,null,null,null,null,null,null,null,"054"]
[null,null,null,null,null,null,null,null,null,null,null,"055"]
[null,null,null,null,null,null,null,null,null,null,null,"0600"]
[null,null,null,null,null,null,null,null,null,null,null,"0601"]
[null,null,null,null,null,null,null,null,null,null,null,"0602"]
[null,null,null,null,null,null,null,null,null,null,null,"0603"]
[null,null,null,null,null,null,null,null,null,null,null,"0604"]
[null,null,null,null,null,null,null,null,null,null,null,"0605"]
[null,null,null,null,null,null,null,null,null,null,null,"0610"]
[null,null,null,null,null,null,null,null,null,null,null,"0611"]
[null,null,null,null,null,null,null,null,null,null,null,"0612"]
[null,null,null,null,null,null,null,null,null,null,null,"0613"]
[null,null,null,null,null,null,null,null,null,null,null,"0614"]
[null,null,null,null,null,null,null,null,null,null,null,"0615"]
[null,null,null,null,null,null,null,null,null,null,null,"062"]
[null,null,null,null,null,null,null,null,null,null,null,"070"]
[null,null,null,null,null,null,null,null,null,null,null,"071"]
[null,null,null,null,null,null,null,null,null,null,null,"072"]
[null,null,null,null,null,null,null,null,null,null,null,"073"]
[null,null,null,null,null,null,null,null,null,null,null,"0740"]
[null,null,null,null,null,null,null,null,null,null,null,"0741"]
[null,null,null,null,null,null,null,null,null,null,null,"0742"]
[null,null,null,null,null,null,null,null,null,null,null,"0743"]
[null,null,null,null,null,null,null,null,null,null,null,"0744"]
[null,null,null,null,null,null,null,null,null,null,null,"0745"]
[null,null,null,null,null,null,null,null,null,null,null,"0746"]
[null,null,null,null,null,null,null,null,null,null,null,"0747"]
[null,null,null,null,null,null,null,null,null,null,null,"0748"]
[null,null,null,null,null,null,null,null,null,null,null,"075"]
[null,null,null,null,null,null,null,null,null,null,null,"076"]
[null,null,null,null,null,null,null,null,null,null,null,"077"]
[null,null,null,null,null,null,null,null,null,null,null,"078"]
[null,null,null,null,null,null,null,null,null,null,null,"0800"]
[null,null,null,null,null,null,null,null,null,null,null,"0801"]
[null,null,null,null,null,null,null,null,null,null,null,"0802"]
[null,null,null,null,null,null,null,null,null,null,null,"0803"]
[null,null,null,null,null,null,null,null,null,null,null,"0810"]
[null,null,null,null,null,null,null,null,null,null,null,"0811"]
[null,null,null,null,null,null,null,null,null,null,null,"0812"]
[null,null,null,null,null,null,null,null,null,null,null,"0813"]
[null,null,null,null,null,null,null,null,null,null,null,"0814"]
[null,null,null,null,null,null,null,null,null,null,null,"0815"]
[null,null,null,null,null,null,null,null,null,null,null,"0820"]
[null,null,null,null,null,null,null,null,null,null,null,"0821"]
[null,null,null,null,null,null,null,null,null,null,null,"0822"]
[null,null,null,null,null,null,null,null,null,null,null,"0823"]
[null,null,null,null,null,null,null,null,null,null,null,"083"]
[null,null,null,null,null,null,null,null,null,null,null,"084"]
[null,null,null,null,null,null,null,null,null,null,null,"085"]
[null,null,null,null,null,null,null,null,null,null,null,"0860"]
[null,null,null,null,null,null,null,null,null,null,null,"0861"]
[null,null,null,null,null,null,null,null,null,null,null,"090"]
[null,null,null,null,null,null,null,null,null,null,null,"0910"]
[null,null,null,null,null,null,null,null,null,null,null,"0911"]
[null,null,null,null,null,null,null,null,null,null,null,"0912"]
[null,null,null,null,null,null,null,null,null,null,null,"0913"]
[null,null,null,null,null,null,null,null,null,null,null,"0914"]
[null,null,null,null,null,null,null,null,null,null,null,"0915"]
[null,null,null,null,null,null,null,null,null,null,null,"092"]
[null,null,null,null,null,null,null,null,null,null,null,"093"]
[null,null,null,null,null,null,null,null,null,null,null,"094"]
[null,null,null,null,null,null,null,null,null,null,null,"095"]
[null,null,null,null,null,null,null,null,null,null,null,"096"]
[null,null,null,null,null,null,null,null,null,null,null,"097"]
[null,null,null,null,null,null,null,null,null,null,null,"0970"]
[null,null,null,null,null,null,null,null,null,null,null,"0971"]
[null,null,null,null,null,null,null,null,null,null,null,"10"]
[null,null,null,null,null,null,null,null,null,null,null,"110"]
[null,null,null,null,null,null,null,null,null,null,null,"1110"]
[null,null,null,null,null,null,null,null,null,null,null,"1111"]
[null,null,null,null,null,null,null,null,null,null,null,"1112"]
[null,null,null,null,null,null,null,null,null,null,null,"1113"]
[null,null,null,null,null,null,null,null,null,null,null,"1114"]
[null,null,null,null,null,null,null,null,null,null,null,"112"]
[null,null,null,null,null,null,null,null,null,null,null,"1130"]
[null,null,null,null,null,null,null,null,null,null,null,"1131"]
[null,null,null,null,null,null,null,null,null,null,null,"1132"]
[null,null,null,null,null,null,null,null,null,null,null,"114"]
[null,null,null,null,null,null,null,null,null,null,null,"1150"]
[null,null,null,null,null,null,null,null,null,null,null,"1151"]
[null,null,null,null,null,null,null,null,null,null,null,"1152"]
[null,null,null,null,null,null,null,null,null,null,null,"1200"]
[null,null,null,null,null,null,null,null,null,null,null,"1201"]
[null,null,null,null,null,null,null,null,null,null,null,"1202"]
[null,null,null,null,null,null,null,null,null,null,null,"1203"]
[null,null,null,null,null,null,null,null,null,null,null,"1204"]
[null,null,null,null,null,null,null,null,null,null,null,"1205"]
[null,null,null,null,null,null,null,null,null,null,null,"1206"]
[null,null,null,null,null,null,null,null,null,null,null,"1207"]
[null,null,null,null,null,null,null,null,null,null,null,"1208"]
[null,null,null,null,null,null,null,null,null,null,null,"1210"]
[null,null,null,null,null,null,null,null,null,null,null,"1211"]
[null,null,null,null,null,null,null,null,null,null,null,"1212"]
[null,null,null,null,null,null,null,null,null,null,null,"1213"]
[null,null,null,null,null,null,null,null,null,null,null,"1214"]
[null,null,null,null,null,null,null,null,null,null,null,"1215"]
[null,null,null,null,null,null,null,null,null,null,null,"1220"]
[null,null,null,null,null,null,null,null,null,null,null,"1221"]
[null,null,null,null,null,null,null,null,null,null,null,"1222"]
[null,null,null,null,null,null,null,null,null,null,null,"1223"]
[null,null,null,null,null,null,null,null,null,null,null,"1224"]
[null,null,null,null,null,null,null,null,null,null,null,"1230"]
[null,null,null,null,null,null,null,null,null,null,null,"1231"]
[null,null,null,null,null,null,null,null,null,null,null,"1232"]
[null,null,null,null,null,null,null,null,null,null,null,"1233"]
[null,null,null,null,null,null,null,null,null,null,null,"1240"]
[null,null,null,null,null,null,null,null,null,null,null,"1241"]
[null,null,null,null,null,null,null,null,null,null,null,"1242"]
[null,null,null,null,null,null,null,null,null,null,null,"125"]
[null,null,null,null,null,null,null,null,null,null,null,"126"]
[null,null,null,null,null,null,null,null,null,null,null,"127"]
[null,null,null,null,null,null,null,null,null,null,null,"1280"]
[null,null,null,null,null,null,null,null,null,null,null,"1281"]
[null,null,null,null,null,null,null,null,null,null,null,"1282"]
[null,null,null,null,null,null,null,null,null,null,null,"1283"]
[null,null,null,null,null,null,null,null,null,null,null,"1290"]
[null,null,null,null,null,null,null,null,null,null,null,"1291"]
[null,null,null,null,null,null,null,null,null,null,null,"1292"]
[null,null,null,null,null,null,null,null,null,null,null,"1300"]
[null,null,null,null,null,null,null,null,null,null,null,"1301"]
[null,null,null,null,null,null,null,null,null,null,null,"1302"]
[null,null,null,null,null,null,null,null,null,null,null,"1310"]
[null,null,null,null,null,null,null,null,null,null,null,"1311"]
[null,null,null,null,null,null,null,null,null,null,null,"1312"]
[null,null,null,null,null,null,null,null,null,null,null,"1313"]
[null,null,null,null,null,null,null,null,null,null,null,"1320"]
[null,null,null,null,null,null,null,null,null,null,null,"1321"]
[null,null,null,null,null,null,null,null,null,null,null,"1322"]
[null,null,null,null,null,null,null,null,null,null,null,"1323"]
[null,null,null,null,null,null,null,null,null,null,null,"1400"]
[null,null,null,null,null,null,null,null,null,null,null,"1401"]
[null,null,null,null,null,null,null,null,null,null,null,"1402"]
[null,null,null,null,null,null,null,null,null,null,null,"1403"]
[null,null,null,null,null,null,null,null,null,null,null,"141"]
[null,null,null,null,null,null,null,null,null,null,null,"1420"]
[null,null,null,null,null,null,null,null,null,null,null,"1421"]
[null,null,null,null,null,null,null,null,null,null,null,"1422"]
[null,null,null,null,null,null,null,null,null,null,null,"1423"]
[null,null,null,null,null,null,null,null,null,null,null,"1424"]
[null,null,null,null,null,null,null,null,null,null,null,"1425"]
[null,null,null,null,null,null,null,null,null,null,null,"144"]
[null,null,null,null,null,null,null,null,null,null,null,"150"]
[null,null,null,null,null,null,null,null,null,null,null,"151"]
[null,null,null,null,null,null,null,null,null,null,null,"152"]
[null,null,null,null,null,null,null,null,null,null,null,"160"]
[null,null,null,null,null,null,null,null,null,null,null,"161"]
[null,null,null,null,null,null,null,null,null,null,null,"162"]
[null,null,null,null,null,null,null,null,null,null,null,"163"]
[null,null,null,null,null,null,null,null,null,null,null,"170"]
[null,null,null,null,null,null,null,null,null,null,null,"171"]
[null,null,null,null,null,null,null,null,null,null,null,"172"]
[null,null,null,null,null,null,null,null,null,null,null,"173"]
[null,null,null,null,null,null,null,null,null,null,null,"174"]
[null,null,null,null,null,null,null,null,null,null,null,"175"]
[null,null,null,null,null,null,null,null,null,null,null,"180"]
[null,null,null,null,null,null,null,null,null,null,null,"181"]
[null,null,null,null,null,null,null,null,null,null,null,"182"]
[null,null,null,null,null,null,null,null,null,null,null,"183"]
[null,null,null,null,null,null,null,null,null,null,null,"184"]
[null,null,null,null,null,null,null,null,null,null,null,"185"]
[null,null,null,null,null,null,null,null,null,null,null,"190"]
[null,null,null,null,null,null,null,null,null,null,null,"191"]
[null,null,null,null,null,null,null,null,null,null,null,"192"]
[null,null,null,null,null,null,null,null,null,null,null,"1930"]
[null,null,null,null,null,null,null,null,null,null,null,"1931"]
[null,null,null,null,null,null,null,null,null,null,null,"1932"]
[null,null,null,null,null,null,null,null,null,null,null,"1933"]
[null,null,null,null,null,null,null,null,null,null,null,"1934"]
[null,null,null,null,null,null,null,null,null,null,null,"1940"]
[null,null,null,null,null,null,null,null,null,null,null,"1941"]
[null,null,null,null,null,null,null,null,null,null,null,"1942"]
[null,null,null,null,null,null,null,null,null,null,null,"1943"]
[null,null,null,null,null,null,null,null,null,null,null,"1944"]
[null,null,null,null,null,null,null,null,null,null,null,"20"]
[null,null,null,null,null,null,null,null,null,null,null,"210"]
[null,null,null,null,null,null,null,null,null,null,null,"211"]
[null,null,null,null,null,null,null,null,null,null,null,"212"]
[null,null,null,null,null,null,null,null,null,null,null,"213"]
[null,null,null,null,null,null,null,null,null,null,null,"220"]
[null,null,null,null,null,null,null,null,null,null,null,"2210"]
[null,null,null,null,null,null,null,null,null,null,null,"2211"]
[null,null,null,null,null,null,null,null,null,null,null,"2212"]
[null,null,null,null,null,null,null,null,null,null,null,"2213"]
[null,null,null,null,null,null,null,null,null,null,null,"2214"]
[null,null,null,null,null,null,null,null,null,null,null,"2215"]
[null,null,null,null,null,null,null,null,null,null,null,"2220"]
[null,null,null,null,null,null,null,null,null,null,null,"2221"]
[null,null,null,null,null,null,null,null,null,null,null,"2222"]
[null,null,null,null,null,null,null,null,null,null,null,"2223"]
[null,null,null,null,null,null,null,null,null,null,null,"2224"]
[null,null,null,null,null,null,null,null,null,null,null,"223"]
[null,null,null,null,null,null,null,null,null,null,null,"230"]
[null,null,null,null,null,null,null,null,null,null,null,"2310"]
[null,null,null,null,null,null,null,null,null,null,null,"2311"]
[null,null,null,null,null,null,null,null,null,null,null,"2312"]
[null,null,null,null,null,null,null,null,null,null,null,"2313"]
[null,null,null,null,null,null,null,null,null,null,null,"2314"]
[null,null,null,null,null,null,null,null,null,null,null,"2320"]
[null,null,null,null,null,null,null,null,null,null,null,"2321"]
[null,null,null,null,null,null,null,null,null,null,null,"2322"]
[null,null,null,null,null,null,null,null,null,null,null,"2323"]
[null,null,null,null,null,null,null,null,null,null,null,"2324"]
[null,null,null,null,null,null,null,null,null,null,null,"2325"]
[null,null,null,null,null,null,null,null,null,null,null,"2326"]
[null,null,null,null,null,null,null,null,null,null,null,"2327"]
[null,null,null,null,null,null,null,null,null,null,null,"2328"]
[null,null,null,null,null,null,null,null,null,null,null,"233"]
[null,null,null,null,null,null,null,null,null,null,null,"234"]
[null,null,null,null,null,null,null,null,null,null,null,"2350"]
[null,null,null,null,null,null,null,null,null,null,null,"2351"]
[null,null,null,null,null,null,null,null,null,null,null,"2352"]
[null,null,null,null,null,null,null,null,null,null,null,"2353"]
[null,null,null,null,null,null,null,null,null,null,null,"2354"]
[null,null,null,null,null,null,null,null,null,null,null,"2355"]
[null,null,null,null,null,null,null,null,null,null,null,"236"]
[null,null,null,null,null,null,null,null,null,null,null,"237"]
[null,null,null,null,null,null,null,null,null,null,null,"2380"]
[null,null,null,null,null,null,null,null,null,null,null,"2381"]
[null,null,null,null,null,null,null,null,null,null,null,"2382"]
[null,null,null,null,null,null,null,null,null,null,null,"2383"]
[null,null,null,null,null,null,null,null,null,null,null,"2386"]
[null,null,null,null,null,null,null,null,null,null,null,"240"]
[null,null,null,null,null,null,null,null,null,null,null,"241"]
[null,null,null,null,null,null,null,null,null,null,null,"242"]
[null,null,null,null,null,null,null,null,null,null,null,"243"]
[null,null,null,null,null,null,null,null,null,null,null,"244"]
[null,null,null,null,null,null,null,null,null,null,null,"245"]
[null,null,null,null,null,null,null,null,null,null,null,"246"]
[null,null,null,null,null,null,null,null,null,null,null,"247"]
[null,null,null,null,null,null,null,null,null,null,null,"25"]
[null,null,null,null,null,null,null,null,null,null,null,"260"]
[null,null,null,null,null,null,null,null,null,null,null,"261"]
[null,null,null,null,null,null,null,null,null,null,null,"262"]
[null,null,null,null,null,null,null,null,null,null,null,"270"]
[null,null,null,null,null,null,null,null,null,null,null,"271"]
[null,null,null,null,null,null,null,null,null,null,null,"272"]
[null,null,null,null,null,null,null,null,null,null,null,"273"]
[null,null,null,null,null,null,null,null,null,null,null,"274"]
[null,null,null,null,null,null,null,null,null,null,null,"280"]
[null,null,null,null,null,null,null,null,null,null,null,"281"]
[null,null,null,null,null,null,null,null,null,null,null,"282"]
[null,null,null,null,null,null,null,null,null,null,null,"283"]
[null,null,null,null,null,null,null,null,null,null,null,"284"]
[null,null,null,null,null,null,null,null,null,null,null,"285"]
[null,null,null,null,null,null,null,null,null,null,null,"286"]
[null,null,null,null,null,null,null,null,null,null,null,"300"]
[null,null,null,null,null,null,null,null,null,null,null,"301"]
[null,null,null,null,null,null,null,null,null,null,null,"310"]
[null,null,null,null,null,null,null,null,null,null,null,"3110"]
[null,null,null,null,null,null,null,null,null,null,null,"3111"]
[null,null,null,null,null,null,null,null,null,null,null,"3112"]
[null,null,null,null,null,null,null,null,null,null,null,"3113"]
[null,null,null,null,null,null,null,null,null,null,null,"312"]
[null,null,null,null,null,null,null,null,null,null,null,"313"]
[null,null,null,null,null,null,null,null,null,null,null,"320"]
[null,null,null,null,null,null,null,null,null,null,null,"321"]
[null,null,null,null,null,null,null,null,null,null,null,"322"]
[null,null,null,null,null,null,null,null,null,null,null,"323"]
[null,null,null,null,null,null,null,null,null,null,null,"324"]
[null,null,null,null,null,null,null,null,null,null,null,"325"]
[null,null,null,null,null,null,null,null,null,null,null,"330"]
[null,null,null,null,null,null,null,null,null,null,null,"331"]
[null,null,null,null,null,null,null,null,null,null,null,"332"]
[null,null,null,null,null,null,null,null,null,null,null,"333"]
[null,null,null,null,null,null,null,null,null,null,null,"334"]
[null,null,null,null,null,null,null,null,null,null,null,"335"]
[null,null,null,null,null,null,null,null,null,null,null,"336"]
[null,null,null,null,null,null,null,null,null,null,null,"337"]
[null,null,null,null,null,null,null,null,null,null,null,"34"]
[null,null,null,null,null,null,null,null,null,null,null,"350"]
[null,null,null,null,null,null,null,null,null,null,null,"351"]
[null,null,null,null,null,null,null,null,null,null,null,"36"]
[null,null,null,null,null,null,null,null,null,null,null,"37"]
[null,null,null,null,null,null,null,null,null,null,null,"3800"]
[null,null,null,null,null,null,null,null,null,null,null,"3801"]
[null,null,null,null,null,null,null,null,null,null,null,"40"]
[null,null,null,null,null,null,null,null,null,null,null,"4100"]
[null,null,null,null,null,null,null,null,null,null,null,"4101"]
[null,null,null,null,null,null,null,null,null,null,null,"4102"]
[null,null,null,null,null,null,null,null,null,null,null,"4103"]
[null,null,null,null,null,null,null,null,null,null,null,"4104"]
[null,null,null,null,null,null,null,null,null,null,null,"4105"]
[null,null,null,null,null,null,null,null,null,null,null,"411"]
[null,null,null,null,null,null,null,null,null,null,null,"4120"]
[null,null,null,null,null,null,null,null,null,null,null,"4121"]
[null,null,null,null,null,null,null,null,null,null,null,"413"]
[null,null,null,null,null,null,null,null,null,null,null,"414"]
[null,null,null,null,null,null,null,null,null,null,null,"4150"]
[null,null,null,null,null,null,null,null,null,null,null,"4151"]
[null,null,null,null,null,null,null,null,null,null,null,"420"]
[null,null,null,null,null,null,null,null,null,null,null,"4210"]
[null,null,null,null,null,null,null,null,null,null,null,"4211"]
[null,null,null,null,null,null,null,null,null,null,null,"4220"]
[null,null,null,null,null,null,null,null,null,null,null,"4221"]
[null,null,null,null,null,null,null,null,null,null,null,"423"]
[null,null,null,null,null,null,null,null,null,null,null,"424"]
[null,null,null,null,null,null,null,null,null,null,null,"43"]
[null,null,null,null,null,null,null,null,null,null,null,"44"]
[null,null,null,null,null,null,null,null,null,null,null,"500"]
[null,null,null,null,null,null,null,null,null,null,null,"501"]
[null,null,null,null,null,null,null,null,null,null,null,"502"]
[null,null,null,null,null,null,null,null,null,null,null,"5100"]
[null,null,null,null,null,null,null,null,null,null,null,"5101"]
[null,null,null,null,null,null,null,null,null,null,null,"5102"]
[null,null,null,null,null,null,null,null,null,null,null,"5103"]
[null,null,null,null,null,null,null,null,null,null,null,"5104"]
[null,null,null,null,null,null,null,null,null,null,null,"5110"]
[null,null,null,null,null,null,null,null,null,null,null,"5111"]
[null,null,null,null,null,null,null,null,null,null,null,"5112"]
[null,null,null,null,null,null,null,null,null,null,null,"5113"]
[null,null,null,null,null,null,null,null,null,null,null,"5114"]
[null,null,null,null,null,null,null,null,null,null,null,"512"]
[null,null,null,null,null,null,null,null,null,null,null,"513"]
[null,null,null,null,null,null,null,null,null,null,null,"5140"]
[null,null,null,null,null,null,null,null,null,null,null,"5141"]
[null,null,null,null,null,null,null,null,null,null,null,"5142"]
[null,null,null,null,null,null,null,null,null,null,null,"5143"]
[null,null,null,null,null,null,null,null,null,null,null,"5144"]
[null,null,null,null,null,null,null,null,null,null,null,"5145"]
[null,null,null,null,null,null,null,null,null,null,null,"5150"]
[null,null,null,null,null,null,null,null,null,null,null,"5151"]
[null,null,null,null,null,null,null,null,null,null,null,"5152"]
[null,null,null,null,null,null,null,null,null,null,null,"5153"]
[null,null,null,null,null,null,null,null,null,null,null,"5160"]
[null,null,null,null,null,null,null,null,null,null,null,"5161"]
[null,null,null,null,null,null,null,null,null,null,null,"517"]
[null,null,null,null,null,null,null,null,null,null,null,"5200"]
[null,null,null,null,null,null,null,null,null,null,null,"5201"]
[null,null,null,null,null,null,null,null,null,null,null,"5202"]
[null,null,null,null,null,null,null,null,null,null,null,"5203"]
[null,null,null,null,null,null,null,null,null,null,null,"5204"]
[null,null,null,null,null,null,null,null,null,null,null,"5205"]
[null,null,null,null,null,null,null,null,null,null,null,"5206"]
[null,null,null,null,null,null,null,null,null,null,null,"5210"]
[null,null,null,null,null,null,null,null,null,null,null,"5211"]
[null,null,null,null,null,null,null,null,null,null,null,"5212"]
[null,null,null,null,null,null,null,null,null,null,null,"5213"]
[null,null,null,null,null,null,null,null,null,null,null,"5214"]
[null,null,null,null,null,null,null,null,null,null,null,"5220"]
[null,null,null,null,null,null,null,null,null,null,null,"5221"]
[null,null,null,null,null,null,null,null,null,null,null,"5230"]
[null,null,null,null,null,null,null,null,null,null,null,"5231"]
[null,null,null,null,null,null,null,null,null,null,null,"5232"]
[null,null,null,null,null,null,null,null,null,null,null,"5233"]
[null,null,null,null,null,null,null,null,null,null,null,"5234"]
[null,null,null,null,null,null,null,null,null,null,null,"530"]
[null,null,null,null,null,null,null,null,null,null,null,"531"]
[null,null,null,null,null,null,null,null,null,null,null,"5320"]
[null,null,null,null,null,null,null,null,null,null,null,"5321"]
[null,null,null,null,null,null,null,null,null,null,null,"533"]
[null,null,null,null,null,null,null,null,null,null,null,"534"]
[null,null,null,null,null,null,null,null,null,null,null,"535"]
[null,null,null,null,null,null,null,null,null,null,null,"536"]
[null,null,null,null,null,null,null,null,null,null,null,"5370"]
[null,null,null,null,null,null,null,null,null,null,null,"5371"]
[null,null,null,null,null,null,null,null,null,null,null,"5380"]
[null,null,null,null,null,null,null,null,null,null,null,"5381"]
[null,null,null,null,null,null,null,null,null,null,null,"5382"]
[null,null,null,null,null,null,null,null,null,null,null,"5383"]
[null,null,null,null,null,null,null,null,null,null,null,"5384"]
[null,null,null,null,null,null,null,null,null,null,null,"539"]
[null,null,null,null,null,null,null,null,null,null,null,"5400"]
[null,null,null,null,null,null,null,null,null,null,null,"5401"]
[null,null,null,null,null,null,null,null,null,null,null,"5402"]
[null,null,null,null,null,null,null,null,null,null,null,"5403"]
[null,null,null,null,null,null,null,null,null,null,null,"5410"]
[null,null,null,null,null,null,null,null,null,null,null,"5411"]
[null,null,null,null,null,null,null,null,null,null,null,"5420"]
[null,null,null,null,null,null,null,null,null,null,null,"5421"]
[null,null,null,null,null,null,null,null,null,null,null,"5422"]
[null,null,null,null,null,null,null,null,null,null,null,"5430"]
[null,null,null,null,null,null,null,null,null,null,null,"5431"]
[null,null,null,null,null,null,null,null,null,null,null,"5432"]
[null,null,null,null,null,null,null,null,null,null,null,"5433"]
[null,null,null,null,null,null,null,null,null,null,null,"5434"]
[null,null,null,null,null,null,null,null,null,null,null,"5435"]
[null,null,null,null,null,null,null,null,null,null,null,"5436"]
[null,null,null,null,null,null,null,null,null,null,null,"5437"]
[null,null,null,null,null,null,null,null,null,null,null,"5440"]
[null,null,null,null,null,null,null,null,null,null,null,"5441"]
[null,null,null,null,null,null,null,null,null,null,null,"5442"]
[null,null,null,null,null,null,null,null,null,null,null,"5443"]
[null,null,null,null,null,null,null,null,null,null,null,"5444"]
[null,null,null,null,null,null,null,null,null,null,null,"5445"]
[null,null,null,null,null,null,null,null,null,null,null,"5446"]
[null,null,null,null,null,null,null,null,null,null,null,"5447"]
[null,null,null,null,null,null,null,null,null,null,null,"5448"]
[null,null,null,null,null,null,null,null,null,null,null,"5449"]
[null,null,null,null,null,null,null,null,null,null,null,"5450"]
[null,null,null,null,null,null,null,null,null,null,null,"5451"]
[null,null,null,null,null,null,null,null,null,null,null,"5452"]
[null,null,null,null,null,null,null,null,null,null,null,"5453"]
[null,null,null,null,null,null,null,null,null,null,null,"5454"]
[null,null,null,null,null,null,null,null,null,null,null,"5455"]
[null,null,null,null,null,null,null,null,null,null,null,"5460"]
[null,null,null,null,null,null,null,null,null,null,null,"5461"]
[null,null,null,null,null,null,null,null,null,null,null,"5462"]
[null,null,null,null,null,null,null,null,null,null,null,"5463"]
[null,null,null,null,null,null,null,null,null,null,null,"5464"]
[null,null,null,null,null,null,null,null,null,null,null,"5465"]
[null,null,null,null,null,null,null,null,null,null,null,"5466"]
[null,null,null,null,null,null,null,null,null,null,null,"5470"]
[null,null,null,null,null,null,null,null,null,null,null,"5471"]
[null,null,null,null,null,null,null,null,null,null,null,"5472"]
[null,null,null,null,null,null,null,null,null,null,null,"5473"]
[null,null,null,null,null,null,null,null,null,null,null,"5474"]
[null,null,null,null,null,null,null,null,null,null,null,"5475"]
[null,null,null,null,null,null,null,null,null,null,null,"5480"]
[null,null,null,null,null,null,null,null,null,null,null,"5481"]
[null,null,null,null,null,null,null,null,null,null,null,"5482"]
[null,null,null,null,null,null,null,null,null,null,null,"5483"]
[null,null,null,null,null,null,null,null,null,null,null,"5484"]
[null,null,null,null,null,null,null,null,null,null,null,"5485"]
[null,null,null,null,null,null,null,null,null,null,null,"5490"]
[null,null,null,null,null,null,null,null,null,null,null,"5491"]
[null,null,null,null,null,null,null,null,null,null,null,"5492"]
[null,null,null,null,null,null,null,null,null,null,null,"5493"]
[null,null,null,null,null,null,null,null,null,null,null,"5494"]
[null,null,null,null,null,null,null,null,null,null,null,"5495"]
[null,null,null,null,null,null,null,null,null,null,null,"550"]
[null,null,null,null,null,null,null,null,null,null,null,"551"]
[null,null,null,null,null,null,null,null,null,null,null,"552"]
[null,null,null,null,null,null,null,null,null,null,null,"5600"]
[null,null,null,null,null,null,null,null,null,null,null,"56010"]
[null,null,null,null,null,null,null,null,null,null,null,"56011"]
[null,null,null,null,null,null,null,null,null,null,null,"5602"]
[null,null,null,null,null,null,null,null,null,null,null,"5603"]
[null,null,null,null,null,null,null,null,null,null,null,"5604"]
[null,null,null,null,null,null,null,null,null,null,null,"5605"]
[null,null,null,null,null,null,null,null,null,null,null,"56060"]
[null,null,null,null,null,null,null,null,null,null,null,"56061"]
[null,null,null,null,null,null,null,null,null,null,null,"56070"]
[null,null,null,null,null,null,null,null,null,null,null,"56071"]
[null,null,null,null,null,null,null,null,null,null,null,"56080"]
[null,null,null,null,null,null,null,null,null,null,null,"56081"]
[null,null,null,null,null,null,null,null,null,null,null,"5610"]
[null,null,null,null,null,null,null,null,null,null,null,"5611"]
[null,null,null,null,null,null,null,null,null,null,null,"5612"]
[null,null,null,null,null,null,null,null,null,null,null,"5613"]
[null,null,null,null,null,null,null,null,null,null,null,"5614"]
[null,null,null,null,null,null,null,null,null,null,null,"570"]
[null,null,null,null,null,null,null,null,null,null,null,"571"]
[null,null,null,null,null,null,null,null,null,null,null,"572"]
[null,null,null,null,null,null,null,null,null,null,null,"5730"]
[null,null,null,null,null,null,null,null,null,null,null,"5731"]
[null,null,null,null,null,null,null,null,null,null,null,"5732"]
[null,null,null,null,null,null,null,null,null,null,null,"5733"]
[null,null,null,null,null,null,null,null,null,null,null,"5734"]
[null,null,null,null,null,null,null,null,null,null,null,"5735"]
[null,null,null,null,null,null,null,null,null,null,null,"5736"]
[null,null,null,null,null,null,null,null,null,null,null,"5737"]
[null,null,null,null,null,null,null,null,null,null,null,"5738"]
[null,null,null,null,null,null,null,null,null,null,null,"5739"]
[null,null,null,null,null,null,null,null,null,null,null,"580"]
[null,null,null,null,null,null,null,null,null,null,null,"581"]
[null,null,null,null,null,null,null,null,null,null,null,"582"]
[null,null,null,null,null,null,null,null,null,null,null,"583"]
[null,null,null,null,null,null,null,null,null,null,null,"584"]
[null,null,null,null,null,null,null,null,null,null,null,"5850"]
[null,null,null,null,null,null,null,null,null,null,null,"5851"]
[null,null,null,null,null,null,null,null,null,null,null,"5852"]
[null,null,null,null,null,null,null,null,null,null,null,"5853"]
[null,null,null,null,null,null,null,null,null,null,null,"5854"]
[null,null,null,null,null,null,null,null,null,null,null,"5855"]
[null,null,null,null,null,null,null,null,null,null,null,"6000"]
[null,null,null,null,null,null,null,null,null,null,null,"6001"]
[null,null,null,null,null,null,null,null,null,null,null,"6002"]
[null,null,null,null,null,null,null,null,null,null,null,"6003"]
[null,null,null,null,null,null,null,null,null,null,null,"6004"]
[null,null,null,null,null,null,null,null,null,null,null,"6005"]
[null,null,null,null,null,null,null,null,null,null,null,"601"]
[null,null,null,null,null,null,null,null,null,null,null,"6020"]
[null,null,null,null,null,null,null,null,null,null,null,"6021"]
[null,null,null,null,null,null,null,null,null,null,null,"603"]
[null,null,null,null,null,null,null,null,null,null,null,"604"]
[null,null,null,null,null,null,null,null,null,null,null,"605"]
[null,null,null,null,null,null,null,null,null,null,null,"606"]
[null,null,null,null,null,null,null,null,null,null,null,"61"]
[null,null,null,null,null,null,null,null,null,null,null,"620"]
[null,null,null,null,null,null,null,null,null,null,null,"621"]
[null,null,null,null,null,null,null,null,null,null,null,"6210"]
[null,null,null,null,null,null,null,null,null,null,null,"622"]
[null,null,null,null,null,null,null,null,null,null,null,"623"]
[null,null,null,null,null,null,null,null,null,null,null,"624"]
[null,null,null,null,null,null,null,null,null,null,null,"625"]
[null,null,null,null,null,null,null,null,null,null,null,"626"]
[null,null,null,null,null,null,null,null,null,null,null,"627"]
[null,null,null,null,null,null,null,null,null,null,null,"628"]
[null,null,null,null,null,null,null,null,null,null,null,"630"]
[null,null,null,null,null,null,null,null,null,null,null,"631"]
[null,null,null,null,null,null,null,null,null,null,null,"632"]
[null,null,null,null,null,null,null,null,null,null,null,"633"]
[null,null,null,null,null,null,null,null,null,null,null,"634"]
[null,null,null,null,null,null,null,null,null,null,null,"640"]
[null,null,null,null,null,null,null,null,null,null,null,"641"]
[null,null,null,null,null,null,null,null,null,null,null,"642"]
[null,null,null,null,null,null,null,null,null,null,null,"643"]
[null,null,null,null,null,null,null,null,null,null,null,"644"]
[null,null,null,null,null,null,null,null,null,null,null,"645"]
[null,null,null,null,null,null,null,null,null,null,null,"646"]
[null,null,null,null,null,null,null,null,null,null,null,"647"]
[null,null,null,null,null,null,null,null,null,null,null,"648"]
[null,null,null,null,null,null,null,null,null,null,null,"65"]
[null,null,null,null,null,null,null,null,null,null,null,"700"]
[null,null,null,null,null,null,null,null,null,null,null,"701"]
[null,null,null,null,null,null,null,null,null,null,null,"702"]
[null,null,null,null,null,null,null,null,null,null,null,"710"]
[null,null,null,null,null,null,null,null,null,null,null,"711"]
[null,null,null,null,null,null,null,null,null,null,null,"712"]
[null,null,null,null,null,null,null,null,null,null,null,"7130"]
[null,null,null,null,null,null,null,null,null,null,null,"7131"]
[null,null,null,null,null,null,null,null,null,null,null,"7132"]
[null,null,null,null,null,null,null,null,null,null,null,"7133"]
[null,null,null,null,null,null,null,null,null,null,null,"7140"]
[null,null,null,null,null,null,null,null,null,null,null,"7141"]
[null,null,null,null,null,null,null,null,null,null,null,"7142"]
[null,null,null,null,null,null,null,null,null,null,null,"7143"]
[null,null,null,null,null,null,null,null,null,null,null,"7144"]
[null,null,null,null,null,null,null,null,null,null,null,"7145"]
[null,null,null,null,null,null,null,null,null,null,null,"7146"]
[null,null,null,null,null,null,null,null,null,null,null,"7150"]
[null,null,null,null,null,null,null,null,null,null,null,"7151"]
[null,null,null,null,null,null,null,null,null,null,null,"7152"]
[null,null,null,null,null,null,null,null,null,null,null,"7153"]
[null,null,null,null,null,null,null,null,null,null,null,"7160"]
[null,null,null,null,null,null,null,null,null,null,null,"7161"]
[null,null,null,null,null,null,null,null,null,null,null,"7162"]
[null,null,null,null,null,null,null,null,null,null,null,"7163"]
[null,null,null,null,null,null,null,null,null,null,null,"720"]
[null,null,null,null,null,null,null,null,null,null,null,"73"]
[null,null,null,null,null,null,null,null,null,null,null,"7400"]
[null,null,null,null,null,null,null,null,null,null,null,"7401"]
[null,null,null,null,null,null,null,null,null,null,null,"7402"]
[null,null,null,null,null,null,null,null,null,null,null,"75"]
[null,null,null,null,null,null,null,null,null,null,null,"800"]
[null,null,null,null,null,null,null,null,null,null,null,"801"]
[null,null,null,null,null,null,null,null,null,null,null,"802"]

{"sheet":"dok.niejawna","index":1,"n_rows":769,"n_cols":15,"rows_kept":769,"cut":false,"hidden":false,"merged":[[162,9,162,10],[161,9,161,10],[163,9,163,10],[145,0,145,4],[147,0,147,1],[147,2,147,3],[148,0,148,1],[148,2,148,3],[138,6,138,10],[23,8,26,8],[23,9,26,9],[138,1,138,3],[23,6,26,6],[23,7,26,7],[23,10,26,10],[24,1,25,1],[137,1,137,3],[128,0,128,7],[132,1,132,3],[132,6,132,10],[133,1,133,3],[133,6,133,10],[137,6,137,10],[24,2,26,2],[24,4,26,4],[24,5,26,5],[16,0,16,10],[4,8,4,9],[5,0,5,1],[5,2,5,3],[5,7,5,10],[6,2,6,3],[11,0,11,10],[19,4,19,5],[23,0,26,0],[23,1,23,2],[23,3,26,3],[23,4,23,5],[0,8,0,10],[1,0,1,3],[1,6,1,8],[13,3,13,5],[13,6,13,7],[6,0,6,1],[2,0,2,3],[3,0,3,3],[0,4,0,5]]}
[null,null,null,null,"Poufne"]
["Komenda Wojewódzka Policji w Łodzi",null,null,null,null,null,{"$f":"IF(Ewid2!G5=\"KWP1241\",J164,IF(Ewid2!G5=\"KWP1212\",J164,J163))","v":"Łódź"},null,null,", dnia "]
["Wydział ds. Ochrony Informacji Niejawnych "]
["(Nazwa komórki organizacyjnej, która wytworzyła akta)"]
[]
["L. dz. \nwytwórcy akt"]
["L. dz. \nkancelarii tajnej"]
[]
[]
[]
[]
["S P I S"]
[]
[null,null,null,"                    akt przekazanych Nr"]
[null,null,null,null,null,null,"(nadaje archiwum)"]
[]
["do ARCHIWUM KWP  w Łodzi"]
[]
[]
[null,null,null,"dnia"]
[null,null,null,null,"    (wpisuje archiwum)"]
[null,null,null,null,null,null,null,null,null,null,null,null,null,2020]
[null,null,null,null,null,null,null,null,null,null,null,null,null,2007]
["L.p.","Symbol teczki wg",null,"Tytuł teczki","Daty skrajne",null,"Ilość teczek","Kate-goria","Klauzula tajności","Nr i data protokołu brakowania lub przekazania","Uwagi"]
[null,"wykazu akt","opisu",null,"początkowa","końcowa"]
[]
[null,2020]
[1,null,null,null,null,null,null,null," ",null,null,null,{"$f":"IF(H28=$H$171,2,1)","v":1},{"$f":"RIGHT(E28,4)*1","v":{"$error":"#VALUE!"}},{"$f":"RIGHT(F28,4)*1","v":{"$error":"#VALUE!"}}]
[2,null,null,null,null,null,null,null," ",null,null,null,1,{"$f":"RIGHT(E29,4)*1","v":{"$error":"#VALUE!"}},{"$error":"#VALUE!"}]
[3,null,null,null,null,null,null,null," ",null,null,null,1,{"$error":"#VALUE!"},{"$error":"#VALUE!"}]
[4,null,null,null,null,null,null,null," ",null,null,null,1,{"$error":"#VALUE!"},{"$error":"#VALUE!"}]
[5,null,null,null,null,null,null,null," ",null,null,null,1,{"$error":"#VALUE!"},{"$error":"#VALUE!"}]
[6,null,null,null,null,null,null,null," ",null,null,null,1,{"$error":"#VALUE!"},{"$error":"#VALUE!"}]
[7,null,null,null,null,null,null,null," ",null,null,null,1,{"$error":"#VALUE!"},{"$error":"#VALUE!"}]
[8,null,null,null,null,null,null,null," ",null,null,null,{"$f":"IF(H35=$H$171,2,1)","v":1},{"$error":"#VALUE!"},{"$error":"#VALUE!"}]
[9,null,null,null,null,null,null,null," ",null,null,null,1,{"$error":"#VALUE!"},{"$error":"#VALUE!"}]
[10,null,null,null,null,null,null,null," ",null,null,null,1,{"$error":"#VALUE!"},{"$error":"#VALUE!"}]
[11,null,null,null,null,null,null,null," ",null,null,null,1,{"$error":"#VALUE!"},{"$error":"#VALUE!"}]
[12,null,null,null,null,null,null,null," ",null,null,null,1,{"$error":"#VALUE!"},{"$error":"#VALUE!"}]
[13,null,null,null,null,null,null,null," ",null,null,null,1,{"$error":"#VALUE!"},{"$error":"#VALUE!"}]
[14,null,null,null,null,null,null,null," ",null,null,null,1,{"$error":"#VALUE!"},{"$error":"#VALUE!"}]
[15,null,null,null,null,null,null,null," ",null,null,null,{"$f":"IF(H42=$H$171,2,1)","v":1},{"$error":"#VALUE!"},{"$error":"#VALUE!"}]
[16,null,null,null,null,null,null,null," ",null,null,null,1,{"$error":"#VALUE!"},{"$error":"#VALUE!"}]
[17,null,null,null,null,null,null,null," ",null,null,null,1,{"$error":"#VALUE!"},{"$error":"#VALUE!"}]
[18,null,null,null,null,null,null,null," ",null,null,null,1,{"$error":"#VALUE!"},{"$error":"#VALUE!"}]
[19,null,null,null,null,null,null,null," ",null,null,null,1,{"$error":"#VALUE!"},{"$error":"#VALUE!"}]
[20,null,null,null,null,null,null,null," ",null,null,null,1,{"$error":"#VALUE!"},{"$error":"#VALUE!"}]
[21,null,null,null,null,null,null,null," ",null,null,null,1,{"$error":"#VALUE!"},{"$error":"#VALUE!"}]
[22,null,null,null,null,null,null,null," ",null,null,null,1,{"$error":"#VALUE!"},{"$error":"#VALUE!"}]
[23,null,null,null,null,null,null,null," ",null,null,null,1,{"$error":"#VALUE!"},{"$error":"#VALUE!"}]
[24,null,null,null,null,null,null,null," ",null,null,null,1,{"$error":"#VALUE!"},{"$error":"#VALUE!"}]
[25,null,null,null,null,null,null,null," ",null,null,null,1,{"$error":"#VALUE!"},{"$error":"#VALUE!"}]
[26,null,null,null,null,null,null,null," ",null,null,null,1,{"$error":"#VALUE!"},{"$error":"#VALUE!"}]
[27,null,null,null,null,null,null,null," ",null,null,null,1,{"$error":"#VALUE!"},{"$error":"#VALUE!"}]
[28,null,null,null,null,null,null,null," ",null,null,null,1,{"$error":"#VALUE!"},{"$error":"#VALUE!"}]
[29,null,null,null,null,null,null,null," ",null,null,null,1,{"$error":"#VALUE!"},{"$error":"#VALUE!"}]
[30,null,null,null,null,null,null,null," ",null,null,null,1,{"$error":"#VALUE!"},{"$error":"#VALUE!"}]
[31,null,null,null,null,null,null,null," ",null,null,null,1,{"$error":"#VALUE!"},{"$error":"#VALUE!"}]
[32,null,null,null,null,null,null,null," ",null,null,null,1,{"$error":"#VALUE!"},{"$error":"#VALUE!"}]
[33,null,null,null,null,null,null,null," ",null,null,null,1,{"$error":"#VALUE!"},{"$error":"#VALUE!"}]
[34,null,null,null,null,null,null,null," ",null,null,null,1,{"$error":"#VALUE!"},{"$error":"#VALUE!"}]
[35,null,null,null,null,null,null,null," ",null,null,null,1,{"$error":"#VALUE!"},{"$error":"#VALUE!"}]
[36,null,null,null,null,null,null,null," ",null,null,null,1,{"$error":"#VALUE!"},{"$error":"#VALUE!"}]
[37,null,null,null,null,null,null,null," ",null,null,null,1,{"$error":"#VALUE!"},{"$error":"#VALUE!"}]
[38,null,null,null,null,null,null,null," ",null,null,null,1,{"$error":"#VALUE!"},{"$error":"#VALUE!"}]
[39,null,null,null,null,null,null,null," ",null,null,null,1,{"$error":"#VALUE!"},{"$error":"#VALUE!"}]
[40,null,null,null,null,null,null,null," ",null,null,null,1,{"$error":"#VALUE!"},{"$error":"#VALUE!"}]
[41,null,null,null,null,null,null,null," ",null,null,null,1,{"$error":"#VALUE!"},{"$error":"#VALUE!"}]
[42,null,null,null,null,null,null,null," ",null,null,null,1,{"$error":"#VALUE!"},{"$error":"#VALUE!"}]
[43,null,null,null,null,null,null,null," ",null,null,null,1,{"$error":"#VALUE!"},{"$error":"#VALUE!"}]
[44,null,null,null,null,null,null,null," ",null,null,null,1,{"$error":"#VALUE!"},{"$error":"#VALUE!"}]
[45,null,null,null,null,null,null,null," ",null,null,null,1,{"$error":"#VALUE!"},{"$error":"#VALUE!"}]
[46,null,null,null,null,null,null,null," ",null,null,null,1,{"$error":"#VALUE!"},{"$error":"#VALUE!"}]
[47,null,null,null,null,null,null,null," ",null,null,null,{"$f":"IF(H74=$H$171,2,1)","v":1},{"$error":"#VALUE!"},{"$error":"#VALUE!"}]
[48,null,null,null,null,null,null,null," ",null,null,null,1,{"$error":"#VALUE!"},{"$error":"#VALUE!"}]
[49,null,null,null,null,null,null,null," ",null,null,null,1,{"$error":"#VALUE!"},{"$error":"#VALUE!"}]
[50,null,null,null,null,null,null,null," ",null,null,null,1,{"$error":"#VALUE!"},{"$error":"#VALUE!"}]
[51,null,null,null,null,null,null,null," ",null,null,null,1,{"$error":"#VALUE!"},{"$error":"#VALUE!"}]
[52,null,null,null,null,null,null,null," ",null,null,null,1,{"$error":"#VALUE!"},{"$error":"#VALUE!"}]
[53,null,null,null,null,null,null,null," ",null,null,null,1,{"$error":"#VALUE!"},{"$error":"#VALUE!"}]
[54,null,null,null,null,null,null,null," ",null,null,null,1,{"$error":"#VALUE!"},{"$error":"#VALUE!"}]
[55,null,null,null,null,null,null,null," ",null,null,null,1,{"$error":"#VALUE!"},{"$error":"#VALUE!"}]
[56,null,null,null,null,null,null,null," ",null,null,null,1,{"$error":"#VALUE!"},{"$error":"#VALUE!"}]
[57,null,null,null,null,null,null,null," ",null,null,null,1,{"$error":"#VALUE!"},{"$error":"#VALUE!"}]
[58,null,null,null,null,null,null,null," ",null,null,null,1,{"$error":"#VALUE!"},{"$error":"#VALUE!"}]
[59,null,null,null,null,null,null,null," ",null,null,null,1,{"$error":"#VALUE!"},{"$error":"#VALUE!"}]
[60,null,null,null,null,null,null,null," ",null,null,null,1,{"$error":"#VALUE!"},{"$error":"#VALUE!"}]
[61,null,null,null,null,null,null,null," ",null,null,null,1,{"$error":"#VALUE!"},{"$error":"#VALUE!"}]
[62,null,null,null,null,null,null,null," ",null,null,null,1,{"$error":"#VALUE!"},{"$error":"#VALUE!"}]
[63,null,null,null,null,null,null,null," ",null,null,null,1,{"$error":"#VALUE!"},{"$error":"#VALUE!"}]
[64,null,null,null,null,null,null,null," ",null,null,null,1,{"$error":"#VALUE!"},{"$error":"#VALUE!"}]
[65,null,null,null,null,null,null,null," ",null,null,null,1,{"$error":"#VALUE!"},{"$error":"#VALUE!"}]
[66,null,null,null,null,null,null,null," ",null,null,null,{"$f":"IF(H93=$H$171,2,1)","v":1},{"$f":"RIGHT(E93,4)*1","v":{"$error":"#VALUE!"}},{"$error":"#VALUE!"}]
[67,null,null,null,null,null,null,null," ",null,null,null,1,{"$error":"#VALUE!"},{"$error":"#VALUE!"}]
[68,null,null,null,null,null,null,null," ",null,null,null,1,{"$error":"#VALUE!"},{"$error":"#VALUE!"}]
[69,null,null,null,null,null,null,null," ",null,null,null,1,{"$error":"#VALUE!"},{"$error":"#VALUE!"}]
[70,null,null,null,null,null,null,null," ",null,null,null,1,{"$error":"#VALUE!"},{"$error":"#VALUE!"}]
[71,null,null,null,null,null,null,null," ",null,null,null,1,{"$error":"#VALUE!"},{"$error":"#VALUE!"}]
[72,null,null,null,null,null,null,null," ",null,null,null,1,{"$error":"#VALUE!"},{"$error":"#VALUE!"}]
[73,null,null,null,null,null,null,null," ",null,null,null,1,{"$error":"#VALUE!"},{"$error":"#VALUE!"}]
[74,null,null,null,null,null,null,null," ",null,null,null,1,{"$error":"#VALUE!"},{"$error":"#VALUE!"}]
[75,null,null,null,null,null,null,null," ",null,null,null,1,{"$error":"#VALUE!"},{"$error":"#VALUE!"}]
[76,null,null,null,null,null,null,null," ",null,null,null,1,{"$error":"#VALUE!"},{"$error":"#VALUE!"}]
[77,null,null,null,null,null,null,null," ",null,null,null,1,{"$error":"#VALUE!"},{"$error":"#VALUE!"}]
[78,null,null,null,null,null,null,null," ",null,null,null,1,{"$error":"#VALUE!"},{"$error":"#VALUE!"}]
[79,null,null,null,null,null,null,null," ",null,null,null,1,{"$error":"#VALUE!"},{"$error":"#VALUE!"}]
[80,null,null,null,null,null,null,null," ",null,null,null,1,{"$error":"#VALUE!"},{"$error":"#VALUE!"}]
[81,null,null,null,null,null,null,null," ",null,null,null,1,{"$error":"#VALUE!"},{"$error":"#VALUE!"}]
[82,null,null,null,null,null,null,null," ",null,null,null,1,{"$error":"#VALUE!"},{"$error":"#VALUE!"}]
[83,null,null,null,null,null,null,null," ",null,null,null,1,{"$error":"#VALUE!"},{"$error":"#VALUE!"}]
[84,null,null,null,null,null,null,null," ",null,null,null,1,{"$error":"#VALUE!"},{"$error":"#VALUE!"}]
[85,null,null,null,null,null,null,null," ",null,null,null,1,{"$error":"#VALUE!"},{"$error":"#VALUE!"}]
[86,null,null,null,null,null,null,null," ",null,null,null,1,{"$error":"#VALUE!"},{"$error":"#VALUE!"}]
[87,null,null,null,null,null,null,null," ",null,null,null,1,{"$error":"#VALUE!"},{"$error":"#VALUE!"}]
[88,null,null,null,null,null,null,null," ",null,null,null,1,{"$error":"#VALUE!"},{"$error":"#VALUE!"}]
[89,null,null,null,null,null,null,null," ",null,null,null,1,{"$error":"#VALUE!"},{"$error":"#VALUE!"}]
[90,null,null,null,null,null,null,null," ",null,null,null,1,{"$error":"#VALUE!"},{"$error":"#VALUE!"}]
[91,null,null,null,null,null,null,null," ",null,null,null,1,{"$error":"#VALUE!"},{"$error":"#VALUE!"}]
[92,null,null,null,null,null,null,null," ",null,null,null,1,{"$error":"#VALUE!"},{"$error":"#VALUE!"}]
[93,null,null,null,null,null,null,null," ",null,null,null,1,{"$error":"#VALUE!"},{"$error":"#VALUE!"}]
[94,null,null,null,null,null,null,null," ",null,null,null,1,{"$error":"#VALUE!"},{"$error":"#VALUE!"}]
[95,null,null,null,null,null,null,null," ",null,null,null,1,{"$error":"#VALUE!"},{"$error":"#VALUE!"}]
[96,null,null,null,null,null,null,null," ",null,null,null,1,{"$error":"#VALUE!"},{"$error":"#VALUE!"}]
[97,null,null,null,null,null,null,null," ",null,null,null,1,{"$error":"#VALUE!"},{"$error":"#VALUE!"}]
[98,null,null,null,null,null,null,null," ",null,null,null,1,{"$error":"#VALUE!"},{"$error":"#VALUE!"}]
[99,null,null,null,null,null,null,null," ",null,null,null,1,{"$error":"#VALUE!"},{"$error":"#VALUE!"}]
[100,null,null,null,null,null,null,null," ",null,null,null,1,{"$error":"#VALUE!"},{"$error":"#VALUE!"}]
[]
[{"$f":"CONCATENATE(\"Spis zawiera \",DCOUNT(A24:D127,1,A24:A127),\" j.a., co stanowi \",SUM(G28:G127),\" teczek (teczki)\")","v":"Spis zawiera 100 j.a., co stanowi 0 teczek (teczki)"},{"$f":"CONCATENATE(\"Spis zawiera \",DCOUNT(B24:E127,1,B24:B127),\" j.a., co stanowi \",SUM(H28:H127),\" teczek (teczki)\")","v":"Spis zawiera 1 j.a., co stanowi 0 teczek (teczki)"},{"$f":"CONCATENATE(\"Spis zawiera \",DCOUNT(C24:F127,1,C24:C127),\" j.a., co stanowi \",SUM(I28:I127),\" teczek (teczki)\")","v":"Spis zawiera 0 j.a., co stanowi 0 teczek (teczki)"},{"$f":"CONCATENATE(\"Spis zawiera \",DCOUNT(D24:G127,1,D24:D127),\" j.a., co stanowi \",SUM(J28:J127),\" teczek (teczki)\")","v":"Spis zawiera 0 j.a., co stanowi 0 teczek (teczki)"},{"$f":"CONCATENATE(\"Spis zawiera \",DCOUNT(E24:H127,1,E24:E127),\" j.a., co stanowi \",SUM(K28:K127),\" teczek (teczki)\")","v":"Spis zawiera 0 j.a., co stanowi 0 teczek (teczki)"},{"$f":"CONCATENATE(\"Spis zawiera \",DCOUNT(F24:I127,1,F24:F127),\" j.a., co stanowi \",SUM(#REF!),\" teczek (teczki)\")","v":{"$error":"#REF!"}},{"$f":"CONCATENATE(\"Spis zawiera \",DCOUNT(G24:J127,1,G24:G127),\" j.a., co stanowi \",SUM(#REF!),\" teczek (teczki)\")","v":{"$error":"#REF!"}},{"$f":"CONCATENATE(\"Spis zawiera \",DCOUNT(H24:K127,1,H24:H127),\" j.a., co stanowi \",SUM(N28:N127),\" teczek (teczki)\")","v":{"$error":"#VALUE!"}}]
[]
[]
[]
[null,"……………………………………………..",null,null,null,null," ..........................................................."]
[null,"(podpis osoby sporządzającej spis akt przekazanych\nz komórki w której wytworzono akta)",null,null,null,null,"(pieczęć imienna i podpis kierownika\njednostki/komórki organizacyjnej przekazującej akta)"]
[]
[]
[]
[null," ........................................................",null,null,null,null," ............................................................"]
[null,"(podpis archiwisty)",null,null,null,null,"(pieczęć imienna i podpis osoby kierującej archiwum)"]
[]
[]
[]
[{"$f":"IF(I171=2,J173,J172)","v":"Wykonano w 3 egz.:"}]
["Egz. nr 1-2 - Archiwum KWP w Łodzi"]
[{"$f":"CONCATENATE(\"Egz. nr 3 - \",Ewid2!G7,IF(A2=\"Komenda Wojewódzka Policji w Łodzi\",\" KWP w Łodzi\",\" \"),IF(A2=\"Centralne Biuro Śledcze Policji\",\"Zarząd w Łodzi\",\" \"))","v":"Egz. nr 3 - Wydział ds. Ochrony Informacji Niejawnych KWP w Łodzi "}]
[{"$f":"IF(I171=2,J174,J175)","v":" "}]
[]
["opracował:"]
["nr tel. sł.:"]
[]
["Przyjęto ____ pozycji"]
["co stanowi _____ teczek, ____ j.a."]
[]
[]
[]
[]
[]
[null,null,null,null,null,null,"KLAUZULE I KATEGORIE"]
[null,null,null,"Aktualne jednostki i komórki organizacyjne",null,null,"Jawne - po odłączeniu załączników",null,null,null,null,"000"]
[null,null,null,"NazwaJedn",null,"IDJedn",null,null,null,null,null,"001"]
[null,null,null,{"$f":"Jednostki!B4","v":"Centralne Biuro Śledcze Policji"},null,{"$f":"Jednostki!A4","v":"CBŚ1161"},{"$f":"Jednostki!C4","v":"Łódź"},null,{"$f":"IF(A2=\"Centralne Biuro Śledcze Policji\",\"Zarząd w Łodzi\",\" \")","v":" "},null,null,"002"]
[null,null,null,{"$f":"Jednostki!B5","v":"Komenda Miejska Policji w Łodzi"},null,{"$f":"Jednostki!A5","v":"KMP1241"},{"$f":"Jednostki!C5","v":"Łódź"},"Tajne",null,null,null,"003"]
[null,null,null,{"$f":"Jednostki!B6","v":"Komenda Miejska Policji w Piotrkowie Trybunalskim"},null,{"$f":"Jednostki!A6","v":"KMP1255"},{"$f":"Jednostki!C6","v":"Piotrków Trybunalski"},"Ściśle tajne",null,{"$f":"VLOOKUP(A2,Siedziba,2)","v":"Łódź"},null,"004"]
[null,null,null,{"$f":"Jednostki!B7","v":"Komenda Miejska Policji w Skierniewicach"},null,{"$f":"Jednostki!A7","v":"KMP1256"},{"$f":"Jednostki!C7","v":"Skierniewice"},"Poufne",null,{"$f":"VLOOKUP(A3,Siedziba,2)","v":"Łódź"},null,"005"]
[null,null,null,{"$f":"Jednostki!B8","v":"I Komisariat Komendy Miejskiej Policji w Łodzi"},null,{"$f":"Jednostki!A8","v":"KOP1244"},{"$f":"Jednostki!C8","v":"Łódź"},"Zastrzeżone",null,null,null,"006"]
[null,null,null,{"$f":"Jednostki!B9","v":"II Komisariat Komendy Miejskiej Policji w Łodzi"},null,{"$f":"Jednostki!A9","v":"KOP1245"},{"$f":"Jednostki!C9","v":"Łódź"},null,null," ",null,"007"]
[null,null,null,{"$f":"Jednostki!B10","v":"III Komisariat Komendy Miejskiej Policji w Łodzi"},null,{"$f":"Jednostki!A10","v":"KOP1246"},{"$f":"Jednostki!C10","v":"Łódź"},null,null,"tajne",null,"008"]
[null,null,null,{"$f":"Jednostki!B11","v":"IV Komisariat Komendy Miejskiej Policji w Łodzi"},null,{"$f":"Jednostki!A11","v":"KOP1247"},{"$f":"Jednostki!C11","v":"Łódź"},null,null,"ściśle tajne",null,"010"]
[null,null,null,{"$f":"Jednostki!B12","v":"V Komisariat Komendy Miejskiej Policji w Łodzi"},null,{"$f":"Jednostki!A12","v":"KOP1248"},{"$f":"Jednostki!C12","v":"Łódź"},null,null,"poufne",null,"011"]
[null,null,null,{"$f":"Jednostki!B13","v":"VI Komisariat Komendy Miejskiej Policji w Łodzi"},null,{"$f":"Jednostki!A13","v":"KOP1249"},{"$f":"Jednostki!C13","v":"Łódź"},"Kat",null,"zastrzeżone",null,"012"]
[null,null,null,{"$f":"Jednostki!B14","v":"VII Komisariat Komendy Miejskiej Policji w Łodzi"},null,{"$f":"Jednostki!A14","v":"KOP1250"},{"$f":"Jednostki!C14","v":"Łódź"},"A   -E",{"$f":"MAXA(M28:M127)","v":1},null,null,"0130"]
[null,null,null,{"$f":"Jednostki!B15","v":"VIII Komisariat Komendy Miejskiej Policji w Łodzi"},null,{"$f":"Jednostki!A15","v":"KOP1251"},{"$f":"Jednostki!C15","v":"Łódź"},"A   -P",null,"Wykonano w 3 egz.:",null,"0131"]
[null,null,null,{"$f":"Jednostki!B16","v":"Komenda Powiatowa Policji w Bełchatowie"},null,{"$f":"Jednostki!A16","v":"KPP1201"},{"$f":"Jednostki!C16","v":"Bełchatów"},"B 2 -E",null,"Wykonano w 4 egz.:",null,"014"]
[null,null,null,{"$f":"Jednostki!B17","v":"Komenda Powiatowa Policji w Kutnie"},null,{"$f":"Jednostki!A17","v":"KPP1202"},{"$f":"Jednostki!C17","v":"Kutno"},"B 2 -Z",null,"Egz. nr 4 - Główne Archiwum Policji KGP",null,"0150"]
[null,null,null,{"$f":"Jednostki!B18","v":"Komenda Powiatowa Policji w Łasku"},null,{"$f":"Jednostki!A18","v":"KPP1203"},{"$f":"Jednostki!C18","v":"Łask"},"B 2 -P",null," ",null,"0151"]
[null,null,null,{"$f":"Jednostki!B19","v":"Komenda Powiatowa Policji w Łęczycy"},null,{"$f":"Jednostki!A19","v":"KPP1204"},{"$f":"Jednostki!C19","v":"Łęczyca"},"B 3 -Z",null,null,null,"0160"]
[null,null,null,{"$f":"Jednostki!B20","v":"Komenda Powiatowa Policji w Łowiczu"},null,{"$f":"Jednostki!A20","v":"KPP1205"},{"$f":"Jednostki!C20","v":"Łowicz"},"B 3 -P",null,null,null,"0161"]
[null,null,null,{"$f":"Jednostki!B21","v":"Komenda Powiatowa Policji w Opocznie"},null,{"$f":"Jednostki!A21","v":"KPP1206"},{"$f":"Jednostki!C21","v":"Opoczno"},"B 5 -Z",null,null,null,"0162"]
[null,null,null,{"$f":"Jednostki!B22","v":"Komenda Powiatowa Policji w Pabianicach"},null,{"$f":"Jednostki!A22","v":"KPP1207"},{"$f":"Jednostki!C22","v":"Pabianice"},"B 5 -E",null,null,null,"0163"]
[null,null,null,{"$f":"Jednostki!B23","v":"Komenda Powiatowa Policji w Pajęcznie"},null,{"$f":"Jednostki!A23","v":"KPP1208"},{"$f":"Jednostki!C23","v":"Pajęczno"},"B 5 -P",null,null,null,"0164"]
[null,null,null,{"$f":"Jednostki!B24","v":"Komenda Powiatowa Policji w Poddębicach"},null,{"$f":"Jednostki!A24","v":"KPP1209"},{"$f":"Jednostki!C24","v":"Poddębice"},"BE5 -E",null,null,null,"0165"]
[null,null,null,{"$f":"Jednostki!B25","v":"Komenda Powiatowa Policji w Radomsku"},null,{"$f":"Jednostki!A25","v":"KPP1210"},{"$f":"Jednostki!C25","v":"Radomsko"},"BE5 -Z",null,null,null,"0166"]
[null,null,null,{"$f":"Jednostki!B26","v":"Komenda Powiatowa Policji w Rawie Mazowieckiej"},null,{"$f":"Jednostki!A26","v":"KPP1211"},{"$f":"Jednostki!C26","v":"Rawa Mazowiecka"},"BE5 -P",null,null,null,"0167"]
[null,null,null,{"$f":"Jednostki!B27","v":"Komenda Powiatowa Policji w Sieradzu"},null,{"$f":"Jednostki!A27","v":"KPP1212"},{"$f":"Jednostki!C27","v":"Sieradz"},"BE6 -E",null,null,null,"0168"]
[null,null,null,{"$f":"Jednostki!B28","v":"Komenda Powiatowa Policji w Tomaszowie Mazowieckim"},null,{"$f":"Jednostki!A28","v":"KPP1213"},{"$f":"Jednostki!C28","v":"Tomaszów Mazowiecki"},"BE6 -Z",null,null,null,"0170"]
[null,null,null,{"$f":"Jednostki!B29","v":"Komenda Powiatowa Policji w Wieluniu"},null,{"$f":"Jednostki!A29","v":"KPP1214"},{"$f":"Jednostki!C29","v":"Wieluń"},"B 6 -E",null,null,null,"0171"]
[null,null,null,{"$f":"Jednostki!B30","v":"Komenda Powiatowa Policji w Wieruszowie"},null,{"$f":"Jednostki!A30","v":"KPP1215"},{"$f":"Jednostki!C30","v":"Wieruszów"},"B 10-Z",null,null,null,"0172"]
[null,null,null,{"$f":"Jednostki!B31","v":"Komenda Powiatowa Policji w Zduńskiej Woli"},null,{"$f":"Jednostki!A31","v":"KPP1216"},{"$f":"Jednostki!C31","v":"Zduńska Wola"},"B 10-E",null,null,null,"0173"]
[null,null,null,{"$f":"Jednostki!B32","v":"Komenda Powiatowa Policji w Zgierzu"},null,{"$f":"Jednostki!A32","v":"KPP1217"},{"$f":"Jednostki!C32","v":"Zgierz"},"B 10-P",null,null,null,"0174"]
[null,null,null,{"$f":"Jednostki!B33","v":"Komenda Powiatowa Policji Łódź-Wschód"},null,{"$f":"Jednostki!A33","v":"KPP1218"},{"$f":"Jednostki!C33","v":"Koluszki"},"BE10-Z",null,null,null,"0180"]
[null,null,null,{"$f":"Jednostki!B34","v":"Komenda Powiatowa Policji w Brzezinach"},null,{"$f":"Jednostki!A34","v":"KPP1219"},{"$f":"Jednostki!C34","v":"Brzeziny"},"BE10-E",null,null,null,"0181"]
[null,null,null,{"$f":"Jednostki!B35","v":"Komenda Wojewódzka Policji w Łodzi"},null,{"$f":"Jednostki!A35","v":"KWP1200"},{"$f":"Jednostki!C35","v":"Łódź"},"BE10-P",null,null,null,"0182"]
[null,null,null,{"$f":"Jednostki!B36","v":"Komendant Wojewódzki Policji w Łodzi"},null,{"$f":"Jednostki!A36","v":"KWP1201"},{"$f":"Jednostki!C36","v":"Łódź"},"B 12-Z",null,null,null,"0183"]
[null,null,null,{"$f":"Jednostki!B37","v":"I Zastępca Komendanta Wojewódzkiego Policji w Łodzi "},null,{"$f":"Jednostki!A37","v":"KWP1202"},{"$f":"Jednostki!C37","v":"Łódź"},"B 15-Z",null,null,null,"0184"]
[null,null,null,{"$f":"Jednostki!B38","v":"Zastępca Komendanta Wojewódzkiego Policji w Łodzi"},null,{"$f":"Jednostki!A38","v":"KWP1203"},{"$f":"Jednostki!C38","v":"Łódź"},"B 15-E",null,null,null,"020"]
[null,null,null,{"$f":"Jednostki!B39","v":"Samodzielne Stanowisko do Spraw Audytu Wewnętrznego"},null,{"$f":"Jednostki!A39","v":"KWP1206"},{"$f":"Jednostki!C39","v":"Łódź"},"B 15-P",null,null,null,"021"]
[null,null,null,{"$f":"Jednostki!B40","v":"Wydział ds. Ochrony Informacji Niejawnych "},null,{"$f":"Jednostki!A40","v":"KWP1208"},{"$f":"Jednostki!C40","v":"Łódź"},"BE15-E",null,null,null,"0220"]
[null,null,null,{"$f":"Jednostki!B41","v":"Wydział Kadr i Szkolenia "},null,{"$f":"Jednostki!A41","v":"KWP1209"},{"$f":"Jednostki!C41","v":"Łódź"},"BE15-Z",null,null,null,"0221"]
[null,null,null,{"$f":"Jednostki!B42","v":"Zespół Prawny "},null,{"$f":"Jednostki!A42","v":"KWP1210"},{"$f":"Jednostki!C42","v":"Łódź"},"B 20-Z",null,null,null,"023"]
[null,null,null,{"$f":"Jednostki!B43","v":"Wydział Konwojowy"},null,{"$f":"Jednostki!A43","v":"KWP1211"},{"$f":"Jednostki!C43","v":"Łódź"},"B 20-E",null,null,null,"024"]
[null,null,null,{"$f":"Jednostki!B44","v":"Ośrodek Szkolenia Policji"},null,{"$f":"Jednostki!A44","v":"KWP1212"},{"$f":"Jednostki!C44","v":"Sieradz"},"B 20-P",null,null,null,"025"]
[null,null,null,{"$f":"Jednostki!B45","v":"Oddział Prewencji Policji "},null,{"$f":"Jednostki!A45","v":"KWP1213"},{"$f":"Jednostki!C45","v":"Łódź"},"BE20-Z",null,null,null,"026"]
[null,null,null,{"$f":"Jednostki!B46","v":"Samodzielny Pododdział Kontrterrorystyczny Policji w Łodzi"},null,{"$f":"Jednostki!A46","v":"KWP1214"},{"$f":"Jednostki!C46","v":"Łódź"},"BE20-E",null,null,null,"027"]
[null,null,null,{"$f":"Jednostki!B47","v":"Sekcja ds. Funduszy Pomocowych i Zamówień Publicznych "},null,{"$f":"Jednostki!A47","v":"KWP1215"},{"$f":"Jednostki!C47","v":"Łódź"},"BE20-P",null,null,null,"028"]
[null,null,null,{"$f":"Jednostki!B48","v":"Wydział Kryminalny "},null,{"$f":"Jednostki!A48","v":"KWP1216"},{"$f":"Jednostki!C48","v":"Łódź"},"B 25-Z",null,null,null,"030"]
[null,null,null,{"$f":"Jednostki!B49","v":"Wydział do walki z Przestępczością Gospodarczą "},null,{"$f":"Jednostki!A49","v":"KWP1217"},{"$f":"Jednostki!C49","v":"Łódź"},"B 25-E",null,null,null,"031"]
[null,null,null,{"$f":"Jednostki!B50","v":"Wydział Techniki Operacyjnej "},null,{"$f":"Jednostki!A50","v":"KWP1218"},{"$f":"Jednostki!C50","v":"Łódź"},"B 25-P",null,null,null,"032"]
[null,null,null,{"$f":"Jednostki!B51","v":"Laboratorium Kryminalistyczne "},null,{"$f":"Jednostki!A51","v":"KWP1219"},{"$f":"Jednostki!C51","v":"Łódź"},"BE25-E",null,null,null,"033"]
[null,null,null,{"$f":"Jednostki!B52","v":"Sztab Policji "},null,{"$f":"Jednostki!A52","v":"KWP1220"},{"$f":"Jednostki!C52","v":"Łódź"},"B 30-E",null,null,null,"034"]
[null,null,null,{"$f":"Jednostki!B53","v":"Wydział Postępowań Administracyjnych "},null,{"$f":"Jednostki!A53","v":"KWP1221"},{"$f":"Jednostki!C53","v":"Łódź"},"BE30-E",null,null,null,"035"]
[null,null,null,{"$f":"Jednostki!B54","v":"Wydział Finansów "},null,{"$f":"Jednostki!A54","v":"KWP1223"},{"$f":"Jednostki!C54","v":"Łódź"},"BE30-Z",null,null,null,"036"]
[null,null,null,{"$f":"Jednostki!B55","v":"Wydział Gospodarki Materiałowo - Technicznej "},null,{"$f":"Jednostki!A55","v":"KWP1225"},{"$f":"Jednostki!C55","v":"Łódź"},"B 35-E",null,null,null,"037"]
[null,null,null,{"$f":"Jednostki!B56","v":"Wydział Transportu "},null,{"$f":"Jednostki!A56","v":"KWP1226"},{"$f":"Jednostki!C56","v":"Łódź"},"BE35-E",null,null,null,"038"]
[null,null,null,{"$f":"Jednostki!B57","v":"Wydział Inwestycji i Remontów "},null,{"$f":"Jednostki!A57","v":"KWP1227"},{"$f":"Jednostki!C57","v":"Łódź"},"BE40-E",null,null,null,"0400"]
[null,null,null,{"$f":"Jednostki!B58","v":"Wydział Łączności i Informatyki "},null,{"$f":"Jednostki!A58","v":"KWP1228"},{"$f":"Jednostki!C58","v":"Łódź"},"B 50-Z",null,null,null,"0401"]
[null,null,null,{"$f":"Jednostki!B59","v":"Wydział Dochodzeniowo-Śledczy "},null,{"$f":"Jednostki!A59","v":"KWP1236"},{"$f":"Jednostki!C59","v":"Łódź"},"B 50-E",null,null,null,"0402"]
[null,null,null,{"$f":"Jednostki!B60","v":"Wydział Prewencji "},null,{"$f":"Jednostki!A60","v":"KWP1240"},{"$f":"Jednostki!C60","v":"Łódź"},"BE50-E",null,null,null,"0410"]
[null,null,null,{"$f":"Jednostki!B61","v":"Wydział Ruchu Drogowego "},null,{"$f":"Jednostki!A61","v":"KWP1241"},{"$f":"Jednostki!C61","v":"Sosnowiec"},"B 60-E",null,null,null,"0411"]
[null,null,null,{"$f":"Jednostki!B62","v":"Wydział Wywiadu Kryminalnego "},null,{"$f":"Jednostki!A62","v":"KWP1242"},{"$f":"Jednostki!C62","v":"Łódź"},"BE60-E",null,null,null,"042"]
[null,null,null,{"$f":"Jednostki!B63","v":"Wydział Komunikacji Społecznej "},null,{"$f":"Jednostki!A63","v":"KWP1243"},{"$f":"Jednostki!C63","v":"Łódź"},null,null,null,null,"043"]
[null,null,null,{"$f":"Jednostki!B64","v":"Zespół Prasowy "},null,{"$f":"Jednostki!A64","v":"KWP1244"},{"$f":"Jednostki!C64","v":"Łódź"},null,null,null,null,"0440"]
[null,null,null,{"$f":"Jednostki!B65","v":"Wydział Kontroli "},null,{"$f":"Jednostki!A65","v":"KWP1245"},{"$f":"Jednostki!C65","v":"Łódź"},null,null,null,null,"0441"]
[null,null,null,{"$f":"Jednostki!B66","v":"Wydział Psychologów "},null,{"$f":"Jednostki!A66","v":"KWP1247"},{"$f":"Jednostki!C66","v":"Łódź"},null,null,null,null,"0442"]
[null,null,null,{"$f":"Jednostki!B67","v":"Wydział do walki z Korupcją "},null,{"$f":"Jednostki!A67","v":"KWP1248"},{"$f":"Jednostki!C67","v":"Łódź"},null,null,null,null,"0443"]
[null,null,null,{"$f":"Jednostki!B68","v":"Wydział do walki z Cyberprzestępczością"},null,{"$f":"Jednostki!A68","v":"KWP1251"},{"$f":"Jednostki!C68","v":"Łódź"},null,null,null,null,"0444"]
[null,null,null,{"$f":"Jednostki!B69","v":"Wydział do walki z Przestępczością Narkotykową"},null,{"$f":"Jednostki!A69","v":"KWP1252"},{"$f":"Jednostki!C69","v":"Łódź"},null,null,null,null,"0445"]
[null,null,null,{"$f":"Jednostki!B70","v":"Wydział ds. Zwalczania Przestępczości Pseudokibiców"},null,{"$f":"Jednostki!A70","v":"KWP1253"},{"$f":"Jednostki!C70","v":"Łódź"},null,null,null,null,"050"]
[null,null,null,{"$f":"Jednostki!B71","v":"Zespół ds. Bezpieczeństwa i Higieny Pracy"},null,{"$f":"Jednostki!A71","v":"KWP1254"},{"$f":"Jednostki!C71","v":"Łódź"},null,null,null,null,"0510"]
[null,null,null,{"$f":"Jednostki!B72","v":"Wydział Doboru"},null,{"$f":"Jednostki!A72","v":"KWP1255"},{"$f":"Jednostki!C72","v":"Łódź"},null,null,null,null,"0511"]
[null,null,null,{"$f":"Jednostki!B73","v":"Zarząd w Łodzi "},null,{"$f":"Jednostki!A73","v":"CBŚ1162"},{"$f":"Jednostki!C73","v":"Łódź"},null,null,null,null,"0512"]
[null,null,null,null,null,null,null,null,null,null,null,"052"]
[null,null,null,null,null,null,null,null,null,null,null,"053"]
[null,null,null,null,null,null,null,null,null,null,null,"054"]
[null,null,null,null,null,null,null,null,null,null,null,"055"]
[null,null,null,null,null,null,null,null,null,null,null,"0600"]
[null,null,null,null,null,null,null,null,null,null,null,"0601"]
[null,null,null,null,null,null,null,null,null,null,null,"0602"]
[null,null,null,null,null,null,null,null,null,null,null,"0603"]
[null,null,null,null,null,null,null,null,null,null,null,"0604"]
[null,null,null,null,null,null,null,null,null,null,null,"0605"]
[null,null,null,null,null,null,null,null,null,null,null,"0610"]
[null,null,null,null,null,null,null,null,null,null,null,"0611"]
[null,null,null,null,null,null,null,null,null,null,null,"0612"]
[null,null,null,null,null,null,null,null,null,null,null,"0613"]
[null,null,null,null,null,null,null,null,null,null,null,"0614"]
[null,null,null,null,null,null,null,null,null,null,null,"0615"]
[null,null,null,null,null,null,null,null,null,null,null,"062"]
[null,null,null,null,null,null,null,null,null,null,null,"070"]
[null,null,null,null,null,null,null,null,null,null,null,"071"]
[null,null,null,null,null,null,null,null,null,null,null,"072"]
[null,null,null,null,null,null,null,null,null,null,null,"073"]
[null,null,null,null,null,null,null,null,null,null,null,"0740"]
[null,null,null,null,null,null,null,null,null,null,null,"0741"]
[null,null,null,null,null,null,null,null,null,null,null,"0742"]
[null,null,null,null,null,null,null,null,null,null,null,"0743"]
[null,null,null,null,null,null,null,null,null,null,null,"0744"]
[null,null,null,null,null,null,null,null,null,null,null,"0745"]
[null,null,null,null,null,null,null,null,null,null,null,"0746"]
[null,null,null,null,null,null,null,null,null,null,null,"0747"]
[null,null,null,null,null,null,null,null,null,null,null,"0748"]
[null,null,null,null,null,null,null,null,null,null,null,"075"]
[null,null,null,null,null,null,null,null,null,null,null,"076"]
[null,null,null,null,null,null,null,null,null,null,null,"077"]
[null,null,null,null,null,null,null,null,null,null,null,"078"]
[null,null,null,null,null,null,null,null,null,null,null,"0800"]
[null,null,null,null,null,null,null,null,null,null,null,"0801"]
[null,null,null,null,null,null,null,null,null,null,null,"0802"]
[null,null,null,null,null,null,null,null,null,null,null,"0803"]
[null,null,null,null,null,null,null,null,null,null,null,"0810"]
[null,null,null,null,null,null,null,null,null,null,null,"0811"]
[null,null,null,null,null,null,null,null,null,null,null,"0812"]
[null,null,null,null,null,null,null,null,null,null,null,"0813"]
[null,null,null,null,null,null,null,null,null,null,null,"0814"]
[null,null,null,null,null,null,null,null,null,null,null,"0815"]
[null,null,null,null,null,null,null,null,null,null,null,"0820"]
[null,null,null,null,null,null,null,null,null,null,null,"0821"]
[null,null,null,null,null,null,null,null,null,null,null,"0822"]
[null,null,null,null,null,null,null,null,null,null,null,"0823"]
[null,null,null,null,null,null,null,null,null,null,null,"083"]
[null,null,null,null,null,null,null,null,null,null,null,"084"]
[null,null,null,null,null,null,null,null,null,null,null,"085"]
[null,null,null,null,null,null,null,null,null,null,null,"0860"]
[null,null,null,null,null,null,null,null,null,null,null,"0861"]
[null,null,null,null,null,null,null,null,null,null,null,"090"]
[null,null,null,null,null,null,null,null,null,null,null,"0910"]
[null,null,null,null,null,null,null,null,null,null,null,"0911"]
[null,null,null,null,null,null,null,null,null,null,null,"0912"]
[null,null,null,null,null,null,null,null,null,null,null,"0913"]
[null,null,null,null,null,null,null,null,null,null,null,"0914"]
[null,null,null,null,null,null,null,null,null,null,null,"0915"]
[null,null,null,null,null,null,null,null,null,null,null,"092"]
[null,null,null,null,null,null,null,null,null,null,null,"093"]
[null,null,null,null,null,null,null,null,null,null,null,"094"]
[null,null,null,null,null,null,null,null,null,null,null,"095"]
[null,null,null,null,null,null,null,null,null,null,null,"096"]
[null,null,null,null,null,null,null,null,null,null,null,"097"]
[null,null,null,null,null,null,null,null,null,null,null,"0970"]
[null,null,null,null,null,null,null,null,null,null,null,"0971"]
[null,null,null,null,null,null,null,null,null,null,null,"10"]
[null,null,null,null,null,null,null,null,null,null,null,"110"]
[null,null,null,null,null,null,null,null,null,null,null,"1110"]
[null,null,null,null,null,null,null,null,null,null,null,"1111"]
[null,null,null,null,null,null,null,null,null,null,null,"1112"]
[null,null,null,null,null,null,null,null,null,null,null,"1113"]
[null,null,null,null,null,null,null,null,null,null,null,"1114"]
[null,null,null,null,null,null,null,null,null,null,null,"112"]
[null,null,null,null,null,null,null,null,null,null,null,"1130"]
[null,null,null,null,null,null,null,null,null,null,null,"1131"]
[null,null,null,null,null,null,null,null,null,null,null,"1132"]
[null,null,null,null,null,null,null,null,null,null,null,"114"]
[null,null,null,null,null,null,null,null,null,null,null,"1150"]
[null,null,null,null,null,null,null,null,null,null,null,"1151"]
[null,null,null,null,null,null,null,null,null,null,null,"1152"]
[null,null,null,null,null,null,null,null,null,null,null,"1200"]
[null,null,null,null,null,null,null,null,null,null,null,"1201"]
[null,null,null,null,null,null,null,null,null,null,null,"1202"]
[null,null,null,null,null,null,null,null,null,null,null,"1203"]
[null,null,null,null,null,null,null,null,null,null,null,"1204"]
[null,null,null,null,null,null,null,null,null,null,null,"1205"]
[null,null,null,null,null,null,null,null,null,null,null,"1206"]
[null,null,null,null,null,null,null,null,null,null,null,"1207"]
[null,null,null,null,null,null,null,null,null,null,null,"1208"]
[null,null,null,null,null,null,null,null,null,null,null,"1210"]
[null,null,null,null,null,null,null,null,null,null,null,"1211"]
[null,null,null,null,null,null,null,null,null,null,null,"1212"]
[null,null,null,null,null,null,null,null,null,null,null,"1213"]
[null,null,null,null,null,null,null,null,null,null,null,"1214"]
[null,null,null,null,null,null,null,null,null,null,null,"1215"]
[null,null,null,null,null,null,null,null,null,null,null,"1220"]
[null,null,null,null,null,null,null,null,null,null,null,"1221"]
[null,null,null,null,null,null,null,null,null,null,null,"1222"]
[null,null,null,null,null,null,null,null,null,null,null,"1223"]
[null,null,null,null,null,null,null,null,null,null,null,"1224"]
[null,null,null,null,null,null,null,null,null,null,null,"1230"]
[null,null,null,null,null,null,null,null,null,null,null,"1231"]
[null,null,null,null,null,null,null,null,null,null,null,"1232"]
[null,null,null,null,null,null,null,null,null,null,null,"1233"]
[null,null,null,null,null,null,null,null,null,null,null,"1240"]
[null,null,null,null,null,null,null,null,null,null,null,"1241"]
[null,null,null,null,null,null,null,null,null,null,null,"1242"]
[null,null,null,null,null,null,null,null,null,null,null,"125"]
[null,null,null,null,null,null,null,null,null,null,null,"126"]
[null,null,null,null,null,null,null,null,null,null,null,"127"]
[null,null,null,null,null,null,null,null,null,null,null,"1280"]
[null,null,null,null,null,null,null,null,null,null,null,"1281"]
[null,null,null,null,null,null,null,null,null,null,null,"1282"]
[null,null,null,null,null,null,null,null,null,null,null,"1283"]
[null,null,null,null,null,null,null,null,null,null,null,"1290"]
[null,null,null,null,null,null,null,null,null,null,null,"1291"]
[null,null,null,null,null,null,null,null,null,null,null,"1292"]
[null,null,null,null,null,null,null,null,null,null,null,"1300"]
[null,null,null,null,null,null,null,null,null,null,null,"1301"]
[null,null,null,null,null,null,null,null,null,null,null,"1302"]
[null,null,null,null,null,null,null,null,null,null,null,"1310"]
[null,null,null,null,null,null,null,null,null,null,null,"1311"]
[null,null,null,null,null,null,null,null,null,null,null,"1312"]
[null,null,null,null,null,null,null,null,null,null,null,"1313"]
[null,null,null,null,null,null,null,null,null,null,null,"1320"]
[null,null,null,null,null,null,null,null,null,null,null,"1321"]
[null,null,null,null,null,null,null,null,null,null,null,"1322"]
[null,null,null,null,null,null,null,null,null,null,null,"1323"]
[null,null,null,null,null,null,null,null,null,null,null,"1400"]
[null,null,null,null,null,null,null,null,null,null,null,"1401"]
[null,null,null,null,null,null,null,null,null,null,null,"1402"]
[null,null,null,null,null,null,null,null,null,null,null,"1403"]
[null,null,null,null,null,null,null,null,null,null,null,"141"]
[null,null,null,null,null,null,null,null,null,null,null,"1420"]
[null,null,null,null,null,null,null,null,null,null,null,"1421"]
[null,null,null,null,null,null,null,null,null,null,null,"1422"]
[null,null,null,null,null,null,null,null,null,null,null,"1423"]
[null,null,null,null,null,null,null,null,null,null,null,"1424"]
[null,null,null,null,null,null,null,null,null,null,null,"1425"]
[null,null,null,null,null,null,null,null,null,null,null,"144"]
[null,null,null,null,null,null,null,null,null,null,null,"150"]
[null,null,null,null,null,null,null,null,null,null,null,"151"]
[null,null,null,null,null,null,null,null,null,null,null,"152"]
[null,null,null,null,null,null,null,null,null,null,null,"160"]
[null,null,null,null,null,null,null,null,null,null,null,"161"]
[null,null,null,null,null,null,null,null,null,null,null,"162"]
[null,null,null,null,null,null,null,null,null,null,null,"163"]
[null,null,null,null,null,null,null,null,null,null,null,"170"]
[null,null,null,null,null,null,null,null,null,null,null,"171"]
[null,null,null,null,null,null,null,null,null,null,null,"172"]
[null,null,null,null,null,null,null,null,null,null,null,"173"]
[null,null,null,null,null,null,null,null,null,null,null,"174"]
[null,null,null,null,null,null,null,null,null,null,null,"175"]
[null,null,null,null,null,null,null,null,null,null,null,"180"]
[null,null,null,null,null,null,null,null,null,null,null,"181"]
[null,null,null,null,null,null,null,null,null,null,null,"182"]
[null,null,null,null,null,null,null,null,null,null,null,"183"]
[null,null,null,null,null,null,null,null,null,null,null,"184"]
[null,null,null,null,null,null,null,null,null,null,null,"185"]
[null,null,null,null,null,null,null,null,null,null,null,"190"]
[null,null,null,null,null,null,null,null,null,null,null,"191"]
[null,null,null,null,null,null,null,null,null,null,null,"192"]
[null,null,null,null,null,null,null,null,null,null,null,"1930"]
[null,null,null,null,null,null,null,null,null,null,null,"1931"]
[null,null,null,null,null,null,null,null,null,null,null,"1932"]
[null,null,null,null,null,null,null,null,null,null,null,"1933"]
[null,null,null,null,null,null,null,null,null,null,null,"1934"]
[null,null,null,null,null,null,null,null,null,null,null,"1940"]
[null,null,null,null,null,null,null,null,null,null,null,"1941"]
[null,null,null,null,null,null,null,null,null,null,null,"1942"]
[null,null,null,null,null,null,null,null,null,null,null,"1943"]
[null,null,null,null,null,null,null,null,null,null,null,"1944"]
[null,null,null,null,null,null,null,null,null,null,null,"20"]
[null,null,null,null,null,null,null,null,null,null,null,"210"]
[null,null,null,null,null,null,null,null,null,null,null,"211"]
[null,null,null,null,null,null,null,null,null,null,null,"212"]
[null,null,null,null,null,null,null,null,null,null,null,"213"]
[null,null,null,null,null,null,null,null,null,null,null,"220"]
[null,null,null,null,null,null,null,null,null,null,null,"2210"]
[null,null,null,null,null,null,null,null,null,null,null,"2211"]
[null,null,null,null,null,null,null,null,null,null,null,"2212"]
[null,null,null,null,null,null,null,null,null,null,null,"2213"]
[null,null,null,null,null,null,null,null,null,null,null,"2214"]
[null,null,null,null,null,null,null,null,null,null,null,"2215"]
[null,null,null,null,null,null,null,null,null,null,null,"2220"]
[null,null,null,null,null,null,null,null,null,null,null,"2221"]
[null,null,null,null,null,null,null,null,null,null,null,"2222"]
[null,null,null,null,null,null,null,null,null,null,null,"2223"]
[null,null,null,null,null,null,null,null,null,null,null,"2224"]
[null,null,null,null,null,null,null,null,null,null,null,"223"]
[null,null,null,null,null,null,null,null,null,null,null,"230"]
[null,null,null,null,null,null,null,null,null,null,null,"2310"]
[null,null,null,null,null,null,null,null,null,null,null,"2311"]
[null,null,null,null,null,null,null,null,null,null,null,"2312"]
[null,null,null,null,null,null,null,null,null,null,null,"2313"]
[null,null,null,null,null,null,null,null,null,null,null,"2314"]
[null,null,null,null,null,null,null,null,null,null,null,"2320"]
[null,null,null,null,null,null,null,null,null,null,null,"2321"]
[null,null,null,null,null,null,null,null,null,null,null,"2322"]
[null,null,null,null,null,null,null,null,null,null,null,"2323"]
[null,null,null,null,null,null,null,null,null,null,null,"2324"]
[null,null,null,null,null,null,null,null,null,null,null,"2325"]
[null,null,null,null,null,null,null,null,null,null,null,"2326"]
[null,null,null,null,null,null,null,null,null,null,null,"2327"]
[null,null,null,null,null,null,null,null,null,null,null,"2328"]
[null,null,null,null,null,null,null,null,null,null,null,"233"]
[null,null,null,null,null,null,null,null,null,null,null,"234"]
[null,null,null,null,null,null,null,null,null,null,null,"2350"]
[null,null,null,null,null,null,null,null,null,null,null,"2351"]
[null,null,null,null,null,null,null,null,null,null,null,"2352"]
[null,null,null,null,null,null,null,null,null,null,null,"2353"]
[null,null,null,null,null,null,null,null,null,null,null,"2354"]
[null,null,null,null,null,null,null,null,null,null,null,"2355"]
[null,null,null,null,null,null,null,null,null,null,null,"236"]
[null,null,null,null,null,null,null,null,null,null,null,"237"]
[null,null,null,null,null,null,null,null,null,null,null,"2380"]
[null,null,null,null,null,null,null,null,null,null,null,"2381"]
[null,null,null,null,null,null,null,null,null,null,null,"2382"]
[null,null,null,null,null,null,null,null,null,null,null,"2383"]
[null,null,null,null,null,null,null,null,null,null,null,"2386"]
[null,null,null,null,null,null,null,null,null,null,null,"240"]
[null,null,null,null,null,null,null,null,null,null,null,"241"]
[null,null,null,null,null,null,null,null,null,null,null,"242"]
[null,null,null,null,null,null,null,null,null,null,null,"243"]
[null,null,null,null,null,null,null,null,null,null,null,"244"]
[null,null,null,null,null,null,null,null,null,null,null,"245"]
[null,null,null,null,null,null,null,null,null,null,null,"246"]
[null,null,null,null,null,null,null,null,null,null,null,"247"]
[null,null,null,null,null,null,null,null,null,null,null,"25"]
[null,null,null,null,null,null,null,null,null,null,null,"260"]
[null,null,null,null,null,null,null,null,null,null,null,"261"]
[null,null,null,null,null,null,null,null,null,null,null,"262"]
[null,null,null,null,null,null,null,null,null,null,null,"270"]
[null,null,null,null,null,null,null,null,null,null,null,"271"]
[null,null,null,null,null,null,null,null,null,null,null,"272"]
[null,null,null,null,null,null,null,null,null,null,null,"273"]
[null,null,null,null,null,null,null,null,null,null,null,"274"]
[null,null,null,null,null,null,null,null,null,null,null,"280"]
[null,null,null,null,null,null,null,null,null,null,null,"281"]
[null,null,null,null,null,null,null,null,null,null,null,"282"]
[null,null,null,null,null,null,null,null,null,null,null,"283"]
[null,null,null,null,null,null,null,null,null,null,null,"284"]
[null,null,null,null,null,null,null,null,null,null,null,"285"]
[null,null,null,null,null,null,null,null,null,null,null,"286"]
[null,null,null,null,null,null,null,null,null,null,null,"300"]
[null,null,null,null,null,null,null,null,null,null,null,"301"]
[null,null,null,null,null,null,null,null,null,null,null,"310"]
[null,null,null,null,null,null,null,null,null,null,null,"3110"]
[null,null,null,null,null,null,null,null,null,null,null,"3111"]
[null,null,null,null,null,null,null,null,null,null,null,"3112"]
[null,null,null,null,null,null,null,null,null,null,null,"3113"]
[null,null,null,null,null,null,null,null,null,null,null,"312"]
[null,null,null,null,null,null,null,null,null,null,null,"313"]
[null,null,null,null,null,null,null,null,null,null,null,"320"]
[null,null,null,null,null,null,null,null,null,null,null,"321"]
[null,null,null,null,null,null,null,null,null,null,null,"322"]
[null,null,null,null,null,null,null,null,null,null,null,"323"]
[null,null,null,null,null,null,null,null,null,null,null,"324"]
[null,null,null,null,null,null,null,null,null,null,null,"325"]
[null,null,null,null,null,null,null,null,null,null,null,"330"]
[null,null,null,null,null,null,null,null,null,null,null,"331"]
[null,null,null,null,null,null,null,null,null,null,null,"332"]
[null,null,null,null,null,null,null,null,null,null,null,"333"]
[null,null,null,null,null,null,null,null,null,null,null,"334"]
[null,null,null,null,null,null,null,null,null,null,null,"335"]
[null,null,null,null,null,null,null,null,null,null,null,"336"]
[null,null,null,null,null,null,null,null,null,null,null,"337"]
[null,null,null,null,null,null,null,null,null,null,null,"34"]
[null,null,null,null,null,null,null,null,null,null,null,"350"]
[null,null,null,null,null,null,null,null,null,null,null,"351"]
[null,null,null,null,null,null,null,null,null,null,null,"36"]
[null,null,null,null,null,null,null,null,null,null,null,"37"]
[null,null,null,null,null,null,null,null,null,null,null,"3800"]
[null,null,null,null,null,null,null,null,null,null,null,"3801"]
[null,null,null,null,null,null,null,null,null,null,null,"40"]
[null,null,null,null,null,null,null,null,null,null,null,"4100"]
[null,null,null,null,null,null,null,null,null,null,null,"4101"]
[null,null,null,null,null,null,null,null,null,null,null,"4102"]
[null,null,null,null,null,null,null,null,null,null,null,"4103"]
[null,null,null,null,null,null,null,null,null,null,null,"4104"]
[null,null,null,null,null,null,null,null,null,null,null,"4105"]
[null,null,null,null,null,null,null,null,null,null,null,"411"]
[null,null,null,null,null,null,null,null,null,null,null,"4120"]
[null,null,null,null,null,null,null,null,null,null,null,"4121"]
[null,null,null,null,null,null,null,null,null,null,null,"413"]
[null,null,null,null,null,null,null,null,null,null,null,"414"]
[null,null,null,null,null,null,null,null,null,null,null,"4150"]
[null,null,null,null,null,null,null,null,null,null,null,"4151"]
[null,null,null,null,null,null,null,null,null,null,null,"420"]
[null,null,null,null,null,null,null,null,null,null,null,"4210"]
[null,null,null,null,null,null,null,null,null,null,null,"4211"]
[null,null,null,null,null,null,null,null,null,null,null,"4220"]
[null,null,null,null,null,null,null,null,null,null,null,"4221"]
[null,null,null,null,null,null,null,null,null,null,null,"423"]
[null,null,null,null,null,null,null,null,null,null,null,"424"]
[null,null,null,null,null,null,null,null,null,null,null,"43"]
[null,null,null,null,null,null,null,null,null,null,null,"44"]
[null,null,null,null,null,null,null,null,null,null,null,"500"]
[null,null,null,null,null,null,null,null,null,null,null,"501"]
[null,null,null,null,null,null,null,null,null,null,null,"502"]
[null,null,null,null,null,null,null,null,null,null,null,"5100"]
[null,null,null,null,null,null,null,null,null,null,null,"5101"]
[null,null,null,null,null,null,null,null,null,null,null,"5102"]
[null,null,null,null,null,null,null,null,null,null,null,"5103"]
[null,null,null,null,null,null,null,null,null,null,null,"5104"]
[null,null,null,null,null,null,null,null,null,null,null,"5110"]
[null,null,null,null,null,null,null,null,null,null,null,"5111"]
[null,null,null,null,null,null,null,null,null,null,null,"5112"]
[null,null,null,null,null,null,null,null,null,null,null,"5113"]
[null,null,null,null,null,null,null,null,null,null,null,"5114"]
[null,null,null,null,null,null,null,null,null,null,null,"512"]
[null,null,null,null,null,null,null,null,null,null,null,"513"]
[null,null,null,null,null,null,null,null,null,null,null,"5140"]
[null,null,null,null,null,null,null,null,null,null,null,"5141"]
[null,null,null,null,null,null,null,null,null,null,null,"5142"]
[null,null,null,null,null,null,null,null,null,null,null,"5143"]
[null,null,null,null,null,null,null,null,null,null,null,"5144"]
[null,null,null,null,null,null,null,null,null,null,null,"5145"]
[null,null,null,null,null,null,null,null,null,null,null,"5150"]
[null,null,null,null,null,null,null,null,null,null,null,"5151"]
[null,null,null,null,null,null,null,null,null,null,null,"5152"]
[null,null,null,null,null,null,null,null,null,null,null,"5153"]
[null,null,null,null,null,null,null,null,null,null,null,"5160"]
[null,null,null,null,null,null,null,null,null,null,null,"5161"]
[null,null,null,null,null,null,null,null,null,null,null,"517"]
[null,null,null,null,null,null,null,null,null,null,null,"5200"]
[null,null,null,null,null,null,null,null,null,null,null,"5201"]
[null,null,null,null,null,null,null,null,null,null,null,"5202"]
[null,null,null,null,null,null,null,null,null,null,null,"5203"]
[null,null,null,null,null,null,null,null,null,null,null,"5204"]
[null,null,null,null,null,null,null,null,null,null,null,"5205"]
[null,null,null,null,null,null,null,null,null,null,null,"5206"]
[null,null,null,null,null,null,null,null,null,null,null,"5210"]
[null,null,null,null,null,null,null,null,null,null,null,"5211"]
[null,null,null,null,null,null,null,null,null,null,null,"5212"]
[null,null,null,null,null,null,null,null,null,null,null,"5213"]
[null,null,null,null,null,null,null,null,null,null,null,"5214"]
[null,null,null,null,null,null,null,null,null,null,null,"5220"]
[null,null,null,null,null,null,null,null,null,null,null,"5221"]
[null,null,null,null,null,null,null,null,null,null,null,"5230"]
[null,null,null,null,null,null,null,null,null,null,null,"5231"]
[null,null,null,null,null,null,null,null,null,null,null,"5232"]
[null,null,null,null,null,null,null,null,null,null,null,"5233"]
[null,null,null,null,null,null,null,null,null,null,null,"5234"]
[null,null,null,null,null,null,null,null,null,null,null,"530"]
[null,null,null,null,null,null,null,null,null,null,null,"531"]
[null,null,null,null,null,null,null,null,null,null,null,"5320"]
[null,null,null,null,null,null,null,null,null,null,null,"5321"]
[null,null,null,null,null,null,null,null,null,null,null,"533"]
[null,null,null,null,null,null,null,null,null,null,null,"534"]
[null,null,null,null,null,null,null,null,null,null,null,"535"]
[null,null,null,null,null,null,null,null,null,null,null,"536"]
[null,null,null,null,null,null,null,null,null,null,null,"5370"]
[null,null,null,null,null,null,null,null,null,null,null,"5371"]
[null,null,null,null,null,null,null,null,null,null,null,"5380"]
[null,null,null,null,null,null,null,null,null,null,null,"5381"]
[null,null,null,null,null,null,null,null,null,null,null,"5382"]
[null,null,null,null,null,null,null,null,null,null,null,"5383"]
[null,null,null,null,null,null,null,null,null,null,null,"5384"]
[null,null,null,null,null,null,null,null,null,null,null,"539"]
[null,null,null,null,null,null,null,null,null,null,null,"5400"]
[null,null,null,null,null,null,null,null,null,null,null,"5401"]
[null,null,null,null,null,null,null,null,null,null,null,"5402"]
[null,null,null,null,null,null,null,null,null,null,null,"5403"]
[null,null,null,null,null,null,null,null,null,null,null,"5410"]
[null,null,null,null,null,null,null,null,null,null,null,"5411"]
[null,null,null,null,null,null,null,null,null,null,null,"5420"]
[null,null,null,null,null,null,null,null,null,null,null,"5421"]
[null,null,null,null,null,null,null,null,null,null,null,"5422"]
[null,null,null,null,null,null,null,null,null,null,null,"5430"]
[null,null,null,null,null,null,null,null,null,null,null,"5431"]
[null,null,null,null,null,null,null,null,null,null,null,"5432"]
[null,null,null,null,null,null,null,null,null,null,null,"5433"]
[null,null,null,null,null,null,null,null,null,null,null,"5434"]
[null,null,null,null,null,null,null,null,null,null,null,"5435"]
[null,null,null,null,null,null,null,null,null,null,null,"5436"]
[null,null,null,null,null,null,null,null,null,null,null,"5437"]
[null,null,null,null,null,null,null,null,null,null,null,"5440"]
[null,null,null,null,null,null,null,null,null,null,null,"5441"]
[null,null,null,null,null,null,null,null,null,null,null,"5442"]
[null,null,null,null,null,null,null,null,null,null,null,"5443"]
[null,null,null,null,null,null,null,null,null,null,null,"5444"]
[null,null,null,null,null,null,null,null,null,null,null,"5445"]
[null,null,null,null,null,null,null,null,null,null,null,"5446"]
[null,null,null,null,null,null,null,null,null,null,null,"5447"]
[null,null,null,null,null,null,null,null,null,null,null,"5448"]
[null,null,null,null,null,null,null,null,null,null,null,"5449"]
[null,null,null,null,null,null,null,null,null,null,null,"5450"]
[null,null,null,null,null,null,null,null,null,null,null,"5451"]
[null,null,null,null,null,null,null,null,null,null,null,"5452"]
[null,null,null,null,null,null,null,null,null,null,null,"5453"]
[null,null,null,null,null,null,null,null,null,null,null,"5454"]
[null,null,null,null,null,null,null,null,null,null,null,"5455"]
[null,null,null,null,null,null,null,null,null,null,null,"5460"]
[null,null,null,null,null,null,null,null,null,null,null,"5461"]
[null,null,null,null,null,null,null,null,null,null,null,"5462"]
[null,null,null,null,null,null,null,null,null,null,null,"5463"]
[null,null,null,null,null,null,null,null,null,null,null,"5464"]
[null,null,null,null,null,null,null,null,null,null,null,"5465"]
[null,null,null,null,null,null,null,null,null,null,null,"5466"]
[null,null,null,null,null,null,null,null,null,null,null,"5470"]
[null,null,null,null,null,null,null,null,null,null,null,"5471"]
[null,null,null,null,null,null,null,null,null,null,null,"5472"]
[null,null,null,null,null,null,null,null,null,null,null,"5473"]
[null,null,null,null,null,null,null,null,null,null,null,"5474"]
[null,null,null,null,null,null,null,null,null,null,null,"5475"]
[null,null,null,null,null,null,null,null,null,null,null,"5480"]
[null,null,null,null,null,null,null,null,null,null,null,"5481"]
[null,null,null,null,null,null,null,null,null,null,null,"5482"]
[null,null,null,null,null,null,null,null,null,null,null,"5483"]
[null,null,null,null,null,null,null,null,null,null,null,"5484"]
[null,null,null,null,null,null,null,null,null,null,null,"5485"]
[null,null,null,null,null,null,null,null,null,null,null,"5490"]
[null,null,null,null,null,null,null,null,null,null,null,"5491"]
[null,null,null,null,null,null,null,null,null,null,null,"5492"]
[null,null,null,null,null,null,null,null,null,null,null,"5493"]
[null,null,null,null,null,null,null,null,null,null,null,"5494"]
[null,null,null,null,null,null,null,null,null,null,null,"5495"]
[null,null,null,null,null,null,null,null,null,null,null,"550"]
[null,null,null,null,null,null,null,null,null,null,null,"551"]
[null,null,null,null,null,null,null,null,null,null,null,"552"]
[null,null,null,null,null,null,null,null,null,null,null,"5600"]
[null,null,null,null,null,null,null,null,null,null,null,"56010"]
[null,null,null,null,null,null,null,null,null,null,null,"56011"]
[null,null,null,null,null,null,null,null,null,null,null,"5602"]
[null,null,null,null,null,null,null,null,null,null,null,"5603"]
[null,null,null,null,null,null,null,null,null,null,null,"5604"]
[null,null,null,null,null,null,null,null,null,null,null,"5605"]
[null,null,null,null,null,null,null,null,null,null,null,"56060"]
[null,null,null,null,null,null,null,null,null,null,null,"56061"]
[null,null,null,null,null,null,null,null,null,null,null,"56070"]
[null,null,null,null,null,null,null,null,null,null,null,"56071"]
[null,null,null,null,null,null,null,null,null,null,null,"56080"]
[null,null,null,null,null,null,null,null,null,null,null,"56081"]
[null,null,null,null,null,null,null,null,null,null,null,"5610"]
[null,null,null,null,null,null,null,null,null,null,null,"5611"]
[null,null,null,null,null,null,null,null,null,null,null,"5612"]
[null,null,null,null,null,null,null,null,null,null,null,"5613"]
[null,null,null,null,null,null,null,null,null,null,null,"5614"]
[null,null,null,null,null,null,null,null,null,null,null,"570"]
[null,null,null,null,null,null,null,null,null,null,null,"571"]
[null,null,null,null,null,null,null,null,null,null,null,"572"]
[null,null,null,null,null,null,null,null,null,null,null,"5730"]
[null,null,null,null,null,null,null,null,null,null,null,"5731"]
[null,null,null,null,null,null,null,null,null,null,null,"5732"]
[null,null,null,null,null,null,null,null,null,null,null,"5733"]
[null,null,null,null,null,null,null,null,null,null,null,"5734"]
[null,null,null,null,null,null,null,null,null,null,null,"5735"]
[null,null,null,null,null,null,null,null,null,null,null,"5736"]
[null,null,null,null,null,null,null,null,null,null,null,"5737"]
[null,null,null,null,null,null,null,null,null,null,null,"5738"]
[null,null,null,null,null,null,null,null,null,null,null,"5739"]
[null,null,null,null,null,null,null,null,null,null,null,"580"]
[null,null,null,null,null,null,null,null,null,null,null,"581"]
[null,null,null,null,null,null,null,null,null,null,null,"582"]
[null,null,null,null,null,null,null,null,null,null,null,"583"]
[null,null,null,null,null,null,null,null,null,null,null,"584"]
[null,null,null,null,null,null,null,null,null,null,null,"5850"]
[null,null,null,null,null,null,null,null,null,null,null,"5851"]
[null,null,null,null,null,null,null,null,null,null,null,"5852"]
[null,null,null,null,null,null,null,null,null,null,null,"5853"]
[null,null,null,null,null,null,null,null,null,null,null,"5854"]
[null,null,null,null,null,null,null,null,null,null,null,"5855"]
[null,null,null,null,null,null,null,null,null,null,null,"6000"]
[null,null,null,null,null,null,null,null,null,null,null,"6001"]
[null,null,null,null,null,null,null,null,null,null,null,"6002"]
[null,null,null,null,null,null,null,null,null,null,null,"6003"]
[null,null,null,null,null,null,null,null,null,null,null,"6004"]
[null,null,null,null,null,null,null,null,null,null,null,"6005"]
[null,null,null,null,null,null,null,null,null,null,null,"601"]
[null,null,null,null,null,null,null,null,null,null,null,"6020"]
[null,null,null,null,null,null,null,null,null,null,null,"6021"]
[null,null,null,null,null,null,null,null,null,null,null,"603"]
[null,null,null,null,null,null,null,null,null,null,null,"604"]
[null,null,null,null,null,null,null,null,null,null,null,"605"]
[null,null,null,null,null,null,null,null,null,null,null,"606"]
[null,null,null,null,null,null,null,null,null,null,null,"61"]
[null,null,null,null,null,null,null,null,null,null,null,"620"]
[null,null,null,null,null,null,null,null,null,null,null,"621"]
[null,null,null,null,null,null,null,null,null,null,null,"6210"]
[null,null,null,null,null,null,null,null,null,null,null,"622"]
[null,null,null,null,null,null,null,null,null,null,null,"623"]
[null,null,null,null,null,null,null,null,null,null,null,"624"]
[null,null,null,null,null,null,null,null,null,null,null,"625"]
[null,null,null,null,null,null,null,null,null,null,null,"626"]
[null,null,null,null,null,null,null,null,null,null,null,"627"]
[null,null,null,null,null,null,null,null,null,null,null,"628"]
[null,null,null,null,null,null,null,null,null,null,null,"630"]
[null,null,null,null,null,null,null,null,null,null,null,"631"]
[null,null,null,null,null,null,null,null,null,null,null,"632"]
[null,null,null,null,null,null,null,null,null,null,null,"633"]
[null,null,null,null,null,null,null,null,null,null,null,"634"]
[null,null,null,null,null,null,null,null,null,null,null,"640"]
[null,null,null,null,null,null,null,null,null,null,null,"641"]
[null,null,null,null,null,null,null,null,null,null,null,"642"]
[null,null,null,null,null,null,null,null,null,null,null,"643"]
[null,null,null,null,null,null,null,null,null,null,null,"644"]
[null,null,null,null,null,null,null,null,null,null,null,"645"]
[null,null,null,null,null,null,null,null,null,null,null,"646"]
[null,null,null,null,null,null,null,null,null,null,null,"647"]
[null,null,null,null,null,null,null,null,null,null,null,"648"]
[null,null,null,null,null,null,null,null,null,null,null,"65"]
[null,null,null,null,null,null,null,null,null,null,null,"700"]
[null,null,null,null,null,null,null,null,null,null,null,"701"]
[null,null,null,null,null,null,null,null,null,null,null,"702"]
[null,null,null,null,null,null,null,null,null,null,null,"710"]
[null,null,null,null,null,null,null,null,null,null,null,"711"]
[null,null,null,null,null,null,null,null,null,null,null,"712"]
[null,null,null,null,null,null,null,null,null,null,null,"7130"]
[null,null,null,null,null,null,null,null,null,null,null,"7131"]
[null,null,null,null,null,null,null,null,null,null,null,"7132"]
[null,null,null,null,null,null,null,null,null,null,null,"7133"]
[null,null,null,null,null,null,null,null,null,null,null,"7140"]
[null,null,null,null,null,null,null,null,null,null,null,"7141"]
[null,null,null,null,null,null,null,null,null,null,null,"7142"]
[null,null,null,null,null,null,null,null,null,null,null,"7143"]
[null,null,null,null,null,null,null,null,null,null,null,"7144"]
[null,null,null,null,null,null,null,null,null,null,null,"7145"]
[null,null,null,null,null,null,null,null,null,null,null,"7146"]
[null,null,null,null,null,null,null,null,null,null,null,"7150"]
[null,null,null,null,null,null,null,null,null,null,null,"7151"]
[null,null,null,null,null,null,null,null,null,null,null,"7152"]
[null,null,null,null,null,null,null,null,null,null,null,"7153"]
[null,null,null,null,null,null,null,null,null,null,null,"7160"]
[null,null,null,null,null,null,null,null,null,null,null,"7161"]
[null,null,null,null,null,null,null,null,null,null,null,"7162"]
[null,null,null,null,null,null,null,null,null,null,null,"7163"]
[null,null,null,null,null,null,null,null,null,null,null,"720"]
[null,null,null,null,null,null,null,null,null,null,null,"73"]
[null,null,null,null,null,null,null,null,null,null,null,"7400"]
[null,null,null,null,null,null,null,null,null,null,null,"7401"]
[null,null,null,null,null,null,null,null,null,null,null,"7402"]
[null,null,null,null,null,null,null,null,null,null,null,"75"]
[null,null,null,null,null,null,null,null,null,null,null,"800"]
[null,null,null,null,null,null,null,null,null,null,null,"801"]
[null,null,null,null,null,null,null,null,null,null,null,"802"]

{"sheet":"Ewid1","index":2,"n_rows":108,"n_cols":16,"rows_kept":108,"cut":false,"hidden":true,"merged":[[5,6,5,8],[6,0,6,4],[6,6,6,10]]}
[null,null,null,null,"Arkusz wypełniany automatycznie poza polami oznaczonymi kolorem zielonym i żółtym (zawierającymi komentarze)"]
[]
["Po zakończeniu edycji spisu zaznacz cały wiersz 5, skopiuj i wklej zawartość do bazy danych.",null,null,null,null,null,null,{"$f":"IF(D6=\"KOMENDA WOJ\",E6,F6)","v":"KWP1208"},{"$f":"LEFT(H3,3)","v":"KWP"},{"$f":"MID(H3,2,7)","v":"WP1208"}]
["IDSpisu","NrSpisu","OznLit","Archiwum","DataSpisu","L.dz.arch.KWP","Jednostka","L.dz","Klauzula","Miejscowość","Data edycji","Rok1","Rok2","IlośćPozycji","IlośćTeczek","Uwagi"]
[null,{"$f":"dok.jawna!G12","v":0},{"$f":"dok.jawna!I12","v":0},17,{"$f":"dok.jawna!E18","v":"00:00:00"},"OIN-Dp-",{"$f":"IF(D6=\"KOMENDA WOJ\",E6,F6)","v":"KWP1208"},{"$f":"TRIM(dok.jawna!C5)","v":""},1,{"$f":"dok.jawna!H1","v":"Łódź"},{"$f":"dok.jawna!J1","v":"00:00:00"},{"$f":"MINA(Rok_1)*1","v":{"$error":"#VALUE!"}},{"$f":"MAXA(Rok_2)*1","v":{"$error":"#VALUE!"}},{"$f":"DCOUNT(dok.jawna!A22:D125,1,A22:A125)","v":100},{"$f":"SUM(dok.jawna!G26:G125)","v":0}]
[null,null,null,{"$f":"LEFT(G6,11)","v":"Komenda Woj"},{"$f":"VLOOKUP(dok.jawna!A2,Jednostki!B83:C152,2,FALSE)","v":"KWP1208"},{"$f":"VLOOKUP(dok.jawna!A1,Siedziba,3)","v":"KWP1200"},{"$f":"dok.jawna!A1","v":"Komenda Wojewódzka Policji w Łodzi"}]
["Zaznacz wszystkie wypełnione wiersze (jednostki archiwalne), skopiu je i wklej do bazy danych.  ",null,null,null,null,null,{"$f":"TRIM(L7)","v":"Wydział ds. Ochrony Informacji Niejawnych"},null,null,null,null,{"$f":"VLOOKUP(H3,Jednostki!A4:B73,2)","v":"Wydział ds. Ochrony Informacji Niejawnych "}]
["IDSpisu","Jednostka","NrSpisu","PozSpisu","Symbol","NrTeczki","TytułTeczki","Data1","Data2","IlośćTeczek","KatArch","Klauzula","POP","Uwagi"]
[{"$f":"A5","v":0},{"$f":"G5","v":"KWP1208"},{"$f":"B5","v":0},{"$f":"dok.jawna!A26","v":1},{"$f":"IF(dok.jawna!$B$25=2020,dok.jawna!B26&\" \"&\"Q\",dok.jawna!B26&\" \"&\"N\")","v":" Q"},{"$f":"dok.jawna!C26","v":0},{"$f":"TRIM(dok.jawna!D26)","v":""},{"$f":"dok.jawna!E26","v":0},{"$f":"dok.jawna!F26","v":0},{"$f":"dok.jawna!G26","v":0},{"$f":"dok.jawna!H26","v":0},{"$f":"I5","v":1},"0",{"$f":"dok.jawna!J26","v":0}]
[{"$f":"A9","v":0},{"$f":"B9","v":"KWP1208"},{"$f":"C9","v":0},{"$f":"dok.jawna!A27","v":2},{"$f":"IF(dok.jawna!$B$25=2020,dok.jawna!B27&\" \"&\"Q\",dok.jawna!B27&\" \"&\"N\")","v":" Q"},{"$f":"dok.jawna!C27","v":0},{"$f":"TRIM(dok.jawna!D27)","v":""},{"$f":"dok.jawna!E27","v":0},{"$f":"dok.jawna!F27","v":0},{"$f":"dok.jawna!G27","v":0},{"$f":"dok.jawna!H27","v":0},{"$f":"L9","v":1},"0",{"$f":"dok.jawna!J27","v":0}]
[{"$f":"A10","v":0},{"$f":"B10","v":"KWP1208"},{"$f":"C10","v":0},{"$f":"dok.jawna!A28","v":3},{"$f":"IF(dok.jawna!$B$25=2020,dok.jawna!B28&\" \"&\"Q\",dok.jawna!B28&\" \"&\"N\")","v":" Q"},{"$f":"dok.jawna!C28","v":0},{"$f":"TRIM(dok.jawna!D28)","v":""},{"$f":"dok.jawna!E28","v":0},{"$f":"dok.jawna!F28","v":0},{"$f":"dok.jawna!G28","v":0},{"$f":"dok.jawna!H28","v":0},{"$f":"L10","v":1},"0",{"$f":"dok.jawna!J28","v":0}]
[0,"KWP1208",0,{"$f":"dok.jawna!A29","v":4},{"$f":"IF(dok.jawna!$B$25=2020,dok.jawna!B29&\" \"&\"Q\",dok.jawna!B29&\" \"&\"N\")","v":" Q"},{"$f":"dok.jawna!C29","v":0},{"$f":"TRIM(dok.jawna!D29)","v":""},{"$f":"dok.jawna!E29","v":0},{"$f":"dok.jawna!F29","v":0},{"$f":"dok.jawna!G29","v":0},{"$f":"dok.jawna!H29","v":0},1,"0",{"$f":"dok.jawna!J29","v":0}]
[0,"KWP1208",0,{"$f":"dok.jawna!A30","v":5},{"$f":"IF(dok.jawna!$B$25=2020,dok.jawna!B30&\" \"&\"Q\",dok.jawna!B30&\" \"&\"N\")","v":" Q"},{"$f":"dok.jawna!C30","v":0},{"$f":"TRIM(dok.jawna!D30)","v":""},{"$f":"dok.jawna!E30","v":0},{"$f":"dok.jawna!F30","v":0},{"$f":"dok.jawna!G30","v":0},{"$f":"dok.jawna!H30","v":0},1,"0",{"$f":"dok.jawna!J30","v":0}]
[0,"KWP1208",0,{"$f":"dok.jawna!A31","v":6},{"$f":"IF(dok.jawna!$B$25=2020,dok.jawna!B31&\" \"&\"Q\",dok.jawna!B31&\" \"&\"N\")","v":" Q"},{"$f":"dok.jawna!C31","v":0},{"$f":"TRIM(dok.jawna!D31)","v":""},{"$f":"dok.jawna!E31","v":0},{"$f":"dok.jawna!F31","v":0},{"$f":"dok.jawna!G31","v":0},{"$f":"dok.jawna!H31","v":0},1,"0",{"$f":"dok.jawna!J31","v":0}]
[0,"KWP1208",0,{"$f":"dok.jawna!A32","v":7},{"$f":"IF(dok.jawna!$B$25=2020,dok.jawna!B32&\" \"&\"Q\",dok.jawna!B32&\" \"&\"N\")","v":" Q"},{"$f":"dok.jawna!C32","v":0},{"$f":"TRIM(dok.jawna!D32)","v":""},{"$f":"dok.jawna!E32","v":0},{"$f":"dok.jawna!F32","v":0},{"$f":"dok.jawna!G32","v":0},{"$f":"dok.jawna!H32","v":0},1,"0",{"$f":"dok.jawna!J32","v":0}]
[0,"KWP1208",0,{"$f":"dok.jawna!A33","v":8},{"$f":"IF(dok.jawna!$B$25=2020,dok.jawna!B33&\" \"&\"Q\",dok.jawna!B33&\" \"&\"N\")","v":" Q"},{"$f":"dok.jawna!C33","v":0},{"$f":"TRIM(dok.jawna!D33)","v":""},{"$f":"dok.jawna!E33","v":0},{"$f":"dok.jawna!F33","v":0},{"$f":"dok.jawna!G33","v":0},{"$f":"dok.jawna!H33","v":0},1,"0",{"$f":"dok.jawna!J33","v":0}]
[0,"KWP1208",0,{"$f":"dok.jawna!A34","v":9},{"$f":"IF(dok.jawna!$B$25=2020,dok.jawna!B34&\" \"&\"Q\",dok.jawna!B34&\" \"&\"N\")","v":" Q"},{"$f":"dok.jawna!C34","v":0},{"$f":"TRIM(dok.jawna!D34)","v":""},{"$f":"dok.jawna!E34","v":0},{"$f":"dok.jawna!F34","v":0},{"$f":"dok.jawna!G34","v":0},{"$f":"dok.jawna!H34","v":0},1,"0",{"$f":"dok.jawna!J34","v":0}]
[0,"KWP1208",0,{"$f":"dok.jawna!A35","v":10},{"$f":"IF(dok.jawna!$B$25=2020,dok.jawna!B35&\" \"&\"Q\",dok.jawna!B35&\" \"&\"N\")","v":" Q"},{"$f":"dok.jawna!C35","v":0},{"$f":"TRIM(dok.jawna!D35)","v":""},{"$f":"dok.jawna!E35","v":0},{"$f":"dok.jawna!F35","v":0},{"$f":"dok.jawna!G35","v":0},{"$f":"dok.jawna!H35","v":0},1,"0",{"$f":"dok.jawna!J35","v":0}]
[0,"KWP1208",0,{"$f":"dok.jawna!A36","v":11},{"$f":"IF(dok.jawna!$B$25=2020,dok.jawna!B36&\" \"&\"Q\",dok.jawna!B36&\" \"&\"N\")","v":" Q"},{"$f":"dok.jawna!C36","v":0},{"$f":"TRIM(dok.jawna!D36)","v":""},{"$f":"dok.jawna!E36","v":0},{"$f":"dok.jawna!F36","v":0},{"$f":"dok.jawna!G36","v":0},{"$f":"dok.jawna!H36","v":0},1,"0",{"$f":"dok.jawna!J36","v":0}]
[0,"KWP1208",0,{"$f":"dok.jawna!A37","v":12},{"$f":"IF(dok.jawna!$B$25=2020,dok.jawna!B37&\" \"&\"Q\",dok.jawna!B37&\" \"&\"N\")","v":" Q"},{"$f":"dok.jawna!C37","v":0},{"$f":"TRIM(dok.jawna!D37)","v":""},{"$f":"dok.jawna!E37","v":0},{"$f":"dok.jawna!F37","v":0},{"$f":"dok.jawna!G37","v":0},{"$f":"dok.jawna!H37","v":0},1,"0",{"$f":"dok.jawna!J37","v":0}]
[0,"KWP1208",0,{"$f":"dok.jawna!A38","v":13},{"$f":"IF(dok.jawna!$B$25=2020,dok.jawna!B38&\" \"&\"Q\",dok.jawna!B38&\" \"&\"N\")","v":" Q"},{"$f":"dok.jawna!C38","v":0},{"$f":"TRIM(dok.jawna!D38)","v":""},{"$f":"dok.jawna!E38","v":0},{"$f":"dok.jawna!F38","v":0},{"$f":"dok.jawna!G38","v":0},{"$f":"dok.jawna!H38","v":0},1,"0",{"$f":"dok.jawna!J38","v":0}]
[0,"KWP1208",0,{"$f":"dok.jawna!A39","v":14},{"$f":"IF(dok.jawna!$B$25=2020,dok.jawna!B39&\" \"&\"Q\",dok.jawna!B39&\" \"&\"N\")","v":" Q"},{"$f":"dok.jawna!C39","v":0},{"$f":"TRIM(dok.jawna!D39)","v":""},{"$f":"dok.jawna!E39","v":0},{"$f":"dok.jawna!F39","v":0},{"$f":"dok.jawna!G39","v":0},{"$f":"dok.jawna!H39","v":0},1,"0",{"$f":"dok.jawna!J39","v":0}]
[{"$f":"A22","v":0},"KWP1208",0,{"$f":"dok.jawna!A40","v":15},{"$f":"IF(dok.jawna!$B$25=2020,dok.jawna!B40&\" \"&\"Q\",dok.jawna!B40&\" \"&\"N\")","v":" Q"},{"$f":"dok.jawna!C40","v":0},{"$f":"TRIM(dok.jawna!D40)","v":""},{"$f":"dok.jawna!E40","v":0},{"$f":"dok.jawna!F40","v":0},{"$f":"dok.jawna!G40","v":0},{"$f":"dok.jawna!H40","v":0},1,"0",{"$f":"dok.jawna!J40","v":0}]
[{"$f":"A23","v":0},"KWP1208",0,{"$f":"dok.jawna!A41","v":16},{"$f":"IF(dok.jawna!$B$25=2020,dok.jawna!B41&\" \"&\"Q\",dok.jawna!B41&\" \"&\"N\")","v":" Q"},{"$f":"dok.jawna!C41","v":0},{"$f":"TRIM(dok.jawna!D41)","v":""},{"$f":"dok.jawna!E41","v":0},{"$f":"dok.jawna!F41","v":0},{"$f":"dok.jawna!G41","v":0},{"$f":"dok.jawna!H41","v":0},1,"0",{"$f":"dok.jawna!J41","v":0}]
[{"$f":"A24","v":0},"KWP1208",0,{"$f":"dok.jawna!A42","v":17},{"$f":"IF(dok.jawna!$B$25=2020,dok.jawna!B42&\" \"&\"Q\",dok.jawna!B42&\" \"&\"N\")","v":" Q"},{"$f":"dok.jawna!C42","v":0},{"$f":"TRIM(dok.jawna!D42)","v":""},{"$f":"dok.jawna!E42","v":0},{"$f":"dok.jawna!F42","v":0},{"$f":"dok.jawna!G42","v":0},{"$f":"dok.jawna!H42","v":0},1,"0",{"$f":"dok.jawna!J42","v":0}]
[{"$f":"A25","v":0},"KWP1208",0,{"$f":"dok.jawna!A43","v":18},{"$f":"IF(dok.jawna!$B$25=2020,dok.jawna!B43&\" \"&\"Q\",dok.jawna!B43&\" \"&\"N\")","v":" Q"},{"$f":"dok.jawna!C43","v":0},{"$f":"TRIM(dok.jawna!D43)","v":""},{"$f":"dok.jawna!E43","v":0},{"$f":"dok.jawna!F43","v":0},{"$f":"dok.jawna!G43","v":0},{"$f":"dok.jawna!H43","v":0},1,"0",{"$f":"dok.jawna!J43","v":0}]
[{"$f":"A26","v":0},"KWP1208",0,{"$f":"dok.jawna!A44","v":19},{"$f":"IF(dok.jawna!$B$25=2020,dok.jawna!B44&\" \"&\"Q\",dok.jawna!B44&\" \"&\"N\")","v":" Q"},{"$f":"dok.jawna!C44","v":0},{"$f":"TRIM(dok.jawna!D44)","v":""},{"$f":"dok.jawna!E44","v":0},{"$f":"dok.jawna!F44","v":0},{"$f":"dok.jawna!G44","v":0},{"$f":"dok.jawna!H44","v":0},1,"0",{"$f":"dok.jawna!J44","v":0}]
[0,"KWP1208",0,{"$f":"dok.jawna!A45","v":20},{"$f":"IF(dok.jawna!$B$25=2020,dok.jawna!B45&\" \"&\"Q\",dok.jawna!B45&\" \"&\"N\")","v":" Q"},{"$f":"dok.jawna!C45","v":0},{"$f":"TRIM(dok.jawna!D45)","v":""},{"$f":"dok.jawna!E45","v":0},{"$f":"dok.jawna!F45","v":0},{"$f":"dok.jawna!G45","v":0},{"$f":"dok.jawna!H45","v":0},1,"0",{"$f":"dok.jawna!J45","v":0}]
[0,"KWP1208",0,{"$f":"dok.jawna!A46","v":21},{"$f":"IF(dok.jawna!$B$25=2020,dok.jawna!B46&\" \"&\"Q\",dok.jawna!B46&\" \"&\"N\")","v":" Q"},{"$f":"dok.jawna!C46","v":0},{"$f":"TRIM(dok.jawna!D46)","v":""},{"$f":"dok.jawna!E46","v":0},{"$f":"dok.jawna!F46","v":0},{"$f":"dok.jawna!G46","v":0},{"$f":"dok.jawna!H46","v":0},{"$f":"L28","v":1},"0",{"$f":"dok.jawna!J46","v":0}]
[0,"KWP1208",0,{"$f":"dok.jawna!A47","v":22},{"$f":"IF(dok.jawna!$B$25=2020,dok.jawna!B47&\" \"&\"Q\",dok.jawna!B47&\" \"&\"N\")","v":" Q"},{"$f":"dok.jawna!C47","v":0},{"$f":"TRIM(dok.jawna!D47)","v":""},{"$f":"dok.jawna!E47","v":0},{"$f":"dok.jawna!F47","v":0},{"$f":"dok.jawna!G47","v":0},{"$f":"dok.jawna!H47","v":0},{"$f":"L29","v":1},"0",{"$f":"dok.jawna!J47","v":0}]
[0,"KWP1208",0,{"$f":"dok.jawna!A48","v":23},{"$f":"IF(dok.jawna!$B$25=2020,dok.jawna!B48&\" \"&\"Q\",dok.jawna!B48&\" \"&\"N\")","v":" Q"},{"$f":"dok.jawna!C48","v":0},{"$f":"TRIM(dok.jawna!D48)","v":""},{"$f":"dok.jawna!E48","v":0},{"$f":"dok.jawna!F48","v":0},{"$f":"dok.jawna!G48","v":0},{"$f":"dok.jawna!H48","v":0},1,"0",{"$f":"dok.jawna!J48","v":0}]
[0,"KWP1208",0,{"$f":"dok.jawna!A49","v":24},{"$f":"IF(dok.jawna!$B$25=2020,dok.jawna!B49&\" \"&\"Q\",dok.jawna!B49&\" \"&\"N\")","v":" Q"},{"$f":"dok.jawna!C49","v":0},{"$f":"TRIM(dok.jawna!D49)","v":""},{"$f":"dok.jawna!E49","v":0},{"$f":"dok.jawna!F49","v":0},{"$f":"dok.jawna!G49","v":0},{"$f":"dok.jawna!H49","v":0},1,"0",{"$f":"dok.jawna!J49","v":0}]
[0,"KWP1208",0,{"$f":"dok.jawna!A50","v":25},{"$f":"IF(dok.jawna!$B$25=2020,dok.jawna!B50&\" \"&\"Q\",dok.jawna!B50&\" \"&\"N\")","v":" Q"},{"$f":"dok.jawna!C50","v":0},{"$f":"TRIM(dok.jawna!D50)","v":""},{"$f":"dok.jawna!E50","v":0},{"$f":"dok.jawna!F50","v":0},{"$f":"dok.jawna!G50","v":0},{"$f":"dok.jawna!H50","v":0},1,"0",{"$f":"dok.jawna!J50","v":0}]
[0,"KWP1208",0,{"$f":"dok.jawna!A51","v":26},{"$f":"IF(dok.jawna!$B$25=2020,dok.jawna!B51&\" \"&\"Q\",dok.jawna!B51&\" \"&\"N\")","v":" Q"},{"$f":"dok.jawna!C51","v":0},{"$f":"TRIM(dok.jawna!D51)","v":""},{"$f":"dok.jawna!E51","v":0},{"$f":"dok.jawna!F51","v":0},{"$f":"dok.jawna!G51","v":0},{"$f":"dok.jawna!H51","v":0},1,"0",{"$f":"dok.jawna!J51","v":0}]
[0,"KWP1208",0,{"$f":"dok.jawna!A52","v":27},{"$f":"IF(dok.jawna!$B$25=2020,dok.jawna!B52&\" \"&\"Q\",dok.jawna!B52&\" \"&\"N\")","v":" Q"},{"$f":"dok.jawna!C52","v":0},{"$f":"TRIM(dok.jawna!D52)","v":""},{"$f":"dok.jawna!E52","v":0},{"$f":"dok.jawna!F52","v":0},{"$f":"dok.jawna!G52","v":0},{"$f":"dok.jawna!H52","v":0},1,"0",{"$f":"dok.jawna!J52","v":0}]
[0,"KWP1208",0,{"$f":"dok.jawna!A53","v":28},{"$f":"IF(dok.jawna!$B$25=2020,dok.jawna!B53&\" \"&\"Q\",dok.jawna!B53&\" \"&\"N\")","v":" Q"},{"$f":"dok.jawna!C53","v":0},{"$f":"TRIM(dok.jawna!D53)","v":""},{"$f":"dok.jawna!E53","v":0},{"$f":"dok.jawna!F53","v":0},{"$f":"dok.jawna!G53","v":0},{"$f":"dok.jawna!H53","v":0},1,"0",{"$f":"dok.jawna!J53","v":0}]
[0,"KWP1208",0,{"$f":"dok.jawna!A54","v":29},{"$f":"IF(dok.jawna!$B$25=2020,dok.jawna!B54&\" \"&\"Q\",dok.jawna!B54&\" \"&\"N\")","v":" Q"},{"$f":"dok.jawna!C54","v":0},{"$f":"TRIM(dok.jawna!D54)","v":""},{"$f":"dok.jawna!E54","v":0},{"$f":"dok.jawna!F54","v":0},{"$f":"dok.jawna!G54","v":0},{"$f":"dok.jawna!H54","v":0},1,"0",{"$f":"dok.jawna!J54","v":0}]
[0,"KWP1208",0,{"$f":"dok.jawna!A55","v":30},{"$f":"IF(dok.jawna!$B$25=2020,dok.jawna!B55&\" \"&\"Q\",dok.jawna!B55&\" \"&\"N\")","v":" Q"},{"$f":"dok.jawna!C55","v":0},{"$f":"TRIM(dok.jawna!D55)","v":""},{"$f":"dok.jawna!E55","v":0},{"$f":"dok.jawna!F55","v":0},{"$f":"dok.jawna!G55","v":0},{"$f":"dok.jawna!H55","v":0},1,"0",{"$f":"dok.jawna!J55","v":0}]
[0,"KWP1208",0,{"$f":"dok.jawna!A56","v":31},{"$f":"IF(dok.jawna!$B$25=2020,dok.jawna!B56&\" \"&\"Q\",dok.jawna!B56&\" \"&\"N\")","v":" Q"},{"$f":"dok.jawna!C56","v":0},{"$f":"TRIM(dok.jawna!D56)","v":""},{"$f":"dok.jawna!E56","v":0},{"$f":"dok.jawna!F56","v":0},{"$f":"dok.jawna!G56","v":0},{"$f":"dok.jawna!H56","v":0},1,"0",{"$f":"dok.jawna!J56","v":0}]
[0,"KWP1208",0,{"$f":"dok.jawna!A57","v":32},{"$f":"IF(dok.jawna!$B$25=2020,dok.jawna!B57&\" \"&\"Q\",dok.jawna!B57&\" \"&\"N\")","v":" Q"},{"$f":"dok.jawna!C57","v":0},{"$f":"TRIM(dok.jawna!D57)","v":""},{"$f":"dok.jawna!E57","v":0},{"$f":"dok.jawna!F57","v":0},{"$f":"dok.jawna!G57","v":0},{"$f":"dok.jawna!H57","v":0},1,"0",{"$f":"dok.jawna!J57","v":0}]
[0,"KWP1208",0,{"$f":"dok.jawna!A58","v":33},{"$f":"IF(dok.jawna!$B$25=2020,dok.jawna!B58&\" \"&\"Q\",dok.jawna!B58&\" \"&\"N\")","v":" Q"},{"$f":"dok.jawna!C58","v":0},{"$f":"TRIM(dok.jawna!D58)","v":""},{"$f":"dok.jawna!E58","v":0},{"$f":"dok.jawna!F58","v":0},{"$f":"dok.jawna!G58","v":0},{"$f":"dok.jawna!H58","v":0},1,"0",{"$f":"dok.jawna!J58","v":0}]
[0,"KWP1208",0,{"$f":"dok.jawna!A59","v":34},{"$f":"IF(dok.jawna!$B$25=2020,dok.jawna!B59&\" \"&\"Q\",dok.jawna!B59&\" \"&\"N\")","v":" Q"},{"$f":"dok.jawna!C59","v":0},{"$f":"TRIM(dok.jawna!D59)","v":""},{"$f":"dok.jawna!E59","v":0},{"$f":"dok.jawna!F59","v":0},{"$f":"dok.jawna!G59","v":0},{"$f":"dok.jawna!H59","v":0},1,"0",{"$f":"dok.jawna!J59","v":0}]
[{"$f":"A42","v":0},"KWP1208",0,{"$f":"dok.jawna!A60","v":35},{"$f":"IF(dok.jawna!$B$25=2020,dok.jawna!B60&\" \"&\"Q\",dok.jawna!B60&\" \"&\"N\")","v":" Q"},{"$f":"dok.jawna!C60","v":0},{"$f":"TRIM(dok.jawna!D60)","v":""},{"$f":"dok.jawna!E60","v":0},{"$f":"dok.jawna!F60","v":0},{"$f":"dok.jawna!G60","v":0},{"$f":"dok.jawna!H60","v":0},1,"0",{"$f":"dok.jawna!J60","v":0}]
[0,"KWP1208",0,{"$f":"dok.jawna!A61","v":36},{"$f":"IF(dok.jawna!$B$25=2020,dok.jawna!B61&\" \"&\"Q\",dok.jawna!B61&\" \"&\"N\")","v":" Q"},{"$f":"dok.jawna!C61","v":0},{"$f":"TRIM(dok.jawna!D61)","v":""},{"$f":"dok.jawna!E61","v":0},{"$f":"dok.jawna!F61","v":0},{"$f":"dok.jawna!G61","v":0},{"$f":"dok.jawna!H61","v":0},1,"0",{"$f":"dok.jawna!J61","v":0}]
[0,"KWP1208",0,{"$f":"dok.jawna!A62","v":37},{"$f":"IF(dok.jawna!$B$25=2020,dok.jawna!B62&\" \"&\"Q\",dok.jawna!B62&\" \"&\"N\")","v":" Q"},{"$f":"dok.jawna!C62","v":0},{"$f":"TRIM(dok.jawna!D62)","v":""},{"$f":"dok.jawna!E62","v":0},{"$f":"dok.jawna!F62","v":0},{"$f":"dok.jawna!G62","v":0},{"$f":"dok.jawna!H62","v":0},1,"0",{"$f":"dok.jawna!J62","v":0}]
[0,"KWP1208",0,{"$f":"dok.jawna!A63","v":38},{"$f":"IF(dok.jawna!$B$25=2020,dok.jawna!B63&\" \"&\"Q\",dok.jawna!B63&\" \"&\"N\")","v":" Q"},{"$f":"dok.jawna!C63","v":0},{"$f":"TRIM(dok.jawna!D63)","v":""},{"$f":"dok.jawna!E63","v":0},{"$f":"dok.jawna!F63","v":0},{"$f":"dok.jawna!G63","v":0},{"$f":"dok.jawna!H63","v":0},1,"0",{"$f":"dok.jawna!J63","v":0}]
[0,"KWP1208",0,{"$f":"dok.jawna!A64","v":39},{"$f":"IF(dok.jawna!$B$25=2020,dok.jawna!B64&\" \"&\"Q\",dok.jawna!B64&\" \"&\"N\")","v":" Q"},{"$f":"dok.jawna!C64","v":0},{"$f":"TRIM(dok.jawna!D64)","v":""},{"$f":"dok.jawna!E64","v":0},{"$f":"dok.jawna!F64","v":0},{"$f":"dok.jawna!G64","v":0},{"$f":"dok.jawna!H64","v":0},1,"0",{"$f":"dok.jawna!J64","v":0}]
[0,"KWP1208",0,{"$f":"dok.jawna!A65","v":40},{"$f":"IF(dok.jawna!$B$25=2020,dok.jawna!B65&\" \"&\"Q\",dok.jawna!B65&\" \"&\"N\")","v":" Q"},{"$f":"dok.jawna!C65","v":0},{"$f":"TRIM(dok.jawna!D65)","v":""},{"$f":"dok.jawna!E65","v":0},{"$f":"dok.jawna!F65","v":0},{"$f":"dok.jawna!G65","v":0},{"$f":"dok.jawna!H65","v":0},1,"0",{"$f":"dok.jawna!J65","v":0}]
[0,"KWP1208",0,{"$f":"dok.jawna!A66","v":41},{"$f":"IF(dok.jawna!$B$25=2020,dok.jawna!B66&\" \"&\"Q\",dok.jawna!B66&\" \"&\"N\")","v":" Q"},{"$f":"dok.jawna!C66","v":0},{"$f":"TRIM(dok.jawna!D66)","v":""},{"$f":"dok.jawna!E66","v":0},{"$f":"dok.jawna!F66","v":0},{"$f":"dok.jawna!G66","v":0},{"$f":"dok.jawna!H66","v":0},1,"0",{"$f":"dok.jawna!J66","v":0}]
[0,"KWP1208",0,{"$f":"dok.jawna!A67","v":42},{"$f":"IF(dok.jawna!$B$25=2020,dok.jawna!B67&\" \"&\"Q\",dok.jawna!B67&\" \"&\"N\")","v":" Q"},{"$f":"dok.jawna!C67","v":0},{"$f":"TRIM(dok.jawna!D67)","v":""},{"$f":"dok.jawna!E67","v":0},{"$f":"dok.jawna!F67","v":0},{"$f":"dok.jawna!G67","v":0},{"$f":"dok.jawna!H67","v":0},1,"0",{"$f":"dok.jawna!J67","v":0}]
[0,"KWP1208",0,{"$f":"dok.jawna!A68","v":43},{"$f":"IF(dok.jawna!$B$25=2020,dok.jawna!B68&\" \"&\"Q\",dok.jawna!B68&\" \"&\"N\")","v":" Q"},{"$f":"dok.jawna!C68","v":0},{"$f":"TRIM(dok.jawna!D68)","v":""},{"$f":"dok.jawna!E68","v":0},{"$f":"dok.jawna!F68","v":0},{"$f":"dok.jawna!G68","v":0},{"$f":"dok.jawna!H68","v":0},1,"0",{"$f":"dok.jawna!J68","v":0}]
[0,"KWP1208",0,{"$f":"dok.jawna!A69","v":44},{"$f":"IF(dok.jawna!$B$25=2020,dok.jawna!B69&\" \"&\"Q\",dok.jawna!B69&\" \"&\"N\")","v":" Q"},{"$f":"dok.jawna!C69","v":0},{"$f":"TRIM(dok.jawna!D69)","v":""},{"$f":"dok.jawna!E69","v":0},{"$f":"dok.jawna!F69","v":0},{"$f":"dok.jawna!G69","v":0},{"$f":"dok.jawna!H69","v":0},1,"0",{"$f":"dok.jawna!J69","v":0}]
[0,"KWP1208",0,{"$f":"dok.jawna!A70","v":45},{"$f":"IF(dok.jawna!$B$25=2020,dok.jawna!B70&\" \"&\"Q\",dok.jawna!B70&\" \"&\"N\")","v":" Q"},{"$f":"dok.jawna!C70","v":0},{"$f":"TRIM(dok.jawna!D70)","v":""},{"$f":"dok.jawna!E70","v":0},{"$f":"dok.jawna!F70","v":0},{"$f":"dok.jawna!G70","v":0},{"$f":"dok.jawna!H70","v":0},1,"0",{"$f":"dok.jawna!J70","v":0}]
[0,"KWP1208",0,{"$f":"dok.jawna!A71","v":46},{"$f":"IF(dok.jawna!$B$25=2020,dok.jawna!B71&\" \"&\"Q\",dok.jawna!B71&\" \"&\"N\")","v":" Q"},{"$f":"dok.jawna!C71","v":0},{"$f":"TRIM(dok.jawna!D71)","v":""},{"$f":"dok.jawna!E71","v":0},{"$f":"dok.jawna!F71","v":0},{"$f":"dok.jawna!G71","v":0},{"$f":"dok.jawna!H71","v":0},1,"0",{"$f":"dok.jawna!J71","v":0}]
[0,"KWP1208",0,{"$f":"dok.jawna!A72","v":47},{"$f":"IF(dok.jawna!$B$25=2020,dok.jawna!B72&\" \"&\"Q\",dok.jawna!B72&\" \"&\"N\")","v":" Q"},{"$f":"dok.jawna!C72","v":0},{"$f":"TRIM(dok.jawna!D72)","v":""},{"$f":"dok.jawna!E72","v":0},{"$f":"dok.jawna!F72","v":0},{"$f":"dok.jawna!G72","v":0},{"$f":"dok.jawna!H72","v":0},1,"0",{"$f":"dok.jawna!J72","v":0}]
[0,"KWP1208",0,{"$f":"dok.jawna!A73","v":48},{"$f":"IF(dok.jawna!$B$25=2020,dok.jawna!B73&\" \"&\"Q\",dok.jawna!B73&\" \"&\"N\")","v":" Q"},{"$f":"dok.jawna!C73","v":0},{"$f":"TRIM(dok.jawna!D73)","v":""},{"$f":"dok.jawna!E73","v":0},{"$f":"dok.jawna!F73","v":0},{"$f":"dok.jawna!G73","v":0},{"$f":"dok.jawna!H73","v":0},1,"0",{"$f":"dok.jawna!J73","v":0}]
[0,"KWP1208",0,{"$f":"dok.jawna!A74","v":49},{"$f":"IF(dok.jawna!$B$25=2020,dok.jawna!B74&\" \"&\"Q\",dok.jawna!B74&\" \"&\"N\")","v":" Q"},{"$f":"dok.jawna!C74","v":0},{"$f":"TRIM(dok.jawna!D74)","v":""},{"$f":"dok.jawna!E74","v":0},{"$f":"dok.jawna!F74","v":0},{"$f":"dok.jawna!G74","v":0},{"$f":"dok.jawna!H74","v":0},1,"0",{"$f":"dok.jawna!J74","v":0}]
[0,"KWP1208",0,{"$f":"dok.jawna!A75","v":50},{"$f":"IF(dok.jawna!$B$25=2020,dok.jawna!B75&\" \"&\"Q\",dok.jawna!B75&\" \"&\"N\")","v":" Q"},{"$f":"dok.jawna!C75","v":0},{"$f":"TRIM(dok.jawna!D75)","v":""},{"$f":"dok.jawna!E75","v":0},{"$f":"dok.jawna!F75","v":0},{"$f":"dok.jawna!G75","v":0},{"$f":"dok.jawna!H75","v":0},1,"0",{"$f":"dok.jawna!J75","v":0}]
[0,"KWP1208",0,{"$f":"dok.jawna!A76","v":51},{"$f":"IF(dok.jawna!$B$25=2020,dok.jawna!B76&\" \"&\"Q\",dok.jawna!B76&\" \"&\"N\")","v":" Q"},{"$f":"dok.jawna!C76","v":0},{"$f":"TRIM(dok.jawna!D76)","v":""},{"$f":"dok.jawna!E76","v":0},{"$f":"dok.jawna!F76","v":0},{"$f":"dok.jawna!G76","v":0},{"$f":"dok.jawna!H76","v":0},1,"0",{"$f":"dok.jawna!J76","v":0}]
[0,"KWP1208",0,{"$f":"dok.jawna!A77","v":52},{"$f":"IF(dok.jawna!$B$25=2020,dok.jawna!B77&\" \"&\"Q\",dok.jawna!B77&\" \"&\"N\")","v":" Q"},{"$f":"dok.jawna!C77","v":0},{"$f":"TRIM(dok.jawna!D77)","v":""},{"$f":"dok.jawna!E77","v":0},{"$f":"dok.jawna!F77","v":0},{"$f":"dok.jawna!G77","v":0},{"$f":"dok.jawna!H77","v":0},1,"0",{"$f":"dok.jawna!J77","v":0}]
[0,"KWP1208",0,{"$f":"dok.jawna!A78","v":53},{"$f":"IF(dok.jawna!$B$25=2020,dok.jawna!B78&\" \"&\"Q\",dok.jawna!B78&\" \"&\"N\")","v":" Q"},{"$f":"dok.jawna!C78","v":0},{"$f":"TRIM(dok.jawna!D78)","v":""},{"$f":"dok.jawna!E78","v":0},{"$f":"dok.jawna!F78","v":0},{"$f":"dok.jawna!G78","v":0},{"$f":"dok.jawna!H78","v":0},1,"0",{"$f":"dok.jawna!J78","v":0}]
[0,"KWP1208",0,{"$f":"dok.jawna!A79","v":54},{"$f":"IF(dok.jawna!$B$25=2020,dok.jawna!B79&\" \"&\"Q\",dok.jawna!B79&\" \"&\"N\")","v":" Q"},{"$f":"dok.jawna!C79","v":0},{"$f":"TRIM(dok.jawna!D79)","v":""},{"$f":"dok.jawna!E79","v":0},{"$f":"dok.jawna!F79","v":0},{"$f":"dok.jawna!G79","v":0},{"$f":"dok.jawna!H79","v":0},1,"0",{"$f":"dok.jawna!J79","v":0}]
[0,"KWP1208",0,{"$f":"dok.jawna!A80","v":55},{"$f":"IF(dok.jawna!$B$25=2020,dok.jawna!B80&\" \"&\"Q\",dok.jawna!B80&\" \"&\"N\")","v":" Q"},{"$f":"dok.jawna!C80","v":0},{"$f":"TRIM(dok.jawna!D80)","v":""},{"$f":"dok.jawna!E80","v":0},{"$f":"dok.jawna!F80","v":0},{"$f":"dok.jawna!G80","v":0},{"$f":"dok.jawna!H80","v":0},1,"0",{"$f":"dok.jawna!J80","v":0}]
[0,"KWP1208",0,{"$f":"dok.jawna!A81","v":56},{"$f":"IF(dok.jawna!$B$25=2020,dok.jawna!B81&\" \"&\"Q\",dok.jawna!B81&\" \"&\"N\")","v":" Q"},{"$f":"dok.jawna!C81","v":0},{"$f":"TRIM(dok.jawna!D81)","v":""},{"$f":"dok.jawna!E81","v":0},{"$f":"dok.jawna!F81","v":0},{"$f":"dok.jawna!G81","v":0},{"$f":"dok.jawna!H81","v":0},1,"0",{"$f":"dok.jawna!J81","v":0}]
[0,"KWP1208",0,{"$f":"dok.jawna!A82","v":57},{"$f":"IF(dok.jawna!$B$25=2020,dok.jawna!B82&\" \"&\"Q\",dok.jawna!B82&\" \"&\"N\")","v":" Q"},{"$f":"dok.jawna!C82","v":0},{"$f":"TRIM(dok.jawna!D82)","v":""},{"$f":"dok.jawna!E82","v":0},{"$f":"dok.jawna!F82","v":0},{"$f":"dok.jawna!G82","v":0},{"$f":"dok.jawna!H82","v":0},1,"0",{"$f":"dok.jawna!J82","v":0}]
[0,"KWP1208",0,{"$f":"dok.jawna!A83","v":58},{"$f":"IF(dok.jawna!$B$25=2020,dok.jawna!B83&\" \"&\"Q\",dok.jawna!B83&\" \"&\"N\")","v":" Q"},{"$f":"dok.jawna!C83","v":0},{"$f":"TRIM(dok.jawna!D83)","v":""},{"$f":"dok.jawna!E83","v":0},{"$f":"dok.jawna!F83","v":0},{"$f":"dok.jawna!G83","v":0},{"$f":"dok.jawna!H83","v":0},1,"0",{"$f":"dok.jawna!J83","v":0}]
[0,"KWP1208",0,{"$f":"dok.jawna!A84","v":59},{"$f":"IF(dok.jawna!$B$25=2020,dok.jawna!B84&\" \"&\"Q\",dok.jawna!B84&\" \"&\"N\")","v":" Q"},{"$f":"dok.jawna!C84","v":0},{"$f":"TRIM(dok.jawna!D84)","v":""},{"$f":"dok.jawna!E84","v":0},{"$f":"dok.jawna!F84","v":0},{"$f":"dok.jawna!G84","v":0},{"$f":"dok.jawna!H84","v":0},1,"0",{"$f":"dok.jawna!J84","v":0}]
[0,"KWP1208",0,{"$f":"dok.jawna!A85","v":60},{"$f":"IF(dok.jawna!$B$25=2020,dok.jawna!B85&\" \"&\"Q\",dok.jawna!B85&\" \"&\"N\")","v":" Q"},{"$f":"dok.jawna!C85","v":0},{"$f":"TRIM(dok.jawna!D85)","v":""},{"$f":"dok.jawna!E85","v":0},{"$f":"dok.jawna!F85","v":0},{"$f":"dok.jawna!G85","v":0},{"$f":"dok.jawna!H85","v":0},1,"0",{"$f":"dok.jawna!J85","v":0}]
[0,"KWP1208",0,{"$f":"dok.jawna!A86","v":61},{"$f":"IF(dok.jawna!$B$25=2020,dok.jawna!B86&\" \"&\"Q\",dok.jawna!B86&\" \"&\"N\")","v":" Q"},{"$f":"dok.jawna!C86","v":0},{"$f":"TRIM(dok.jawna!D86)","v":""},{"$f":"dok.jawna!E86","v":0},{"$f":"dok.jawna!F86","v":0},{"$f":"dok.jawna!G86","v":0},{"$f":"dok.jawna!H86","v":0},1,"0",{"$f":"dok.jawna!J86","v":0}]
[0,"KWP1208",0,{"$f":"dok.jawna!A87","v":62},{"$f":"IF(dok.jawna!$B$25=2020,dok.jawna!B87&\" \"&\"Q\",dok.jawna!B87&\" \"&\"N\")","v":" Q"},{"$f":"dok.jawna!C87","v":0},{"$f":"TRIM(dok.jawna!D87)","v":""},{"$f":"dok.jawna!E87","v":0},{"$f":"dok.jawna!F87","v":0},{"$f":"dok.jawna!G87","v":0},{"$f":"dok.jawna!H87","v":0},1,"0",{"$f":"dok.jawna!J87","v":0}]
[0,"KWP1208",0,{"$f":"dok.jawna!A88","v":63},{"$f":"IF(dok.jawna!$B$25=2020,dok.jawna!B88&\" \"&\"Q\",dok.jawna!B88&\" \"&\"N\")","v":" Q"},{"$f":"dok.jawna!C88","v":0},{"$f":"TRIM(dok.jawna!D88)","v":""},{"$f":"dok.jawna!E88","v":0},{"$f":"dok.jawna!F88","v":0},{"$f":"dok.jawna!G88","v":0},{"$f":"dok.jawna!H88","v":0},1,"0",{"$f":"dok.jawna!J88","v":0}]
[0,"KWP1208",0,{"$f":"dok.jawna!A89","v":64},{"$f":"IF(dok.jawna!$B$25=2020,dok.jawna!B89&\" \"&\"Q\",dok.jawna!B89&\" \"&\"N\")","v":" Q"},{"$f":"dok.jawna!C89","v":0},{"$f":"TRIM(dok.jawna!D89)","v":""},{"$f":"dok.jawna!E89","v":0},{"$f":"dok.jawna!F89","v":0},{"$f":"dok.jawna!G89","v":0},{"$f":"dok.jawna!H89","v":0},1,"0",{"$f":"dok.jawna!J89","v":0}]
[0,"KWP1208",0,{"$f":"dok.jawna!A90","v":65},{"$f":"IF(dok.jawna!$B$25=2020,dok.jawna!B90&\" \"&\"Q\",dok.jawna!B90&\" \"&\"N\")","v":" Q"},{"$f":"dok.jawna!C90","v":0},{"$f":"TRIM(dok.jawna!D90)","v":""},{"$f":"dok.jawna!E90","v":0},{"$f":"dok.jawna!F90","v":0},{"$f":"dok.jawna!G90","v":0},{"$f":"dok.jawna!H90","v":0},1,"0",{"$f":"dok.jawna!J90","v":0}]
[0,"KWP1208",0,{"$f":"dok.jawna!A91","v":66},{"$f":"IF(dok.jawna!$B$25=2020,dok.jawna!B91&\" \"&\"Q\",dok.jawna!B91&\" \"&\"N\")","v":" Q"},{"$f":"dok.jawna!C91","v":0},{"$f":"TRIM(dok.jawna!D91)","v":""},{"$f":"dok.jawna!E91","v":0},{"$f":"dok.jawna!F91","v":0},{"$f":"dok.jawna!G91","v":0},{"$f":"dok.jawna!H91","v":0},1,"0",{"$f":"dok.jawna!J91","v":0}]
[{"$f":"A74","v":0},{"$f":"B74","v":"KWP1208"},{"$f":"C74","v":0},{"$f":"dok.jawna!A92","v":67},{"$f":"IF(dok.jawna!$B$25=2020,dok.jawna!B92&\" \"&\"Q\",dok.jawna!B92&\" \"&\"N\")","v":" Q"},{"$f":"dok.jawna!C92","v":0},{"$f":"TRIM(dok.jawna!D92)","v":""},{"$f":"dok.jawna!E92","v":0},{"$f":"dok.jawna!F92","v":0},{"$f":"dok.jawna!G92","v":0},{"$f":"dok.jawna!H92","v":0},1,"0",{"$f":"dok.jawna!J92","v":0}]
[0,"KWP1208",0,{"$f":"dok.jawna!A93","v":68},{"$f":"IF(dok.jawna!$B$25=2020,dok.jawna!B93&\" \"&\"Q\",dok.jawna!B93&\" \"&\"N\")","v":" Q"},{"$f":"dok.jawna!C93","v":0},{"$f":"TRIM(dok.jawna!D93)","v":""},{"$f":"dok.jawna!E93","v":0},{"$f":"dok.jawna!F93","v":0},{"$f":"dok.jawna!G93","v":0},{"$f":"dok.jawna!H93","v":0},1,"0",{"$f":"dok.jawna!J93","v":0}]
[0,"KWP1208",0,{"$f":"dok.jawna!A94","v":69},{"$f":"IF(dok.jawna!$B$25=2020,dok.jawna!B94&\" \"&\"Q\",dok.jawna!B94&\" \"&\"N\")","v":" Q"},{"$f":"dok.jawna!C94","v":0},{"$f":"TRIM(dok.jawna!D94)","v":""},{"$f":"dok.jawna!E94","v":0},{"$f":"dok.jawna!F94","v":0},{"$f":"dok.jawna!G94","v":0},{"$f":"dok.jawna!H94","v":0},1,"0",{"$f":"dok.jawna!J94","v":0}]
[0,"KWP1208",0,{"$f":"dok.jawna!A95","v":70},{"$f":"IF(dok.jawna!$B$25=2020,dok.jawna!B95&\" \"&\"Q\",dok.jawna!B95&\" \"&\"N\")","v":" Q"},{"$f":"dok.jawna!C95","v":0},{"$f":"TRIM(dok.jawna!D95)","v":""},{"$f":"dok.jawna!E95","v":0},{"$f":"dok.jawna!F95","v":0},{"$f":"dok.jawna!G95","v":0},{"$f":"dok.jawna!H95","v":0},1,"0",{"$f":"dok.jawna!J95","v":0}]
[0,"KWP1208",0,{"$f":"dok.jawna!A96","v":71},{"$f":"IF(dok.jawna!$B$25=2020,dok.jawna!B96&\" \"&\"Q\",dok.jawna!B96&\" \"&\"N\")","v":" Q"},{"$f":"dok.jawna!C96","v":0},{"$f":"TRIM(dok.jawna!D96)","v":""},{"$f":"dok.jawna!E96","v":0},{"$f":"dok.jawna!F96","v":0},{"$f":"dok.jawna!G96","v":0},{"$f":"dok.jawna!H96","v":0},1,"0",{"$f":"dok.jawna!J96","v":0}]
[0,"KWP1208",0,{"$f":"dok.jawna!A97","v":72},{"$f":"IF(dok.jawna!$B$25=2020,dok.jawna!B97&\" \"&\"Q\",dok.jawna!B97&\" \"&\"N\")","v":" Q"},{"$f":"dok.jawna!C97","v":0},{"$f":"TRIM(dok.jawna!D97)","v":""},{"$f":"dok.jawna!E97","v":0},{"$f":"dok.jawna!F97","v":0},{"$f":"dok.jawna!G97","v":0},{"$f":"dok.jawna!H97","v":0},1,"0",{"$f":"dok.jawna!J97","v":0}]
[0,"KWP1208",0,{"$f":"dok.jawna!A98","v":73},{"$f":"IF(dok.jawna!$B$25=2020,dok.jawna!B98&\" \"&\"Q\",dok.jawna!B98&\" \"&\"N\")","v":" Q"},{"$f":"dok.jawna!C98","v":0},{"$f":"TRIM(dok.jawna!D98)","v":""},{"$f":"dok.jawna!E98","v":0},{"$f":"dok.jawna!F98","v":0},{"$f":"dok.jawna!G98","v":0},{"$f":"dok.jawna!H98","v":0},1,"0",{"$f":"dok.jawna!J98","v":0}]
[0,"KWP1208",0,{"$f":"dok.jawna!A99","v":74},{"$f":"IF(dok.jawna!$B$25=2020,dok.jawna!B99&\" \"&\"Q\",dok.jawna!B99&\" \"&\"N\")","v":" Q"},{"$f":"dok.jawna!C99","v":0},{"$f":"TRIM(dok.jawna!D99)","v":""},{"$f":"dok.jawna!E99","v":0},{"$f":"dok.jawna!F99","v":0},{"$f":"dok.jawna!G99","v":0},{"$f":"dok.jawna!H99","v":0},1,"0",{"$f":"dok.jawna!J99","v":0}]
[0,"KWP1208",0,{"$f":"dok.jawna!A100","v":75},{"$f":"IF(dok.jawna!$B$25=2020,dok.jawna!B100&\" \"&\"Q\",dok.jawna!B100&\" \"&\"N\")","v":" Q"},{"$f":"dok.jawna!C100","v":0},{"$f":"TRIM(dok.jawna!D100)","v":""},{"$f":"dok.jawna!E100","v":0},{"$f":"dok.jawna!F100","v":0},{"$f":"dok.jawna!G100","v":0},{"$f":"dok.jawna!H100","v":0},1,"0",{"$f":"dok.jawna!J100","v":0}]
[0,"KWP1208",0,{"$f":"dok.jawna!A101","v":76},{"$f":"IF(dok.jawna!$B$25=2020,dok.jawna!B101&\" \"&\"Q\",dok.jawna!B101&\" \"&\"N\")","v":" Q"},{"$f":"dok.jawna!C101","v":0},{"$f":"TRIM(dok.jawna!D101)","v":""},{"$f":"dok.jawna!E101","v":0},{"$f":"dok.jawna!F101","v":0},{"$f":"dok.jawna!G101","v":0},{"$f":"dok.jawna!H101","v":0},1,"0",{"$f":"dok.jawna!J101","v":0}]
[0,"KWP1208",0,{"$f":"dok.jawna!A102","v":77},{"$f":"IF(dok.jawna!$B$25=2020,dok.jawna!B102&\" \"&\"Q\",dok.jawna!B102&\" \"&\"N\")","v":" Q"},{"$f":"dok.jawna!C102","v":0},{"$f":"TRIM(dok.jawna!D102)","v":""},{"$f":"dok.jawna!E102","v":0},{"$f":"dok.jawna!F102","v":0},{"$f":"dok.jawna!G102","v":0},{"$f":"dok.jawna!H102","v":0},1,"0",{"$f":"dok.jawna!J102","v":0}]
[0,"KWP1208",0,{"$f":"dok.jawna!A103","v":78},{"$f":"IF(dok.jawna!$B$25=2020,dok.jawna!B103&\" \"&\"Q\",dok.jawna!B103&\" \"&\"N\")","v":" Q"},{"$f":"dok.jawna!C103","v":0},{"$f":"TRIM(dok.jawna!D103)","v":""},{"$f":"dok.jawna!E103","v":0},{"$f":"dok.jawna!F103","v":0},{"$f":"dok.jawna!G103","v":0},{"$f":"dok.jawna!H103","v":0},1,"0",{"$f":"dok.jawna!J103","v":0}]
[0,"KWP1208",0,{"$f":"dok.jawna!A104","v":79},{"$f":"IF(dok.jawna!$B$25=2020,dok.jawna!B104&\" \"&\"Q\",dok.jawna!B104&\" \"&\"N\")","v":" Q"},{"$f":"dok.jawna!C104","v":0},{"$f":"TRIM(dok.jawna!D104)","v":""},{"$f":"dok.jawna!E104","v":0},{"$f":"dok.jawna!F104","v":0},{"$f":"dok.jawna!G104","v":0},{"$f":"dok.jawna!H104","v":0},1,"0",{"$f":"dok.jawna!J104","v":0}]
[0,"KWP1208",0,{"$f":"dok.jawna!A105","v":80},{"$f":"IF(dok.jawna!$B$25=2020,dok.jawna!B105&\" \"&\"Q\",dok.jawna!B105&\" \"&\"N\")","v":" Q"},{"$f":"dok.jawna!C105","v":0},{"$f":"TRIM(dok.jawna!D105)","v":""},{"$f":"dok.jawna!E105","v":0},{"$f":"dok.jawna!F105","v":0},{"$f":"dok.jawna!G105","v":0},{"$f":"dok.jawna!H105","v":0},1,"0",{"$f":"dok.jawna!J105","v":0}]
[0,"KWP1208",0,{"$f":"dok.jawna!A106","v":81},{"$f":"IF(dok.jawna!$B$25=2020,dok.jawna!B106&\" \"&\"Q\",dok.jawna!B106&\" \"&\"N\")","v":" Q"},{"$f":"dok.jawna!C106","v":0},{"$f":"TRIM(dok.jawna!D106)","v":""},{"$f":"dok.jawna!E106","v":0},{"$f":"dok.jawna!F106","v":0},{"$f":"dok.jawna!G106","v":0},{"$f":"dok.jawna!H106","v":0},1,"0",{"$f":"dok.jawna!J106","v":0}]
[0,"KWP1208",0,{"$f":"dok.jawna!A107","v":82},{"$f":"IF(dok.jawna!$B$25=2020,dok.jawna!B107&\" \"&\"Q\",dok.jawna!B107&\" \"&\"N\")","v":" Q"},{"$f":"dok.jawna!C107","v":0},{"$f":"TRIM(dok.jawna!D107)","v":""},{"$f":"dok.jawna!E107","v":0},{"$f":"dok.jawna!F107","v":0},{"$f":"dok.jawna!G107","v":0},{"$f":"dok.jawna!H107","v":0},1,"0",{"$f":"dok.jawna!J107","v":0}]
[0,"KWP1208",0,{"$f":"dok.jawna!A108","v":83},{"$f":"IF(dok.jawna!$B$25=2020,dok.jawna!B108&\" \"&\"Q\",dok.jawna!B108&\" \"&\"N\")","v":" Q"},{"$f":"dok.jawna!C108","v":0},{"$f":"TRIM(dok.jawna!D108)","v":""},{"$f":"dok.jawna!E108","v":0},{"$f":"dok.jawna!F108","v":0},{"$f":"dok.jawna!G108","v":0},{"$f":"dok.jawna!H108","v":0},1,"0",{"$f":"dok.jawna!J108","v":0}]
[0,"KWP1208",0,{"$f":"dok.jawna!A109","v":84},{"$f":"IF(dok.jawna!$B$25=2020,dok.jawna!B109&\" \"&\"Q\",dok.jawna!B109&\" \"&\"N\")","v":" Q"},{"$f":"dok.jawna!C109","v":0},{"$f":"TRIM(dok.jawna!D109)","v":""},{"$f":"dok.jawna!E109","v":0},{"$f":"dok.jawna!F109","v":0},{"$f":"dok.jawna!G109","v":0},{"$f":"dok.jawna!H109","v":0},1,"0",{"$f":"dok.jawna!J109","v":0}]
[0,"KWP1208",0,{"$f":"dok.jawna!A110","v":85},{"$f":"IF(dok.jawna!$B$25=2020,dok.jawna!B110&\" \"&\"Q\",dok.jawna!B110&\" \"&\"N\")","v":" Q"},{"$f":"dok.jawna!C110","v":0},{"$f":"TRIM(dok.jawna!D110)","v":""},{"$f":"dok.jawna!E110","v":0},{"$f":"dok.jawna!F110","v":0},{"$f":"dok.jawna!G110","v":0},{"$f":"dok.jawna!H110","v":0},1,"0",{"$f":"dok.jawna!J110","v":0}]
[0,"KWP1208",0,{"$f":"dok.jawna!A111","v":86},{"$f":"IF(dok.jawna!$B$25=2020,dok.jawna!B111&\" \"&\"Q\",dok.jawna!B111&\" \"&\"N\")","v":" Q"},{"$f":"dok.jawna!C111","v":0},{"$f":"TRIM(dok.jawna!D111)","v":""},{"$f":"dok.jawna!E111","v":0},{"$f":"dok.jawna!F111","v":0},{"$f":"dok.jawna!G111","v":0},{"$f":"dok.jawna!H111","v":0},{"$f":"L93","v":1},"0",{"$f":"dok.jawna!J111","v":0}]
[0,"KWP1208",0,{"$f":"dok.jawna!A112","v":87},{"$f":"IF(dok.jawna!$B$25=2020,dok.jawna!B112&\" \"&\"Q\",dok.jawna!B112&\" \"&\"N\")","v":" Q"},{"$f":"dok.jawna!C112","v":0},{"$f":"TRIM(dok.jawna!D112)","v":""},{"$f":"dok.jawna!E112","v":0},{"$f":"dok.jawna!F112","v":0},{"$f":"dok.jawna!G112","v":0},{"$f":"dok.jawna!H112","v":0},1,"0",{"$f":"dok.jawna!J112","v":0}]
[0,"KWP1208",0,{"$f":"dok.jawna!A113","v":88},{"$f":"IF(dok.jawna!$B$25=2020,dok.jawna!B113&\" \"&\"Q\",dok.jawna!B113&\" \"&\"N\")","v":" Q"},{"$f":"dok.jawna!C113","v":0},{"$f":"TRIM(dok.jawna!D113)","v":""},{"$f":"dok.jawna!E113","v":0},{"$f":"dok.jawna!F113","v":0},{"$f":"dok.jawna!G113","v":0},{"$f":"dok.jawna!H113","v":0},1,"0",{"$f":"dok.jawna!J113","v":0}]
[0,"KWP1208",0,{"$f":"dok.jawna!A114","v":89},{"$f":"IF(dok.jawna!$B$25=2020,dok.jawna!B114&\" \"&\"Q\",dok.jawna!B114&\" \"&\"N\")","v":" Q"},{"$f":"dok.jawna!C114","v":0},{"$f":"TRIM(dok.jawna!D114)","v":""},{"$f":"dok.jawna!E114","v":0},{"$f":"dok.jawna!F114","v":0},{"$f":"dok.jawna!G114","v":0},{"$f":"dok.jawna!H114","v":0},1,"0",{"$f":"dok.jawna!J114","v":0}]
[0,"KWP1208",0,{"$f":"dok.jawna!A115","v":90},{"$f":"IF(dok.jawna!$B$25=2020,dok.jawna!B115&\" \"&\"Q\",dok.jawna!B115&\" \"&\"N\")","v":" Q"},{"$f":"dok.jawna!C115","v":0},{"$f":"TRIM(dok.jawna!D115)","v":""},{"$f":"dok.jawna!E115","v":0},{"$f":"dok.jawna!F115","v":0},{"$f":"dok.jawna!G115","v":0},{"$f":"dok.jawna!H115","v":0},1,"0",{"$f":"dok.jawna!J115","v":0}]
[0,"KWP1208",0,{"$f":"dok.jawna!A116","v":91},{"$f":"IF(dok.jawna!$B$25=2020,dok.jawna!B116&\" \"&\"Q\",dok.jawna!B116&\" \"&\"N\")","v":" Q"},{"$f":"dok.jawna!C116","v":0},{"$f":"TRIM(dok.jawna!D116)","v":""},{"$f":"dok.jawna!E116","v":0},{"$f":"dok.jawna!F116","v":0},{"$f":"dok.jawna!G116","v":0},{"$f":"dok.jawna!H116","v":0},1,"0",{"$f":"dok.jawna!J116","v":0}]
[0,"KWP1208",0,{"$f":"dok.jawna!A117","v":92},{"$f":"IF(dok.jawna!$B$25=2020,dok.jawna!B117&\" \"&\"Q\",dok.jawna!B117&\" \"&\"N\")","v":" Q"},{"$f":"dok.jawna!C117","v":0},{"$f":"TRIM(dok.jawna!D117)","v":""},{"$f":"dok.jawna!E117","v":0},{"$f":"dok.jawna!F117","v":0},{"$f":"dok.jawna!G117","v":0},{"$f":"dok.jawna!H117","v":0},1,"0",{"$f":"dok.jawna!J117","v":0}]
[0,"KWP1208",0,{"$f":"dok.jawna!A118","v":93},{"$f":"IF(dok.jawna!$B$25=2020,dok.jawna!B118&\" \"&\"Q\",dok.jawna!B118&\" \"&\"N\")","v":" Q"},{"$f":"dok.jawna!C118","v":0},{"$f":"TRIM(dok.jawna!D118)","v":""},{"$f":"dok.jawna!E118","v":0},{"$f":"dok.jawna!F118","v":0},{"$f":"dok.jawna!G118","v":0},{"$f":"dok.jawna!H118","v":0},1,"0",{"$f":"dok.jawna!J118","v":0}]
[0,"KWP1208",0,{"$f":"dok.jawna!A119","v":94},{"$f":"IF(dok.jawna!$B$25=2020,dok.jawna!B119&\" \"&\"Q\",dok.jawna!B119&\" \"&\"N\")","v":" Q"},{"$f":"dok.jawna!C119","v":0},{"$f":"TRIM(dok.jawna!D119)","v":""},{"$f":"dok.jawna!E119","v":0},{"$f":"dok.jawna!F119","v":0},{"$f":"dok.jawna!G119","v":0},{"$f":"dok.jawna!H119","v":0},1,"0",{"$f":"dok.jawna!J119","v":0}]
[0,"KWP1208",0,{"$f":"dok.jawna!A120","v":95},{"$f":"IF(dok.jawna!$B$25=2020,dok.jawna!B120&\" \"&\"Q\",dok.jawna!B120&\" \"&\"N\")","v":" Q"},{"$f":"dok.jawna!C120","v":0},{"$f":"TRIM(dok.jawna!D120)","v":""},{"$f":"dok.jawna!E120","v":0},{"$f":"dok.jawna!F120","v":0},{"$f":"dok.jawna!G120","v":0},{"$f":"dok.jawna!H120","v":0},1,"0",{"$f":"dok.jawna!J120","v":0}]
[0,"KWP1208",0,{"$f":"dok.jawna!A121","v":96},{"$f":"IF(dok.jawna!$B$25=2020,dok.jawna!B121&\" \"&\"Q\",dok.jawna!B121&\" \"&\"N\")","v":" Q"},{"$f":"dok.jawna!C121","v":0},{"$f":"TRIM(dok.jawna!D121)","v":""},{"$f":"dok.jawna!E121","v":0},{"$f":"dok.jawna!F121","v":0},{"$f":"dok.jawna!G121","v":0},{"$f":"dok.jawna!H121","v":0},1,"0",{"$f":"dok.jawna!J121","v":0}]
[0,"KWP1208",0,{"$f":"dok.jawna!A122","v":97},{"$f":"IF(dok.jawna!$B$25=2020,dok.jawna!B122&\" \"&\"Q\",dok.jawna!B122&\" \"&\"N\")","v":" Q"},{"$f":"dok.jawna!C122","v":0},{"$f":"TRIM(dok.jawna!D122)","v":""},{"$f":"dok.jawna!E122","v":0},{"$f":"dok.jawna!F122","v":0},{"$f":"dok.jawna!G122","v":0},{"$f":"dok.jawna!H122","v":0},1,"0",{"$f":"dok.jawna!J122","v":0}]
[0,"KWP1208",0,{"$f":"dok.jawna!A123","v":98},{"$f":"IF(dok.jawna!$B$25=2020,dok.jawna!B123&\" \"&\"Q\",dok.jawna!B123&\" \"&\"N\")","v":" Q"},{"$f":"dok.jawna!C123","v":0},{"$f":"TRIM(dok.jawna!D123)","v":""},{"$f":"dok.jawna!E123","v":0},{"$f":"dok.jawna!F123","v":0},{"$f":"dok.jawna!G123","v":0},{"$f":"dok.jawna!H123","v":0},1,"0",{"$f":"dok.jawna!J123","v":0}]
[0,"KWP1208",0,{"$f":"dok.jawna!A124","v":99},{"$f":"IF(dok.jawna!$B$25=2020,dok.jawna!B124&\" \"&\"Q\",dok.jawna!B124&\" \"&\"N\")","v":" Q"},{"$f":"dok.jawna!C124","v":0},{"$f":"TRIM(dok.jawna!D124)","v":""},{"$f":"dok.jawna!E124","v":0},{"$f":"dok.jawna!F124","v":0},{"$f":"dok.jawna!G124","v":0},{"$f":"dok.jawna!H124","v":0},1,"0",{"$f":"dok.jawna!J124","v":0}]
[0,"KWP1208",0,{"$f":"dok.jawna!A125","v":100},{"$f":"IF(dok.jawna!$B$25=2020,dok.jawna!B125&\" \"&\"Q\",dok.jawna!B125&\" \"&\"N\")","v":" Q"},{"$f":"dok.jawna!C125","v":0},{"$f":"TRIM(dok.jawna!D125)","v":""},{"$f":"dok.jawna!E125","v":0},{"$f":"dok.jawna!F125","v":0},{"$f":"dok.jawna!G125","v":0},{"$f":"dok.jawna!H125","v":0},1,"0",{"$f":"dok.jawna!J125","v":0}]

{"sheet":"Ewid2","index":3,"n_rows":115,"n_cols":18,"rows_kept":115,"cut":false,"hidden":true,"merged":[[5,6,5,8],[6,0,6,5],[6,6,6,8]]}
[null,null,null,null,"Arkusz wypełniany automatycznie poza polami oznaczonymi kolorem zielonym  (zawierającymi komentarze)"]
[]
["Po zakończeniu edycji spisu zaznacz cały wiersz 5, skopiuj i wklej zawartość do bazy danych.",null,null,null,null,null,null,{"$f":"IF(D6=\"KOMENDA WOJ\",E6,F6)","v":"KWP1208"},{"$f":"LEFT(H3,3)","v":"KWP"},{"$f":"MID(H3,2,7)","v":"WP1208"}]
["IDSpisu","NrSpisu","OznLit","Archiwum","DataSpisu","L.dz.arch.KWP","Jednostka","L.dz","Klauzula","Miejscowość","Data edycji","Rok1","Rok2","IlośćPozycji","IlośćTeczek","Uwagi","L.dz. kancelarii tajnej"]
[null,{"$f":"dok.niejawna!G14","v":0},{"$f":"dok.niejawna!I14","v":0},17,{"$f":"dok.niejawna!E20","v":"00:00:00"},"OIN-a-",{"$f":"IF(D6=\"KOMENDA WOJ\",E6,F6)","v":"KWP1208"},{"$f":"TRIM(dok.niejawna!C6)","v":""},{"$f":"VLOOKUP(R6,IDCechyTaj,2)","v":2},{"$f":"dok.niejawna!G2","v":"Łódź"},{"$f":"dok.niejawna!K2","v":"00:00:00"},{"$f":"MINA(RokI)*1","v":{"$error":"#VALUE!"}},{"$f":"MAXA(RokII)*1","v":{"$error":"#VALUE!"}},{"$f":"DCOUNT(dok.niejawna!A24:D127,1,A23:A126)","v":100},{"$f":"SUM(dok.niejawna!G28:G127)","v":0},null,{"$f":"TRIM(dok.niejawna!C7)","v":""}]
[null,null,null,{"$f":"LEFT(G6,11)","v":"Komenda Woj"},{"$f":"VLOOKUP(dok.niejawna!A3,Jednostki!B83:C154,2,FALSE)","v":"KWP1208"},{"$f":"VLOOKUP(dok.niejawna!A2,Siedziba,3)","v":"KWP1200"},{"$f":"dok.niejawna!A2","v":"Komenda Wojewódzka Policji w Łodzi"},{"$f":"VLOOKUP(dok.niejawna!B3,Siedziba,1,3)","v":{"$error":"#N/A"}},{"$f":"VLOOKUP(dok.niejawna!C3,Siedziba,1,3)","v":{"$error":"#N/A"}},null,null,null,null,null,null,null,null,{"$f":"dok.niejawna!E1","v":"Poufne"}]
["Zaznacz wszystkie wypełnione wiersze (jednostki archiwalne), skopiu je i wklej do bazy danych.  ",null,null,null,null,null,{"$f":"TRIM(J7)","v":"Wydział ds. Ochrony Informacji Niejawnych"},null,null,{"$f":"VLOOKUP(H3,Jednostki!A4:B73,2)","v":"Wydział ds. Ochrony Informacji Niejawnych "}]
["IDSpisu","Jednostka","NrSpisu","PozSpisu","Symbol","NrTeczki","TytułTeczki","Data1","Data2","IlośćTeczek","KatArch","Klauzula","POP","Uwagi"]
[{"$f":"A5","v":0},{"$f":"G5","v":"KWP1208"},{"$f":"B5","v":0},{"$f":"dok.niejawna!A28","v":1},{"$f":"IF(dok.niejawna!$B$27=2020,dok.niejawna!B28&\" \"&\"Q\",dok.niejawna!B28&\" \"&\"N\")","v":" Q"},{"$f":"dok.niejawna!C28","v":0},{"$f":"TRIM(dok.niejawna!D28)","v":""},{"$f":"dok.niejawna!E28","v":0},{"$f":"dok.niejawna!F28","v":0},{"$f":"dok.niejawna!G28","v":0},{"$f":"dok.niejawna!H28","v":0},{"$f":"VLOOKUP(R9,IDCechyTaj,2)","v":1},"0",{"$f":"dok.niejawna!K28","v":0},null,null,null,{"$f":"dok.niejawna!I28","v":" "}]
[{"$f":"A9","v":0},{"$f":"B9","v":"KWP1208"},{"$f":"C9","v":0},{"$f":"dok.niejawna!A29","v":2},{"$f":"IF(dok.niejawna!$B$27=2020,dok.niejawna!B29&\" \"&\"Q\",dok.niejawna!B29&\" \"&\"N\")","v":" Q"},{"$f":"dok.niejawna!C29","v":0},{"$f":"TRIM(dok.niejawna!D29)","v":""},{"$f":"dok.niejawna!E29","v":0},{"$f":"dok.niejawna!F29","v":0},{"$f":"dok.niejawna!G29","v":0},{"$f":"dok.niejawna!H29","v":0},1,"0",{"$f":"dok.niejawna!K29","v":0},null,null,null,{"$f":"dok.niejawna!I29","v":" "}]
[{"$f":"A10","v":0},"KWP1208",0,{"$f":"dok.niejawna!A30","v":3},{"$f":"IF(dok.niejawna!$B$27=2020,dok.niejawna!B30&\" \"&\"Q\",dok.niejawna!B30&\" \"&\"N\")","v":" Q"},{"$f":"dok.niejawna!C30","v":0},{"$f":"TRIM(dok.niejawna!D30)","v":""},{"$f":"dok.niejawna!E30","v":0},{"$f":"dok.niejawna!F30","v":0},{"$f":"dok.niejawna!G30","v":0},{"$f":"dok.niejawna!H30","v":0},1,"0",{"$f":"dok.niejawna!K30","v":0},null,null,null,{"$f":"dok.niejawna!I30","v":" "}]
[0,"KWP1208",0,{"$f":"dok.niejawna!A31","v":4},{"$f":"IF(dok.niejawna!$B$27=2020,dok.niejawna!B31&\" \"&\"Q\",dok.niejawna!B31&\" \"&\"N\")","v":" Q"},{"$f":"dok.niejawna!C31","v":0},{"$f":"TRIM(dok.niejawna!D31)","v":""},{"$f":"dok.niejawna!E31","v":0},{"$f":"dok.niejawna!F31","v":0},{"$f":"dok.niejawna!G31","v":0},{"$f":"dok.niejawna!H31","v":0},1,"0",{"$f":"dok.niejawna!K31","v":0},null,null,null,{"$f":"dok.niejawna!I31","v":" "}]
[0,"KWP1208",0,{"$f":"dok.niejawna!A32","v":5},{"$f":"IF(dok.niejawna!$B$27=2020,dok.niejawna!B32&\" \"&\"Q\",dok.niejawna!B32&\" \"&\"N\")","v":" Q"},{"$f":"dok.niejawna!C32","v":0},{"$f":"TRIM(dok.niejawna!D32)","v":""},{"$f":"dok.niejawna!E32","v":0},{"$f":"dok.niejawna!F32","v":0},{"$f":"dok.niejawna!G32","v":0},{"$f":"dok.niejawna!H32","v":0},1,"0",{"$f":"dok.niejawna!K32","v":0},null,null,null,{"$f":"dok.niejawna!I32","v":" "}]
[0,"KWP1208",0,{"$f":"dok.niejawna!A33","v":6},{"$f":"IF(dok.niejawna!$B$27=2020,dok.niejawna!B33&\" \"&\"Q\",dok.niejawna!B33&\" \"&\"N\")","v":" Q"},{"$f":"dok.niejawna!C33","v":0},{"$f":"TRIM(dok.niejawna!D33)","v":""},{"$f":"dok.niejawna!E33","v":0},{"$f":"dok.niejawna!F33","v":0},{"$f":"dok.niejawna!G33","v":0},{"$f":"dok.niejawna!H33","v":0},1,"0",{"$f":"dok.niejawna!K33","v":0},null,null,null,{"$f":"dok.niejawna!I33","v":" "}]
[0,"KWP1208",0,{"$f":"dok.niejawna!A34","v":7},{"$f":"IF(dok.niejawna!$B$27=2020,dok.niejawna!B34&\" \"&\"Q\",dok.niejawna!B34&\" \"&\"N\")","v":" Q"},{"$f":"dok.niejawna!C34","v":0},{"$f":"TRIM(dok.niejawna!D34)","v":""},{"$f":"dok.niejawna!E34","v":0},{"$f":"dok.niejawna!F34","v":0},{"$f":"dok.niejawna!G34","v":0},{"$f":"dok.niejawna!H34","v":0},1,"0",{"$f":"dok.niejawna!K34","v":0},null,null,null,{"$f":"dok.niejawna!I34","v":" "}]
[0,"KWP1208",0,{"$f":"dok.niejawna!A35","v":8},{"$f":"IF(dok.niejawna!$B$27=2020,dok.niejawna!B35&\" \"&\"Q\",dok.niejawna!B35&\" \"&\"N\")","v":" Q"},{"$f":"dok.niejawna!C35","v":0},{"$f":"TRIM(dok.niejawna!D35)","v":""},{"$f":"dok.niejawna!E35","v":0},{"$f":"dok.niejawna!F35","v":0},{"$f":"dok.niejawna!G35","v":0},{"$f":"dok.niejawna!H35","v":0},1,"0",{"$f":"dok.niejawna!K35","v":0},null,null,null,{"$f":"dok.niejawna!I35","v":" "}]
[0,"KWP1208",0,{"$f":"dok.niejawna!A36","v":9},{"$f":"IF(dok.niejawna!$B$27=2020,dok.niejawna!B36&\" \"&\"Q\",dok.niejawna!B36&\" \"&\"N\")","v":" Q"},{"$f":"dok.niejawna!C36","v":0},{"$f":"TRIM(dok.niejawna!D36)","v":""},{"$f":"dok.niejawna!E36","v":0},{"$f":"dok.niejawna!F36","v":0},{"$f":"dok.niejawna!G36","v":0},{"$f":"dok.niejawna!H36","v":0},1,"0",{"$f":"dok.niejawna!K36","v":0},null,null,null,{"$f":"dok.niejawna!I36","v":" "}]
[0,"KWP1208",0,{"$f":"dok.niejawna!A37","v":10},{"$f":"IF(dok.niejawna!$B$27=2020,dok.niejawna!B37&\" \"&\"Q\",dok.niejawna!B37&\" \"&\"N\")","v":" Q"},{"$f":"dok.niejawna!C37","v":0},{"$f":"TRIM(dok.niejawna!D37)","v":""},{"$f":"dok.niejawna!E37","v":0},{"$f":"dok.niejawna!F37","v":0},{"$f":"dok.niejawna!G37","v":0},{"$f":"dok.niejawna!H37","v":0},1,"0",{"$f":"dok.niejawna!K37","v":0},null,null,null,{"$f":"dok.niejawna!I37","v":" "}]
[0,"KWP1208",0,{"$f":"dok.niejawna!A38","v":11},{"$f":"IF(dok.niejawna!$B$27=2020,dok.niejawna!B38&\" \"&\"Q\",dok.niejawna!B38&\" \"&\"N\")","v":" Q"},{"$f":"dok.niejawna!C38","v":0},{"$f":"TRIM(dok.niejawna!D38)","v":""},{"$f":"dok.niejawna!E38","v":0},{"$f":"dok.niejawna!F38","v":0},{"$f":"dok.niejawna!G38","v":0},{"$f":"dok.niejawna!H38","v":0},1,"0",{"$f":"dok.niejawna!K38","v":0},null,null,null,{"$f":"dok.niejawna!I38","v":" "}]
[0,"KWP1208",0,{"$f":"dok.niejawna!A39","v":12},{"$f":"IF(dok.niejawna!$B$27=2020,dok.niejawna!B39&\" \"&\"Q\",dok.niejawna!B39&\" \"&\"N\")","v":" Q"},{"$f":"dok.niejawna!C39","v":0},{"$f":"TRIM(dok.niejawna!D39)","v":""},{"$f":"dok.niejawna!E39","v":0},{"$f":"dok.niejawna!F39","v":0},{"$f":"dok.niejawna!G39","v":0},{"$f":"dok.niejawna!H39","v":0},1,"0",{"$f":"dok.niejawna!K39","v":0},null,null,null,{"$f":"dok.niejawna!I39","v":" "}]
[0,"KWP1208",0,{"$f":"dok.niejawna!A40","v":13},{"$f":"IF(dok.niejawna!$B$27=2020,dok.niejawna!B40&\" \"&\"Q\",dok.niejawna!B40&\" \"&\"N\")","v":" Q"},{"$f":"dok.niejawna!C40","v":0},{"$f":"TRIM(dok.niejawna!D40)","v":""},{"$f":"dok.niejawna!E40","v":0},{"$f":"dok.niejawna!F40","v":0},{"$f":"dok.niejawna!G40","v":0},{"$f":"dok.niejawna!H40","v":0},1,"0",{"$f":"dok.niejawna!K40","v":0},null,null,null,{"$f":"dok.niejawna!I40","v":" "}]
[0,"KWP1208",0,{"$f":"dok.niejawna!A41","v":14},{"$f":"IF(dok.niejawna!$B$27=2020,dok.niejawna!B41&\" \"&\"Q\",dok.niejawna!B41&\" \"&\"N\")","v":" Q"},{"$f":"dok.niejawna!C41","v":0},{"$f":"TRIM(dok.niejawna!D41)","v":""},{"$f":"dok.niejawna!E41","v":0},{"$f":"dok.niejawna!F41","v":0},{"$f":"dok.niejawna!G41","v":0},{"$f":"dok.niejawna!H41","v":0},1,"0",{"$f":"dok.niejawna!K41","v":0},null,null,null,{"$f":"dok.niejawna!I41","v":" "}]
[0,"KWP1208",0,{"$f":"dok.niejawna!A42","v":15},{"$f":"IF(dok.niejawna!$B$27=2020,dok.niejawna!B42&\" \"&\"Q\",dok.niejawna!B42&\" \"&\"N\")","v":" Q"},{"$f":"dok.niejawna!C42","v":0},{"$f":"TRIM(dok.niejawna!D42)","v":""},{"$f":"dok.niejawna!E42","v":0},{"$f":"dok.niejawna!F42","v":0},{"$f":"dok.niejawna!G42","v":0},{"$f":"dok.niejawna!H42","v":0},1,"0",{"$f":"dok.niejawna!K42","v":0},null,null,null,{"$f":"dok.niejawna!I42","v":" "}]
[{"$f":"A23","v":0},"KWP1208",0,{"$f":"dok.niejawna!A43","v":16},{"$f":"IF(dok.niejawna!$B$27=2020,dok.niejawna!B43&\" \"&\"Q\",dok.niejawna!B43&\" \"&\"N\")","v":" Q"},{"$f":"dok.niejawna!C43","v":0},{"$f":"TRIM(dok.niejawna!D43)","v":""},{"$f":"dok.niejawna!E43","v":0},{"$f":"dok.niejawna!F43","v":0},{"$f":"dok.niejawna!G43","v":0},{"$f":"dok.niejawna!H43","v":0},1,"0",{"$f":"dok.niejawna!K43","v":0},null,null,null,{"$f":"dok.niejawna!I43","v":" "}]
[0,"KWP1208",0,{"$f":"dok.niejawna!A44","v":17},{"$f":"IF(dok.niejawna!$B$27=2020,dok.niejawna!B44&\" \"&\"Q\",dok.niejawna!B44&\" \"&\"N\")","v":" Q"},{"$f":"dok.niejawna!C44","v":0},{"$f":"TRIM(dok.niejawna!D44)","v":""},{"$f":"dok.niejawna!E44","v":0},{"$f":"dok.niejawna!F44","v":0},{"$f":"dok.niejawna!G44","v":0},{"$f":"dok.niejawna!H44","v":0},1,"0",{"$f":"dok.niejawna!K44","v":0},null,null,null,{"$f":"dok.niejawna!I44","v":" "}]
[0,"KWP1208",0,{"$f":"dok.niejawna!A45","v":18},{"$f":"IF(dok.niejawna!$B$27=2020,dok.niejawna!B45&\" \"&\"Q\",dok.niejawna!B45&\" \"&\"N\")","v":" Q"},{"$f":"dok.niejawna!C45","v":0},{"$f":"TRIM(dok.niejawna!D45)","v":""},{"$f":"dok.niejawna!E45","v":0},{"$f":"dok.niejawna!F45","v":0},{"$f":"dok.niejawna!G45","v":0},{"$f":"dok.niejawna!H45","v":0},1,"0",{"$f":"dok.niejawna!K45","v":0},null,null,null,{"$f":"dok.niejawna!I45","v":" "}]
[0,"KWP1208",0,{"$f":"dok.niejawna!A46","v":19},{"$f":"IF(dok.niejawna!$B$27=2020,dok.niejawna!B46&\" \"&\"Q\",dok.niejawna!B46&\" \"&\"N\")","v":" Q"},{"$f":"dok.niejawna!C46","v":0},{"$f":"TRIM(dok.niejawna!D46)","v":""},{"$f":"dok.niejawna!E46","v":0},{"$f":"dok.niejawna!F46","v":0},{"$f":"dok.niejawna!G46","v":0},{"$f":"dok.niejawna!H46","v":0},1,"0",{"$f":"dok.niejawna!K46","v":0},null,null,null,{"$f":"dok.niejawna!I46","v":" "}]
[0,"KWP1208",0,{"$f":"dok.niejawna!A47","v":20},{"$f":"IF(dok.niejawna!$B$27=2020,dok.niejawna!B47&\" \"&\"Q\",dok.niejawna!B47&\" \"&\"N\")","v":" Q"},{"$f":"dok.niejawna!C47","v":0},{"$f":"TRIM(dok.niejawna!D47)","v":""},{"$f":"dok.niejawna!E47","v":0},{"$f":"dok.niejawna!F47","v":0},{"$f":"dok.niejawna!G47","v":0},{"$f":"dok.niejawna!H47","v":0},1,"0",{"$f":"dok.niejawna!K47","v":0},null,null,null,{"$f":"dok.niejawna!I47","v":" "}]
[0,"KWP1208",0,{"$f":"dok.niejawna!A48","v":21},{"$f":"IF(dok.niejawna!$B$27=2020,dok.niejawna!B48&\" \"&\"Q\",dok.niejawna!B48&\" \"&\"N\")","v":" Q"},{"$f":"dok.niejawna!C48","v":0},{"$f":"TRIM(dok.niejawna!D48)","v":""},{"$f":"dok.niejawna!E48","v":0},{"$f":"dok.niejawna!F48","v":0},{"$f":"dok.niejawna!G48","v":0},{"$f":"dok.niejawna!H48","v":0},1,"0",{"$f":"dok.niejawna!K48","v":0},null,null,null,{"$f":"dok.niejawna!I48","v":" "}]
[{"$f":"A29","v":0},"KWP1208",0,{"$f":"dok.niejawna!A49","v":22},{"$f":"IF(dok.niejawna!$B$27=2020,dok.niejawna!B49&\" \"&\"Q\",dok.niejawna!B49&\" \"&\"N\")","v":" Q"},{"$f":"dok.niejawna!C49","v":0},{"$f":"TRIM(dok.niejawna!D49)","v":""},{"$f":"dok.niejawna!E49","v":0},{"$f":"dok.niejawna!F49","v":0},{"$f":"dok.niejawna!G49","v":0},{"$f":"dok.niejawna!H49","v":0},1,"0",{"$f":"dok.niejawna!K49","v":0},null,null,null,{"$f":"dok.niejawna!I49","v":" "}]
[0,"KWP1208",0,{"$f":"dok.niejawna!A50","v":23},{"$f":"IF(dok.niejawna!$B$27=2020,dok.niejawna!B50&\" \"&\"Q\",dok.niejawna!B50&\" \"&\"N\")","v":" Q"},{"$f":"dok.niejawna!C50","v":0},{"$f":"TRIM(dok.niejawna!D50)","v":""},{"$f":"dok.niejawna!E50","v":0},{"$f":"dok.niejawna!F50","v":0},{"$f":"dok.niejawna!G50","v":0},{"$f":"dok.niejawna!H50","v":0},1,"0",{"$f":"dok.niejawna!K50","v":0},null,null,null,{"$f":"dok.niejawna!I50","v":" "}]
[0,"KWP1208",0,{"$f":"dok.niejawna!A51","v":24},{"$f":"IF(dok.niejawna!$B$27=2020,dok.niejawna!B51&\" \"&\"Q\",dok.niejawna!B51&\" \"&\"N\")","v":" Q"},{"$f":"dok.niejawna!C51","v":0},{"$f":"TRIM(dok.niejawna!D51)","v":""},{"$f":"dok.niejawna!E51","v":0},{"$f":"dok.niejawna!F51","v":0},{"$f":"dok.niejawna!G51","v":0},{"$f":"dok.niejawna!H51","v":0},1,"0",{"$f":"dok.niejawna!K51","v":0},null,null,null,{"$f":"dok.niejawna!I51","v":" "}]
[0,"KWP1208",0,{"$f":"dok.niejawna!A52","v":25},{"$f":"IF(dok.niejawna!$B$27=2020,dok.niejawna!B52&\" \"&\"Q\",dok.niejawna!B52&\" \"&\"N\")","v":" Q"},{"$f":"dok.niejawna!C52","v":0},{"$f":"TRIM(dok.niejawna!D52)","v":""},{"$f":"dok.niejawna!E52","v":0},{"$f":"dok.niejawna!F52","v":0},{"$f":"dok.niejawna!G52","v":0},{"$f":"dok.niejawna!H52","v":0},1,"0",{"$f":"dok.niejawna!K52","v":0},null,null,null,{"$f":"dok.niejawna!I52","v":" "}]
[0,"KWP1208",0,{"$f":"dok.niejawna!A53","v":26},{"$f":"IF(dok.niejawna!$B$27=2020,dok.niejawna!B53&\" \"&\"Q\",dok.niejawna!B53&\" \"&\"N\")","v":" Q"},{"$f":"dok.niejawna!C53","v":0},{"$f":"TRIM(dok.niejawna!D53)","v":""},{"$f":"dok.niejawna!E53","v":0},{"$f":"dok.niejawna!F53","v":0},{"$f":"dok.niejawna!G53","v":0},{"$f":"dok.niejawna!H53","v":0},1,"0",{"$f":"dok.niejawna!K53","v":0},null,null,null,{"$f":"dok.niejawna!I53","v":" "}]
[0,"KWP1208",0,{"$f":"dok.niejawna!A54","v":27},{"$f":"IF(dok.niejawna!$B$27=2020,dok.niejawna!B54&\" \"&\"Q\",dok.niejawna!B54&\" \"&\"N\")","v":" Q"},{"$f":"dok.niejawna!C54","v":0},{"$f":"TRIM(dok.niejawna!D54)","v":""},{"$f":"dok.niejawna!E54","v":0},{"$f":"dok.niejawna!F54","v":0},{"$f":"dok.niejawna!G54","v":0},{"$f":"dok.niejawna!H54","v":0},1,"0",{"$f":"dok.niejawna!K54","v":0},null,null,null,{"$f":"dok.niejawna!I54","v":" "}]
[0,"KWP1208",0,{"$f":"dok.niejawna!A55","v":28},{"$f":"IF(dok.niejawna!$B$27=2020,dok.niejawna!B55&\" \"&\"Q\",dok.niejawna!B55&\" \"&\"N\")","v":" Q"},{"$f":"dok.niejawna!C55","v":0},{"$f":"TRIM(dok.niejawna!D55)","v":""},{"$f":"dok.niejawna!E55","v":0},{"$f":"dok.niejawna!F55","v":0},{"$f":"dok.niejawna!G55","v":0},{"$f":"dok.niejawna!H55","v":0},1,"0",{"$f":"dok.niejawna!K55","v":0},null,null,null,{"$f":"dok.niejawna!I55","v":" "}]
[0,"KWP1208",0,{"$f":"dok.niejawna!A56","v":29},{"$f":"IF(dok.niejawna!$B$27=2020,dok.niejawna!B56&\" \"&\"Q\",dok.niejawna!B56&\" \"&\"N\")","v":" Q"},{"$f":"dok.niejawna!C56","v":0},{"$f":"TRIM(dok.niejawna!D56)","v":""},{"$f":"dok.niejawna!E56","v":0},{"$f":"dok.niejawna!F56","v":0},{"$f":"dok.niejawna!G56","v":0},{"$f":"dok.niejawna!H56","v":0},1,"0",{"$f":"dok.niejawna!K56","v":0},null,null,null,{"$f":"dok.niejawna!I56","v":" "}]
[0,"KWP1208",0,{"$f":"dok.niejawna!A57","v":30},{"$f":"IF(dok.niejawna!$B$27=2020,dok.niejawna!B57&\" \"&\"Q\",dok.niejawna!B57&\" \"&\"N\")","v":" Q"},{"$f":"dok.niejawna!C57","v":0},{"$f":"TRIM(dok.niejawna!D57)","v":""},{"$f":"dok.niejawna!E57","v":0},{"$f":"dok.niejawna!F57","v":0},{"$f":"dok.niejawna!G57","v":0},{"$f":"dok.niejawna!H57","v":0},1,"0",{"$f":"dok.niejawna!K57","v":0},null,null,null,{"$f":"dok.niejawna!I57","v":" "}]
[0,"KWP1208",0,{"$f":"dok.niejawna!A58","v":31},{"$f":"IF(dok.niejawna!$B$27=2020,dok.niejawna!B58&\" \"&\"Q\",dok.niejawna!B58&\" \"&\"N\")","v":" Q"},{"$f":"dok.niejawna!C58","v":0},{"$f":"TRIM(dok.niejawna!D58)","v":""},{"$f":"dok.niejawna!E58","v":0},{"$f":"dok.niejawna!F58","v":0},{"$f":"dok.niejawna!G58","v":0},{"$f":"dok.niejawna!H58","v":0},1,"0",{"$f":"dok.niejawna!K58","v":0},null,null,null,{"$f":"dok.niejawna!I58","v":" "}]
[0,"KWP1208",0,{"$f":"dok.niejawna!A59","v":32},{"$f":"IF(dok.niejawna!$B$27=2020,dok.niejawna!B59&\" \"&\"Q\",dok.niejawna!B59&\" \"&\"N\")","v":" Q"},{"$f":"dok.niejawna!C59","v":0},{"$f":"TRIM(dok.niejawna!D59)","v":""},{"$f":"dok.niejawna!E59","v":0},{"$f":"dok.niejawna!F59","v":0},{"$f":"dok.niejawna!G59","v":0},{"$f":"dok.niejawna!H59","v":0},1,"0",{"$f":"dok.niejawna!K59","v":0},null,null,null,{"$f":"dok.niejawna!I59","v":" "}]
[0,"KWP1208",0,{"$f":"dok.niejawna!A60","v":33},{"$f":"IF(dok.niejawna!$B$27=2020,dok.niejawna!B60&\" \"&\"Q\",dok.niejawna!B60&\" \"&\"N\")","v":" Q"},{"$f":"dok.niejawna!C60","v":0},{"$f":"TRIM(dok.niejawna!D60)","v":""},{"$f":"dok.niejawna!E60","v":0},{"$f":"dok.niejawna!F60","v":0},{"$f":"dok.niejawna!G60","v":0},{"$f":"dok.niejawna!H60","v":0},{"$f":"VLOOKUP(R41,IDCechyTaj,2)","v":1},"0",{"$f":"dok.niejawna!K60","v":0},null,null,null,{"$f":"dok.niejawna!I60","v":" "}]
[0,"KWP1208",0,{"$f":"dok.niejawna!A61","v":34},{"$f":"IF(dok.niejawna!$B$27=2020,dok.niejawna!B61&\" \"&\"Q\",dok.niejawna!B61&\" \"&\"N\")","v":" Q"},{"$f":"dok.niejawna!C61","v":0},{"$f":"TRIM(dok.niejawna!D61)","v":""},{"$f":"dok.niejawna!E61","v":0},{"$f":"dok.niejawna!F61","v":0},{"$f":"dok.niejawna!G61","v":0},{"$f":"dok.niejawna!H61","v":0},1,"0",{"$f":"dok.niejawna!K61","v":0},null,null,null,{"$f":"dok.niejawna!I61","v":" "}]
[0,"KWP1208",0,{"$f":"dok.niejawna!A62","v":35},{"$f":"IF(dok.niejawna!$B$27=2020,dok.niejawna!B62&\" \"&\"Q\",dok.niejawna!B62&\" \"&\"N\")","v":" Q"},{"$f":"dok.niejawna!C62","v":0},{"$f":"TRIM(dok.niejawna!D62)","v":""},{"$f":"dok.niejawna!E62","v":0},{"$f":"dok.niejawna!F62","v":0},{"$f":"dok.niejawna!G62","v":0},{"$f":"dok.niejawna!H62","v":0},1,"0",{"$f":"dok.niejawna!K62","v":0},null,null,null,{"$f":"dok.niejawna!I62","v":" "}]
[0,"KWP1208",0,{"$f":"dok.niejawna!A63","v":36},{"$f":"IF(dok.niejawna!$B$27=2020,dok.niejawna!B63&\" \"&\"Q\",dok.niejawna!B63&\" \"&\"N\")","v":" Q"},{"$f":"dok.niejawna!C63","v":0},{"$f":"TRIM(dok.niejawna!D63)","v":""},{"$f":"dok.niejawna!E63","v":0},{"$f":"dok.niejawna!F63","v":0},{"$f":"dok.niejawna!G63","v":0},{"$f":"dok.niejawna!H63","v":0},1,"0",{"$f":"dok.niejawna!K63","v":0},null,null,null,{"$f":"dok.niejawna!I63","v":" "}]
[0,"KWP1208",0,{"$f":"dok.niejawna!A64","v":37},{"$f":"IF(dok.niejawna!$B$27=2020,dok.niejawna!B64&\" \"&\"Q\",dok.niejawna!B64&\" \"&\"N\")","v":" Q"},{"$f":"dok.niejawna!C64","v":0},{"$f":"TRIM(dok.niejawna!D64)","v":""},{"$f":"dok.niejawna!E64","v":0},{"$f":"dok.niejawna!F64","v":0},{"$f":"dok.niejawna!G64","v":0},{"$f":"dok.niejawna!H64","v":0},1,"0",{"$f":"dok.niejawna!K64","v":0},null,null,null,{"$f":"dok.niejawna!I64","v":" "}]
[0,"KWP1208",0,{"$f":"dok.niejawna!A65","v":38},{"$f":"IF(dok.niejawna!$B$27=2020,dok.niejawna!B65&\" \"&\"Q\",dok.niejawna!B65&\" \"&\"N\")","v":" Q"},{"$f":"dok.niejawna!C65","v":0},{"$f":"TRIM(dok.niejawna!D65)","v":""},{"$f":"dok.niejawna!E65","v":0},{"$f":"dok.niejawna!F65","v":0},{"$f":"dok.niejawna!G65","v":0},{"$f":"dok.niejawna!H65","v":0},1,"0",{"$f":"dok.niejawna!K65","v":0},null,null,null,{"$f":"dok.niejawna!I65","v":" "}]
[0,"KWP1208",0,{"$f":"dok.niejawna!A66","v":39},{"$f":"IF(dok.niejawna!$B$27=2020,dok.niejawna!B66&\" \"&\"Q\",dok.niejawna!B66&\" \"&\"N\")","v":" Q"},{"$f":"dok.niejawna!C66","v":0},{"$f":"TRIM(dok.niejawna!D66)","v":""},{"$f":"dok.niejawna!E66","v":0},{"$f":"dok.niejawna!F66","v":0},{"$f":"dok.niejawna!G66","v":0},{"$f":"dok.niejawna!H66","v":0},1,"0",{"$f":"dok.niejawna!K66","v":0},null,null,null,{"$f":"dok.niejawna!I66","v":" "}]
[0,"KWP1208",0,{"$f":"dok.niejawna!A67","v":40},{"$f":"IF(dok.niejawna!$B$27=2020,dok.niejawna!B67&\" \"&\"Q\",dok.niejawna!B67&\" \"&\"N\")","v":" Q"},{"$f":"dok.niejawna!C67","v":0},{"$f":"TRIM(dok.niejawna!D67)","v":""},{"$f":"dok.niejawna!E67","v":0},{"$f":"dok.niejawna!F67","v":0},{"$f":"dok.niejawna!G67","v":0},{"$f":"dok.niejawna!H67","v":0},1,"0",{"$f":"dok.niejawna!K67","v":0},null,null,null,{"$f":"dok.niejawna!I67","v":" "}]
[0,"KWP1208",0,{"$f":"dok.niejawna!A68","v":41},{"$f":"IF(dok.niejawna!$B$27=2020,dok.niejawna!B68&\" \"&\"Q\",dok.niejawna!B68&\" \"&\"N\")","v":" Q"},{"$f":"dok.niejawna!C68","v":0},{"$f":"TRIM(dok.niejawna!D68)","v":""},{"$f":"dok.niejawna!E68","v":0},{"$f":"dok.niejawna!F68","v":0},{"$f":"dok.niejawna!G68","v":0},{"$f":"dok.niejawna!H68","v":0},1,"0",{"$f":"dok.niejawna!K68","v":0},null,null,null,{"$f":"dok.niejawna!I68","v":" "}]
[0,"KWP1208",0,{"$f":"dok.niejawna!A69","v":42},{"$f":"IF(dok.niejawna!$B$27=2020,dok.niejawna!B69&\" \"&\"Q\",dok.niejawna!B69&\" \"&\"N\")","v":" Q"},{"$f":"dok.niejawna!C69","v":0},{"$f":"TRIM(dok.niejawna!D69)","v":""},{"$f":"dok.niejawna!E69","v":0},{"$f":"dok.niejawna!F69","v":0},{"$f":"dok.niejawna!G69","v":0},{"$f":"dok.niejawna!H69","v":0},1,"0",{"$f":"dok.niejawna!K69","v":0},null,null,null,{"$f":"dok.niejawna!I69","v":" "}]
[0,"KWP1208",0,{"$f":"dok.niejawna!A70","v":43},{"$f":"IF(dok.niejawna!$B$27=2020,dok.niejawna!B70&\" \"&\"Q\",dok.niejawna!B70&\" \"&\"N\")","v":" Q"},{"$f":"dok.niejawna!C70","v":0},{"$f":"TRIM(dok.niejawna!D70)","v":""},{"$f":"dok.niejawna!E70","v":0},{"$f":"dok.niejawna!F70","v":0},{"$f":"dok.niejawna!G70","v":0},{"$f":"dok.niejawna!H70","v":0},1,"0",{"$f":"dok.niejawna!K70","v":0},null,null,null,{"$f":"dok.niejawna!I70","v":" "}]
[0,"KWP1208",0,{"$f":"dok.niejawna!A71","v":44},{"$f":"IF(dok.niejawna!$B$27=2020,dok.niejawna!B71&\" \"&\"Q\",dok.niejawna!B71&\" \"&\"N\")","v":" Q"},{"$f":"dok.niejawna!C71","v":0},{"$f":"TRIM(dok.niejawna!D71)","v":""},{"$f":"dok.niejawna!E71","v":0},{"$f":"dok.niejawna!F71","v":0},{"$f":"dok.niejawna!G71","v":0},{"$f":"dok.niejawna!H71","v":0},1,"0",{"$f":"dok.niejawna!K71","v":0},null,null,null,{"$f":"dok.niejawna!I71","v":" "}]
[0,"KWP1208",0,{"$f":"dok.niejawna!A72","v":45},{"$f":"IF(dok.niejawna!$B$27=2020,dok.niejawna!B72&\" \"&\"Q\",dok.niejawna!B72&\" \"&\"N\")","v":" Q"},{"$f":"dok.niejawna!C72","v":0},{"$f":"TRIM(dok.niejawna!D72)","v":""},{"$f":"dok.niejawna!E72","v":0},{"$f":"dok.niejawna!F72","v":0},{"$f":"dok.niejawna!G72","v":0},{"$f":"dok.niejawna!H72","v":0},1,"0",{"$f":"dok.niejawna!K72","v":0},null,null,null,{"$f":"dok.niejawna!I72","v":" "}]
[0,"KWP1208",0,{"$f":"dok.niejawna!A73","v":46},{"$f":"IF(dok.niejawna!$B$27=2020,dok.niejawna!B73&\" \"&\"Q\",dok.niejawna!B73&\" \"&\"N\")","v":" Q"},{"$f":"dok.niejawna!C73","v":0},{"$f":"TRIM(dok.niejawna!D73)","v":""},{"$f":"dok.niejawna!E73","v":0},{"$f":"dok.niejawna!F73","v":0},{"$f":"dok.niejawna!G73","v":0},{"$f":"dok.niejawna!H73","v":0},1,"0",{"$f":"dok.niejawna!K73","v":0},null,null,null,{"$f":"dok.niejawna!I73","v":" "}]
[0,"KWP1208",0,{"$f":"dok.niejawna!A74","v":47},{"$f":"IF(dok.niejawna!$B$27=2020,dok.niejawna!B74&\" \"&\"Q\",dok.niejawna!B74&\" \"&\"N\")","v":" Q"},{"$f":"dok.niejawna!C74","v":0},{"$f":"TRIM(dok.niejawna!D74)","v":""},{"$f":"dok.niejawna!E74","v":0},{"$f":"dok.niejawna!F74","v":0},{"$f":"dok.niejawna!G74","v":0},{"$f":"dok.niejawna!H74","v":0},1,"0",{"$f":"dok.niejawna!K74","v":0},null,null,null,{"$f":"dok.niejawna!I74","v":" "}]
[{"$f":"A55","v":0},"KWP1208",0,{"$f":"dok.niejawna!A75","v":48},{"$f":"IF(dok.niejawna!$B$27=2020,dok.niejawna!B75&\" \"&\"Q\",dok.niejawna!B75&\" \"&\"N\")","v":" Q"},{"$f":"dok.niejawna!C75","v":0},{"$f":"TRIM(dok.niejawna!D75)","v":""},{"$f":"dok.niejawna!E75","v":0},{"$f":"dok.niejawna!F75","v":0},{"$f":"dok.niejawna!G75","v":0},{"$f":"dok.niejawna!H75","v":0},1,"0",{"$f":"dok.niejawna!K75","v":0},null,null,null,{"$f":"dok.niejawna!I75","v":" "}]
[0,"KWP1208",0,{"$f":"dok.niejawna!A76","v":49},{"$f":"IF(dok.niejawna!$B$27=2020,dok.niejawna!B76&\" \"&\"Q\",dok.niejawna!B76&\" \"&\"N\")","v":" Q"},{"$f":"dok.niejawna!C76","v":0},{"$f":"TRIM(dok.niejawna!D76)","v":""},{"$f":"dok.niejawna!E76","v":0},{"$f":"dok.niejawna!F76","v":0},{"$f":"dok.niejawna!G76","v":0},{"$f":"dok.niejawna!H76","v":0},1,"0",{"$f":"dok.niejawna!K76","v":0},null,null,null,{"$f":"dok.niejawna!I76","v":" "}]
[0,"KWP1208",0,{"$f":"dok.niejawna!A77","v":50},{"$f":"IF(dok.niejawna!$B$27=2020,dok.niejawna!B77&\" \"&\"Q\",dok.niejawna!B77&\" \"&\"N\")","v":" Q"},{"$f":"dok.niejawna!C77","v":0},{"$f":"TRIM(dok.niejawna!D77)","v":""},{"$f":"dok.niejawna!E77","v":0},{"$f":"dok.niejawna!F77","v":0},{"$f":"dok.niejawna!G77","v":0},{"$f":"dok.niejawna!H77","v":0},1,"0",{"$f":"dok.niejawna!K77","v":0},null,null,null,{"$f":"dok.niejawna!I77","v":" "}]
[0,"KWP1208",0,{"$f":"dok.niejawna!A78","v":51},{"$f":"IF(dok.niejawna!$B$27=2020,dok.niejawna!B78&\" \"&\"Q\",dok.niejawna!B78&\" \"&\"N\")","v":" Q"},{"$f":"dok.niejawna!C78","v":0},{"$f":"TRIM(dok.niejawna!D78)","v":""},{"$f":"dok.niejawna!E78","v":0},{"$f":"dok.niejawna!F78","v":0},{"$f":"dok.niejawna!G78","v":0},{"$f":"dok.niejawna!H78","v":0},1,"0",{"$f":"dok.niejawna!K78","v":0},null,null,null,{"$f":"dok.niejawna!I78","v":" "}]
[0,"KWP1208",0,{"$f":"dok.niejawna!A79","v":52},{"$f":"IF(dok.niejawna!$B$27=2020,dok.niejawna!B79&\" \"&\"Q\",dok.niejawna!B79&\" \"&\"N\")","v":" Q"},{"$f":"dok.niejawna!C79","v":0},{"$f":"TRIM(dok.niejawna!D79)","v":""},{"$f":"dok.niejawna!E79","v":0},{"$f":"dok.niejawna!F79","v":0},{"$f":"dok.niejawna!G79","v":0},{"$f":"dok.niejawna!H79","v":0},1,"0",{"$f":"dok.niejawna!K79","v":0},null,null,null,{"$f":"dok.niejawna!I79","v":" "}]
[0,"KWP1208",0,{"$f":"dok.niejawna!A80","v":53},{"$f":"IF(dok.niejawna!$B$27=2020,dok.niejawna!B80&\" \"&\"Q\",dok.niejawna!B80&\" \"&\"N\")","v":" Q"},{"$f":"dok.niejawna!C80","v":0},{"$f":"TRIM(dok.niejawna!D80)","v":""},{"$f":"dok.niejawna!E80","v":0},{"$f":"dok.niejawna!F80","v":0},{"$f":"dok.niejawna!G80","v":0},{"$f":"dok.niejawna!H80","v":0},1,"0",{"$f":"dok.niejawna!K80","v":0},null,null,null,{"$f":"dok.niejawna!I80","v":" "}]
[0,"KWP1208",0,{"$f":"dok.niejawna!A81","v":54},{"$f":"IF(dok.niejawna!$B$27=2020,dok.niejawna!B81&\" \"&\"Q\",dok.niejawna!B81&\" \"&\"N\")","v":" Q"},{"$f":"dok.niejawna!C81","v":0},{"$f":"TRIM(dok.niejawna!D81)","v":""},{"$f":"dok.niejawna!E81","v":0},{"$f":"dok.niejawna!F81","v":0},{"$f":"dok.niejawna!G81","v":0},{"$f":"dok.niejawna!H81","v":0},1,"0",{"$f":"dok.niejawna!K81","v":0},null,null,null,{"$f":"dok.niejawna!I81","v":" "}]
[0,"KWP1208",0,{"$f":"dok.niejawna!A82","v":55},{"$f":"IF(dok.niejawna!$B$27=2020,dok.niejawna!B82&\" \"&\"Q\",dok.niejawna!B82&\" \"&\"N\")","v":" Q"},{"$f":"dok.niejawna!C82","v":0},{"$f":"TRIM(dok.niejawna!D82)","v":""},{"$f":"dok.niejawna!E82","v":0},{"$f":"dok.niejawna!F82","v":0},{"$f":"dok.niejawna!G82","v":0},{"$f":"dok.niejawna!H82","v":0},1,"0",{"$f":"dok.niejawna!K82","v":0},null,null,null,{"$f":"dok.niejawna!I82","v":" "}]
[0,"KWP1208",0,{"$f":"dok.niejawna!A83","v":56},{"$f":"IF(dok.niejawna!$B$27=2020,dok.niejawna!B83&\" \"&\"Q\",dok.niejawna!B83&\" \"&\"N\")","v":" Q"},{"$f":"dok.niejawna!C83","v":0},{"$f":"TRIM(dok.niejawna!D83)","v":""},{"$f":"dok.niejawna!E83","v":0},{"$f":"dok.niejawna!F83","v":0},{"$f":"dok.niejawna!G83","v":0},{"$f":"dok.niejawna!H83","v":0},1,"0",{"$f":"dok.niejawna!K83","v":0},null,null,null,{"$f":"dok.niejawna!I83","v":" "}]
[0,"KWP1208",0,{"$f":"dok.niejawna!A84","v":57},{"$f":"IF(dok.niejawna!$B$27=2020,dok.niejawna!B84&\" \"&\"Q\",dok.niejawna!B84&\" \"&\"N\")","v":" Q"},{"$f":"dok.niejawna!C84","v":0},{"$f":"TRIM(dok.niejawna!D84)","v":""},{"$f":"dok.niejawna!E84","v":0},{"$f":"dok.niejawna!F84","v":0},{"$f":"dok.niejawna!G84","v":0},{"$f":"dok.niejawna!H84","v":0},1,"0",{"$f":"dok.niejawna!K84","v":0},null,null,null,{"$f":"dok.niejawna!I84","v":" "}]
[0,"KWP1208",0,{"$f":"dok.niejawna!A85","v":58},{"$f":"IF(dok.niejawna!$B$27=2020,dok.niejawna!B85&\" \"&\"Q\",dok.niejawna!B85&\" \"&\"N\")","v":" Q"},{"$f":"dok.niejawna!C85","v":0},{"$f":"TRIM(dok.niejawna!D85)","v":""},{"$f":"dok.niejawna!E85","v":0},{"$f":"dok.niejawna!F85","v":0},{"$f":"dok.niejawna!G85","v":0},{"$f":"dok.niejawna!H85","v":0},1,"0",{"$f":"dok.niejawna!K85","v":0},null,null,null,{"$f":"dok.niejawna!I85","v":" "}]
[0,"KWP1208",0,{"$f":"dok.niejawna!A86","v":59},{"$f":"IF(dok.niejawna!$B$27=2020,dok.niejawna!B86&\" \"&\"Q\",dok.niejawna!B86&\" \"&\"N\")","v":" Q"},{"$f":"dok.niejawna!C86","v":0},{"$f":"TRIM(dok.niejawna!D86)","v":""},{"$f":"dok.niejawna!E86","v":0},{"$f":"dok.niejawna!F86","v":0},{"$f":"dok.niejawna!G86","v":0},{"$f":"dok.niejawna!H86","v":0},1,"0",{"$f":"dok.niejawna!K86","v":0},null,null,null,{"$f":"dok.niejawna!I86","v":" "}]
[0,"KWP1208",0,{"$f":"dok.niejawna!A87","v":60},{"$f":"IF(dok.niejawna!$B$27=2020,dok.niejawna!B87&\" \"&\"Q\",dok.niejawna!B87&\" \"&\"N\")","v":" Q"},{"$f":"dok.niejawna!C87","v":0},{"$f":"TRIM(dok.niejawna!D87)","v":""},{"$f":"dok.niejawna!E87","v":0},{"$f":"dok.niejawna!F87","v":0},{"$f":"dok.niejawna!G87","v":0},{"$f":"dok.niejawna!H87","v":0},1,"0",{"$f":"dok.niejawna!K87","v":0},null,null,null,{"$f":"dok.niejawna!I87","v":" "}]
[0,"KWP1208",0,{"$f":"dok.niejawna!A88","v":61},{"$f":"IF(dok.niejawna!$B$27=2020,dok.niejawna!B88&\" \"&\"Q\",dok.niejawna!B88&\" \"&\"N\")","v":" Q"},{"$f":"dok.niejawna!C88","v":0},{"$f":"TRIM(dok.niejawna!D88)","v":""},{"$f":"dok.niejawna!E88","v":0},{"$f":"dok.niejawna!F88","v":0},{"$f":"dok.niejawna!G88","v":0},{"$f":"dok.niejawna!H88","v":0},1,"0",{"$f":"dok.niejawna!K88","v":0},null,null,null,{"$f":"dok.niejawna!I88","v":" "}]
[0,"KWP1208",0,{"$f":"dok.niejawna!A89","v":62},{"$f":"IF(dok.niejawna!$B$27=2020,dok.niejawna!B89&\" \"&\"Q\",dok.niejawna!B89&\" \"&\"N\")","v":" Q"},{"$f":"dok.niejawna!C89","v":0},{"$f":"TRIM(dok.niejawna!D89)","v":""},{"$f":"dok.niejawna!E89","v":0},{"$f":"dok.niejawna!F89","v":0},{"$f":"dok.niejawna!G89","v":0},{"$f":"dok.niejawna!H89","v":0},1,"0",{"$f":"dok.niejawna!K89","v":0},null,null,null,{"$f":"dok.niejawna!I89","v":" "}]
[0,"KWP1208",0,{"$f":"dok.niejawna!A90","v":63},{"$f":"IF(dok.niejawna!$B$27=2020,dok.niejawna!B90&\" \"&\"Q\",dok.niejawna!B90&\" \"&\"N\")","v":" Q"},{"$f":"dok.niejawna!C90","v":0},{"$f":"TRIM(dok.niejawna!D90)","v":""},{"$f":"dok.niejawna!E90","v":0},{"$f":"dok.niejawna!F90","v":0},{"$f":"dok.niejawna!G90","v":0},{"$f":"dok.niejawna!H90","v":0},1,"0",{"$f":"dok.niejawna!K90","v":0},null,null,null,{"$f":"dok.niejawna!I90","v":" "}]
[0,"KWP1208",0,{"$f":"dok.niejawna!A91","v":64},{"$f":"IF(dok.niejawna!$B$27=2020,dok.niejawna!B91&\" \"&\"Q\",dok.niejawna!B91&\" \"&\"N\")","v":" Q"},{"$f":"dok.niejawna!C91","v":0},{"$f":"TRIM(dok.niejawna!D91)","v":""},{"$f":"dok.niejawna!E91","v":0},{"$f":"dok.niejawna!F91","v":0},{"$f":"dok.niejawna!G91","v":0},{"$f":"dok.niejawna!H91","v":0},1,"0",{"$f":"dok.niejawna!K91","v":0},null,null,null,{"$f":"dok.niejawna!I91","v":" "}]
[0,"KWP1208",0,{"$f":"dok.niejawna!A92","v":65},{"$f":"IF(dok.niejawna!$B$27=2020,dok.niejawna!B92&\" \"&\"Q\",dok.niejawna!B92&\" \"&\"N\")","v":" Q"},{"$f":"dok.niejawna!C92","v":0},{"$f":"TRIM(dok.niejawna!D92)","v":""},{"$f":"dok.niejawna!E92","v":0},{"$f":"dok.niejawna!F92","v":0},{"$f":"dok.niejawna!G92","v":0},{"$f":"dok.niejawna!H92","v":0},{"$f":"VLOOKUP(R73,IDCechyTaj,2)","v":1},"0",{"$f":"dok.niejawna!K92","v":0},null,null,null,{"$f":"dok.niejawna!I92","v":" "}]
[0,"KWP1208",0,{"$f":"dok.niejawna!A93","v":66},{"$f":"IF(dok.niejawna!$B$27=2020,dok.niejawna!B93&\" \"&\"Q\",dok.niejawna!B93&\" \"&\"N\")","v":" Q"},{"$f":"dok.niejawna!C93","v":0},{"$f":"TRIM(dok.niejawna!D93)","v":""},{"$f":"dok.niejawna!E93","v":0},{"$f":"dok.niejawna!F93","v":0},{"$f":"dok.niejawna!G93","v":0},{"$f":"dok.niejawna!H93","v":0},1,"0",{"$f":"dok.niejawna!K93","v":0},null,null,null,{"$f":"dok.niejawna!I93","v":" "}]
[0,{"$f":"B74","v":"KWP1208"},0,{"$f":"dok.niejawna!A94","v":67},{"$f":"IF(dok.niejawna!$B$27=2020,dok.niejawna!B94&\" \"&\"Q\",dok.niejawna!B94&\" \"&\"N\")","v":" Q"},{"$f":"dok.niejawna!C94","v":0},{"$f":"TRIM(dok.niejawna!D94)","v":""},{"$f":"dok.niejawna!E94","v":0},{"$f":"dok.niejawna!F94","v":0},{"$f":"dok.niejawna!G94","v":0},{"$f":"dok.niejawna!H94","v":0},1,"0",{"$f":"dok.niejawna!K94","v":0},null,null,null,{"$f":"dok.niejawna!I94","v":" "}]
[0,"KWP1208",0,{"$f":"dok.niejawna!A95","v":68},{"$f":"IF(dok.niejawna!$B$27=2020,dok.niejawna!B95&\" \"&\"Q\",dok.niejawna!B95&\" \"&\"N\")","v":" Q"},{"$f":"dok.niejawna!C95","v":0},{"$f":"TRIM(dok.niejawna!D95)","v":""},{"$f":"dok.niejawna!E95","v":0},{"$f":"dok.niejawna!F95","v":0},{"$f":"dok.niejawna!G95","v":0},{"$f":"dok.niejawna!H95","v":0},1,"0",{"$f":"dok.niejawna!K95","v":0},null,null,null,{"$f":"dok.niejawna!I95","v":" "}]
[0,"KWP1208",0,{"$f":"dok.niejawna!A96","v":69},{"$f":"IF(dok.niejawna!$B$27=2020,dok.niejawna!B96&\" \"&\"Q\",dok.niejawna!B96&\" \"&\"N\")","v":" Q"},{"$f":"dok.niejawna!C96","v":0},{"$f":"TRIM(dok.niejawna!D96)","v":""},{"$f":"dok.niejawna!E96","v":0},{"$f":"dok.niejawna!F96","v":0},{"$f":"dok.niejawna!G96","v":0},{"$f":"dok.niejawna!H96","v":0},1,"0",{"$f":"dok.niejawna!K96","v":0},null,null,null,{"$f":"dok.niejawna!I96","v":" "}]
[0,"KWP1208",0,{"$f":"dok.niejawna!A97","v":70},{"$f":"IF(dok.niejawna!$B$27=2020,dok.niejawna!B97&\" \"&\"Q\",dok.niejawna!B97&\" \"&\"N\")","v":" Q"},{"$f":"dok.niejawna!C97","v":0},{"$f":"TRIM(dok.niejawna!D97)","v":""},{"$f":"dok.niejawna!E97","v":0},{"$f":"dok.niejawna!F97","v":0},{"$f":"dok.niejawna!G97","v":0},{"$f":"dok.niejawna!H97","v":0},1,"0",{"$f":"dok.niejawna!K97","v":0},null,null,null,{"$f":"dok.niejawna!I97","v":" "}]
[0,"KWP1208",0,{"$f":"dok.niejawna!A98","v":71},{"$f":"IF(dok.niejawna!$B$27=2020,dok.niejawna!B98&\" \"&\"Q\",dok.niejawna!B98&\" \"&\"N\")","v":" Q"},{"$f":"dok.niejawna!C98","v":0},{"$f":"TRIM(dok.niejawna!D98)","v":""},{"$f":"dok.niejawna!E98","v":0},{"$f":"dok.niejawna!F98","v":0},{"$f":"dok.niejawna!G98","v":0},{"$f":"dok.niejawna!H98","v":0},1,"0",{"$f":"dok.niejawna!K98","v":0},null,null,null,{"$f":"dok.niejawna!I98","v":" "}]
[0,"KWP1208",0,{"$f":"dok.niejawna!A99","v":72},{"$f":"IF(dok.niejawna!$B$27=2020,dok.niejawna!B99&\" \"&\"Q\",dok.niejawna!B99&\" \"&\"N\")","v":" Q"},{"$f":"dok.niejawna!C99","v":0},{"$f":"TRIM(dok.niejawna!D99)","v":""},{"$f":"dok.niejawna!E99","v":0},{"$f":"dok.niejawna!F99","v":0},{"$f":"dok.niejawna!G99","v":0},{"$f":"dok.niejawna!H99","v":0},1,"0",{"$f":"dok.niejawna!K99","v":0},null,null,null,{"$f":"dok.niejawna!I99","v":" "}]
[0,"KWP1208",0,{"$f":"dok.niejawna!A100","v":73},{"$f":"IF(dok.niejawna!$B$27=2020,dok.niejawna!B100&\" \"&\"Q\",dok.niejawna!B100&\" \"&\"N\")","v":" Q"},{"$f":"dok.niejawna!C100","v":0},{"$f":"TRIM(dok.niejawna!D100)","v":""},{"$f":"dok.niejawna!E100","v":0},{"$f":"dok.niejawna!F100","v":0},{"$f":"dok.niejawna!G100","v":0},{"$f":"dok.niejawna!H100","v":0},1,"0",{"$f":"dok.niejawna!K100","v":0},null,null,null,{"$f":"dok.niejawna!I100","v":" "}]
[0,"KWP1208",0,{"$f":"dok.niejawna!A101","v":74},{"$f":"IF(dok.niejawna!$B$27=2020,dok.niejawna!B101&\" \"&\"Q\",dok.niejawna!B101&\" \"&\"N\")","v":" Q"},{"$f":"dok.niejawna!C101","v":0},{"$f":"TRIM(dok.niejawna!D101)","v":""},{"$f":"dok.niejawna!E101","v":0},{"$f":"dok.niejawna!F101","v":0},{"$f":"dok.niejawna!G101","v":0},{"$f":"dok.niejawna!H101","v":0},1,"0",{"$f":"dok.niejawna!K101","v":0},null,null,null,{"$f":"dok.niejawna!I101","v":" "}]
[0,"KWP1208",0,{"$f":"dok.niejawna!A102","v":75},{"$f":"IF(dok.niejawna!$B$27=2020,dok.niejawna!B102&\" \"&\"Q\",dok.niejawna!B102&\" \"&\"N\")","v":" Q"},{"$f":"dok.niejawna!C102","v":0},{"$f":"TRIM(dok.niejawna!D102)","v":""},{"$f":"dok.niejawna!E102","v":0},{"$f":"dok.niejawna!F102","v":0},{"$f":"dok.niejawna!G102","v":0},{"$f":"dok.niejawna!H102","v":0},1,"0",{"$f":"dok.niejawna!K102","v":0},null,null,null,{"$f":"dok.niejawna!I102","v":" "}]
[0,"KWP1208",0,{"$f":"dok.niejawna!A103","v":76},{"$f":"IF(dok.niejawna!$B$27=2020,dok.niejawna!B103&\" \"&\"Q\",dok.niejawna!B103&\" \"&\"N\")","v":" Q"},{"$f":"dok.niejawna!C103","v":0},{"$f":"TRIM(dok.niejawna!D103)","v":""},{"$f":"dok.niejawna!E103","v":0},{"$f":"dok.niejawna!F103","v":0},{"$f":"dok.niejawna!G103","v":0},{"$f":"dok.niejawna!H103","v":0},1,"0",{"$f":"dok.niejawna!K103","v":0},null,null,null,{"$f":"dok.niejawna!I103","v":" "}]
[0,"KWP1208",0,{"$f":"dok.niejawna!A104","v":77},{"$f":"IF(dok.niejawna!$B$27=2020,dok.niejawna!B104&\" \"&\"Q\",dok.niejawna!B104&\" \"&\"N\")","v":" Q"},{"$f":"dok.niejawna!C104","v":0},{"$f":"TRIM(dok.niejawna!D104)","v":""},{"$f":"dok.niejawna!E104","v":0},{"$f":"dok.niejawna!F104","v":0},{"$f":"dok.niejawna!G104","v":0},{"$f":"dok.niejawna!H104","v":0},1,"0",{"$f":"dok.niejawna!K104","v":0},null,null,null,{"$f":"dok.niejawna!I104","v":" "}]
[0,"KWP1208",0,{"$f":"dok.niejawna!A105","v":78},{"$f":"IF(dok.niejawna!$B$27=2020,dok.niejawna!B105&\" \"&\"Q\",dok.niejawna!B105&\" \"&\"N\")","v":" Q"},{"$f":"dok.niejawna!C105","v":0},{"$f":"TRIM(dok.niejawna!D105)","v":""},{"$f":"dok.niejawna!E105","v":0},{"$f":"dok.niejawna!F105","v":0},{"$f":"dok.niejawna!G105","v":0},{"$f":"dok.niejawna!H105","v":0},1,"0",{"$f":"dok.niejawna!K105","v":0},null,null,null,{"$f":"dok.niejawna!I105","v":" "}]
[0,"KWP1208",0,{"$f":"dok.niejawna!A106","v":79},{"$f":"IF(dok.niejawna!$B$27=2020,dok.niejawna!B106&\" \"&\"Q\",dok.niejawna!B106&\" \"&\"N\")","v":" Q"},{"$f":"dok.niejawna!C106","v":0},{"$f":"TRIM(dok.niejawna!D106)","v":""},{"$f":"dok.niejawna!E106","v":0},{"$f":"dok.niejawna!F106","v":0},{"$f":"dok.niejawna!G106","v":0},{"$f":"dok.niejawna!H106","v":0},1,"0",{"$f":"dok.niejawna!K106","v":0},null,null,null,{"$f":"dok.niejawna!I106","v":" "}]
[{"$f":"A87","v":0},"KWP1208",0,{"$f":"dok.niejawna!A107","v":80},{"$f":"IF(dok.niejawna!$B$27=2020,dok.niejawna!B107&\" \"&\"Q\",dok.niejawna!B107&\" \"&\"N\")","v":" Q"},{"$f":"dok.niejawna!C107","v":0},{"$f":"TRIM(dok.niejawna!D107)","v":""},{"$f":"dok.niejawna!E107","v":0},{"$f":"dok.niejawna!F107","v":0},{"$f":"dok.niejawna!G107","v":0},{"$f":"dok.niejawna!H107","v":0},1,"0",{"$f":"dok.niejawna!K107","v":0},null,null,null,{"$f":"dok.niejawna!I107","v":" "}]
[0,"KWP1208",0,{"$f":"dok.niejawna!A108","v":81},{"$f":"IF(dok.niejawna!$B$27=2020,dok.niejawna!B108&\" \"&\"Q\",dok.niejawna!B108&\" \"&\"N\")","v":" Q"},{"$f":"dok.niejawna!C108","v":0},{"$f":"TRIM(dok.niejawna!D108)","v":""},{"$f":"dok.niejawna!E108","v":0},{"$f":"dok.niejawna!F108","v":0},{"$f":"dok.niejawna!G108","v":0},{"$f":"dok.niejawna!H108","v":0},1,"0",{"$f":"dok.niejawna!K108","v":0},null,null,null,{"$f":"dok.niejawna!I108","v":" "}]
[0,"KWP1208",0,{"$f":"dok.niejawna!A109","v":82},{"$f":"IF(dok.niejawna!$B$27=2020,dok.niejawna!B109&\" \"&\"Q\",dok.niejawna!B109&\" \"&\"N\")","v":" Q"},{"$f":"dok.niejawna!C109","v":0},{"$f":"TRIM(dok.niejawna!D109)","v":""},{"$f":"dok.niejawna!E109","v":0},{"$f":"dok.niejawna!F109","v":0},{"$f":"dok.niejawna!G109","v":0},{"$f":"dok.niejawna!H109","v":0},1,"0",{"$f":"dok.niejawna!K109","v":0},null,null,null,{"$f":"dok.niejawna!I109","v":" "}]
[0,"KWP1208",0,{"$f":"dok.niejawna!A110","v":83},{"$f":"IF(dok.niejawna!$B$27=2020,dok.niejawna!B110&\" \"&\"Q\",dok.niejawna!B110&\" \"&\"N\")","v":" Q"},{"$f":"dok.niejawna!C110","v":0},{"$f":"TRIM(dok.niejawna!D110)","v":""},{"$f":"dok.niejawna!E110","v":0},{"$f":"dok.niejawna!F110","v":0},{"$f":"dok.niejawna!G110","v":0},{"$f":"dok.niejawna!H110","v":0},1,"0",{"$f":"dok.niejawna!K110","v":0},null,null,null,{"$f":"dok.niejawna!I110","v":" "}]
[0,"KWP1208",0,{"$f":"dok.niejawna!A111","v":84},{"$f":"IF(dok.niejawna!$B$27=2020,dok.niejawna!B111&\" \"&\"Q\",dok.niejawna!B111&\" \"&\"N\")","v":" Q"},{"$f":"dok.niejawna!C111","v":0},{"$f":"TRIM(dok.niejawna!D111)","v":""},{"$f":"dok.niejawna!E111","v":0},{"$f":"dok.niejawna!F111","v":0},{"$f":"dok.niejawna!G111","v":0},{"$f":"dok.niejawna!H111","v":0},1,"0",{"$f":"dok.niejawna!K111","v":0},null,null,null,{"$f":"dok.niejawna!I111","v":" "}]
[0,"KWP1208",0,{"$f":"dok.niejawna!A112","v":85},{"$f":"IF(dok.niejawna!$B$27=2020,dok.niejawna!B112&\" \"&\"Q\",dok.niejawna!B112&\" \"&\"N\")","v":" Q"},{"$f":"dok.niejawna!C112","v":0},{"$f":"TRIM(dok.niejawna!D112)","v":""},{"$f":"dok.niejawna!E112","v":0},{"$f":"dok.niejawna!F112","v":0},{"$f":"dok.niejawna!G112","v":0},{"$f":"dok.niejawna!H112","v":0},1,"0",{"$f":"dok.niejawna!K112","v":0},null,null,null,{"$f":"dok.niejawna!I112","v":" "}]
[0,"KWP1208",0,{"$f":"dok.niejawna!A113","v":86},{"$f":"IF(dok.niejawna!$B$27=2020,dok.niejawna!B113&\" \"&\"Q\",dok.niejawna!B113&\" \"&\"N\")","v":" Q"},{"$f":"dok.niejawna!C113","v":0},{"$f":"TRIM(dok.niejawna!D113)","v":""},{"$f":"dok.niejawna!E113","v":0},{"$f":"dok.niejawna!F113","v":0},{"$f":"dok.niejawna!G113","v":0},{"$f":"dok.niejawna!H113","v":0},1,"0",{"$f":"dok.niejawna!K113","v":0},null,null,null,{"$f":"dok.niejawna!I113","v":" "}]
[0,"KWP1208",0,{"$f":"dok.niejawna!A114","v":87},{"$f":"IF(dok.niejawna!$B$27=2020,dok.niejawna!B114&\" \"&\"Q\",dok.niejawna!B114&\" \"&\"N\")","v":" Q"},{"$f":"dok.niejawna!C114","v":0},{"$f":"TRIM(dok.niejawna!D114)","v":""},{"$f":"dok.niejawna!E114","v":0},{"$f":"dok.niejawna!F114","v":0},{"$f":"dok.niejawna!G114","v":0},{"$f":"dok.niejawna!H114","v":0},1,"0",{"$f":"dok.niejawna!K114","v":0},null,null,null,{"$f":"dok.niejawna!I114","v":" "}]
[0,"KWP1208",0,{"$f":"dok.niejawna!A115","v":88},{"$f":"IF(dok.niejawna!$B$27=2020,dok.niejawna!B115&\" \"&\"Q\",dok.niejawna!B115&\" \"&\"N\")","v":" Q"},{"$f":"dok.niejawna!C115","v":0},{"$f":"TRIM(dok.niejawna!D115)","v":""},{"$f":"dok.niejawna!E115","v":0},{"$f":"dok.niejawna!F115","v":0},{"$f":"dok.niejawna!G115","v":0},{"$f":"dok.niejawna!H115","v":0},1,"0",{"$f":"dok.niejawna!K115","v":0},null,null,null,{"$f":"dok.niejawna!I115","v":" "}]
[0,"KWP1208",0,{"$f":"dok.niejawna!A116","v":89},{"$f":"IF(dok.niejawna!$B$27=2020,dok.niejawna!B116&\" \"&\"Q\",dok.niejawna!B116&\" \"&\"N\")","v":" Q"},{"$f":"dok.niejawna!C116","v":0},{"$f":"TRIM(dok.niejawna!D116)","v":""},{"$f":"dok.niejawna!E116","v":0},{"$f":"dok.niejawna!F116","v":0},{"$f":"dok.niejawna!G116","v":0},{"$f":"dok.niejawna!H116","v":0},1,"0",{"$f":"dok.niejawna!K116","v":0},null,null,null,{"$f":"dok.niejawna!I116","v":" "}]
[0,"KWP1208",0,{"$f":"dok.niejawna!A117","v":90},{"$f":"IF(dok.niejawna!$B$27=2020,dok.niejawna!B117&\" \"&\"Q\",dok.niejawna!B117&\" \"&\"N\")","v":" Q"},{"$f":"dok.niejawna!C117","v":0},{"$f":"TRIM(dok.niejawna!D117)","v":""},{"$f":"dok.niejawna!E117","v":0},{"$f":"dok.niejawna!F117","v":0},{"$f":"dok.niejawna!G117","v":0},{"$f":"dok.niejawna!H117","v":0},1,"0",{"$f":"dok.niejawna!K117","v":0},null,null,null,{"$f":"dok.niejawna!I117","v":" "}]
[0,"KWP1208",0,{"$f":"dok.niejawna!A118","v":91},{"$f":"IF(dok.niejawna!$B$27=2020,dok.niejawna!B118&\" \"&\"Q\",dok.niejawna!B118&\" \"&\"N\")","v":" Q"},{"$f":"dok.niejawna!C118","v":0},{"$f":"TRIM(dok.niejawna!D118)","v":""},{"$f":"dok.niejawna!E118","v":0},{"$f":"dok.niejawna!F118","v":0},{"$f":"dok.niejawna!G118","v":0},{"$f":"dok.niejawna!H118","v":0},1,"0",{"$f":"dok.niejawna!K118","v":0},null,null,null,{"$f":"dok.niejawna!I118","v":" "}]
[0,"KWP1208",0,{"$f":"dok.niejawna!A119","v":92},{"$f":"IF(dok.niejawna!$B$27=2020,dok.niejawna!B119&\" \"&\"Q\",dok.niejawna!B119&\" \"&\"N\")","v":" Q"},{"$f":"dok.niejawna!C119","v":0},{"$f":"TRIM(dok.niejawna!D119)","v":""},{"$f":"dok.niejawna!E119","v":0},{"$f":"dok.niejawna!F119","v":0},{"$f":"dok.niejawna!G119","v":0},{"$f":"dok.niejawna!H119","v":0},1,"0",{"$f":"dok.niejawna!K119","v":0},null,null,null,{"$f":"dok.niejawna!I119","v":" "}]
[0,"KWP1208",0,{"$f":"dok.niejawna!A120","v":93},{"$f":"IF(dok.niejawna!$B$27=2020,dok.niejawna!B120&\" \"&\"Q\",dok.niejawna!B120&\" \"&\"N\")","v":" Q"},{"$f":"dok.niejawna!C120","v":0},{"$f":"TRIM(dok.niejawna!D120)","v":""},{"$f":"dok.niejawna!E120","v":0},{"$f":"dok.niejawna!F120","v":0},{"$f":"dok.niejawna!G120","v":0},{"$f":"dok.niejawna!H120","v":0},1,"0",{"$f":"dok.niejawna!K120","v":0},null,null,null,{"$f":"dok.niejawna!I120","v":" "}]
[0,"KWP1208",0,{"$f":"dok.niejawna!A121","v":94},{"$f":"IF(dok.niejawna!$B$27=2020,dok.niejawna!B121&\" \"&\"Q\",dok.niejawna!B121&\" \"&\"N\")","v":" Q"},{"$f":"dok.niejawna!C121","v":0},{"$f":"TRIM(dok.niejawna!D121)","v":""},{"$f":"dok.niejawna!E121","v":0},{"$f":"dok.niejawna!F121","v":0},{"$f":"dok.niejawna!G121","v":0},{"$f":"dok.niejawna!H121","v":0},1,"0",{"$f":"dok.niejawna!K121","v":0},null,null,null,{"$f":"dok.niejawna!I121","v":" "}]
[0,"KWP1208",0,{"$f":"dok.niejawna!A122","v":95},{"$f":"IF(dok.niejawna!$B$27=2020,dok.niejawna!B122&\" \"&\"Q\",dok.niejawna!B122&\" \"&\"N\")","v":" Q"},{"$f":"dok.niejawna!C122","v":0},{"$f":"TRIM(dok.niejawna!D122)","v":""},{"$f":"dok.niejawna!E122","v":0},{"$f":"dok.niejawna!F122","v":0},{"$f":"dok.niejawna!G122","v":0},{"$f":"dok.niejawna!H122","v":0},1,"0",{"$f":"dok.niejawna!K122","v":0},null,null,null,{"$f":"dok.niejawna!I122","v":" "}]
[0,"KWP1208",0,{"$f":"dok.niejawna!A123","v":96},{"$f":"IF(dok.niejawna!$B$27=2020,dok.niejawna!B123&\" \"&\"Q\",dok.niejawna!B123&\" \"&\"N\")","v":" Q"},{"$f":"dok.niejawna!C123","v":0},{"$f":"TRIM(dok.niejawna!D123)","v":""},{"$f":"dok.niejawna!E123","v":0},{"$f":"dok.niejawna!F123","v":0},{"$f":"dok.niejawna!G123","v":0},{"$f":"dok.niejawna!H123","v":0},1,"0",{"$f":"dok.niejawna!K123","v":0},null,null,null,{"$f":"dok.niejawna!I123","v":" "}]
[0,"KWP1208",0,{"$f":"dok.niejawna!A124","v":97},{"$f":"IF(dok.niejawna!$B$27=2020,dok.niejawna!B124&\" \"&\"Q\",dok.niejawna!B124&\" \"&\"N\")","v":" Q"},{"$f":"dok.niejawna!C124","v":0},{"$f":"TRIM(dok.niejawna!D124)","v":""},{"$f":"dok.niejawna!E124","v":0},{"$f":"dok.niejawna!F124","v":0},{"$f":"dok.niejawna!G124","v":0},{"$f":"dok.niejawna!H124","v":0},1,"0",{"$f":"dok.niejawna!K124","v":0},null,null,null,{"$f":"dok.niejawna!I124","v":" "}]
[0,"KWP1208",0,{"$f":"dok.niejawna!A125","v":98},{"$f":"IF(dok.niejawna!$B$27=2020,dok.niejawna!B125&\" \"&\"Q\",dok.niejawna!B125&\" \"&\"N\")","v":" Q"},{"$f":"dok.niejawna!C125","v":0},{"$f":"TRIM(dok.niejawna!D125)","v":""},{"$f":"dok.niejawna!E125","v":0},{"$f":"dok.niejawna!F125","v":0},{"$f":"dok.niejawna!G125","v":0},{"$f":"dok.niejawna!H125","v":0},1,"0",{"$f":"dok.niejawna!K125","v":0},null,null,null,{"$f":"dok.niejawna!I125","v":" "}]
[0,"KWP1208",0,{"$f":"dok.niejawna!A126","v":99},{"$f":"IF(dok.niejawna!$B$27=2020,dok.niejawna!B126&\" \"&\"Q\",dok.niejawna!B126&\" \"&\"N\")","v":" Q"},{"$f":"dok.niejawna!C126","v":0},{"$f":"TRIM(dok.niejawna!D126)","v":""},{"$f":"dok.niejawna!E126","v":0},{"$f":"dok.niejawna!F126","v":0},{"$f":"dok.niejawna!G126","v":0},{"$f":"dok.niejawna!H126","v":0},1,"0",{"$f":"dok.niejawna!K126","v":0},null,null,null,{"$f":"dok.niejawna!I126","v":" "}]
[0,"KWP1208",0,{"$f":"dok.niejawna!A127","v":100},{"$f":"IF(dok.niejawna!$B$27=2020,dok.niejawna!B127&\" \"&\"Q\",dok.niejawna!B127&\" \"&\"N\")","v":" Q"},{"$f":"dok.niejawna!C127","v":0},{"$f":"TRIM(dok.niejawna!D127)","v":""},{"$f":"dok.niejawna!E127","v":0},{"$f":"dok.niejawna!F127","v":0},{"$f":"dok.niejawna!G127","v":0},{"$f":"dok.niejawna!H127","v":0},1,"0",{"$f":"dok.niejawna!K127","v":0},null,null,null,{"$f":"dok.niejawna!I127","v":" "}]
[]
[null,null,null,null,null,null,null,null,null,null,"CechaTaj","IdCechyTaj"]
[null,null,null,null,null,null,null,null,null,null," ",1]
[null,null,null,null,null,null,null,null,null,null,"poufne",2]
[null,null,null,null,null,null,null,null,null,null,"ściśle tajne",5]
[null,null,null,null,null,null,null,null,null,null,"tajne",4]
[null,null,null,null,null,null,null,null,null,null,"zastrzeżone",3]

{"sheet":"Jednostki","index":4,"n_rows":1389,"n_cols":8,"rows_kept":1389,"cut":false,"hidden":true,"merged":[]}
[null,null,null,"Siedziba",null,null,null,"000"]
[null,"Aktualne jednostki i komórki KWP Łódź",null,null,null,null,null,"0000"]
["IDJedn","NazwaJedn","Miejscowość","NazwaJedn","Siedziba","IdJedn",null,"0001"]
["CBŚ1161","Centralne Biuro Śledcze Policji","Łódź","Centralne Biuro Śledcze Policji","Łódź","CBŚ1161",null,"001"]
["KMP1241","Komenda Miejska Policji w Łodzi","Łódź","I Komisariat Komendy Miejskiej Policji w Łodzi","Łódź","KOP1244",null,"0010"]
["KMP1255","Komenda Miejska Policji w Piotrkowie Trybunalskim","Piotrków Trybunalski","I Zastępca Komendanta Wojewódzkiego Policji w Łodzi ","Łódź","KWP1202",null,"0011"]
["KMP1256","Komenda Miejska Policji w Skierniewicach","Skierniewice","II Komisariat Komendy Miejskiej Policji w Łodzi","Łódź","KOP1245",null,"0012"]
["KOP1244","I Komisariat Komendy Miejskiej Policji w Łodzi","Łódź","III Komisariat Komendy Miejskiej Policji w Łodzi","Łódź","KOP1246",null,"0013"]
["KOP1245","II Komisariat Komendy Miejskiej Policji w Łodzi","Łódź","IV Komisariat Komendy Miejskiej Policji w Łodzi","Łódź","KOP1247",null,"0014"]
["KOP1246","III Komisariat Komendy Miejskiej Policji w Łodzi","Łódź","Komenda Miejska Policji w Łodzi","Łódź","KMP1241",null,"0015"]
["KOP1247","IV Komisariat Komendy Miejskiej Policji w Łodzi","Łódź","Komenda Miejska Policji w Piotrkowie Trybunalskim","Piotrków Trybunalski","KMP1255",null,"002"]
["KOP1248","V Komisariat Komendy Miejskiej Policji w Łodzi","Łódź","Komenda Miejska Policji w Skierniewicach","Skierniewice","KMP1256",null,"003"]
["KOP1249","VI Komisariat Komendy Miejskiej Policji w Łodzi","Łódź","Komenda Powiatowa Policji Łódź-Wschód","Koluszki","KPP1218",null,"004"]
["KOP1250","VII Komisariat Komendy Miejskiej Policji w Łodzi","Łódź","Komenda Powiatowa Policji w Bełchatowie","Bełchatów","KPP1201",null,"005"]
["KOP1251","VIII Komisariat Komendy Miejskiej Policji w Łodzi","Łódź","Komenda Powiatowa Policji w Brzezinach","Brzeziny","KPP1219",null,"006"]
["KPP1201","Komenda Powiatowa Policji w Bełchatowie","Bełchatów","Komenda Powiatowa Policji w Kutnie","Kutno","KPP1202",null,"007"]
["KPP1202","Komenda Powiatowa Policji w Kutnie","Kutno","Komenda Powiatowa Policji w Łasku","Łask","KPP1203",null,"008"]
["KPP1203","Komenda Powiatowa Policji w Łasku","Łask","Komenda Powiatowa Policji w Łęczycy","Łęczyca","KPP1204",null,"010"]
["KPP1204","Komenda Powiatowa Policji w Łęczycy","Łęczyca","Komenda Powiatowa Policji w Łowiczu","Łowicz","KPP1205",null,"011"]
["KPP1205","Komenda Powiatowa Policji w Łowiczu","Łowicz","Komenda Powiatowa Policji w Opocznie","Opoczno","KPP1206",null,"0110"]
["KPP1206","Komenda Powiatowa Policji w Opocznie","Opoczno","Komenda Powiatowa Policji w Pabianicach","Pabianice","KPP1207",null,"0111"]
["KPP1207","Komenda Powiatowa Policji w Pabianicach","Pabianice","Komenda Powiatowa Policji w Pajęcznie","Pajęczno","KPP1208",null,"0112"]
["KPP1208","Komenda Powiatowa Policji w Pajęcznie","Pajęczno","Komenda Powiatowa Policji w Poddębicach","Poddębice","KPP1209",null,"0113"]
["KPP1209","Komenda Powiatowa Policji w Poddębicach","Poddębice","Komenda Powiatowa Policji w Radomsku","Radomsko","KPP1210",null,"0114"]
["KPP1210","Komenda Powiatowa Policji w Radomsku","Radomsko","Komenda Powiatowa Policji w Rawie Mazowieckiej","Rawa Mazowiecka","KPP1211",null,"012"]
["KPP1211","Komenda Powiatowa Policji w Rawie Mazowieckiej","Rawa Mazowiecka","Komenda Powiatowa Policji w Sieradzu","Sieradz","KPP1212",null,"0120"]
["KPP1212","Komenda Powiatowa Policji w Sieradzu","Sieradz","Komenda Powiatowa Policji w Tomaszowie Mazowieckim","Tomaszów Mazowiecki","KPP1213",null,"0121"]
["KPP1213","Komenda Powiatowa Policji w Tomaszowie Mazowieckim","Tomaszów Mazowiecki","Komenda Powiatowa Policji w Wieluniu","Wieluń","KPP1214",null,"0122"]
["KPP1214","Komenda Powiatowa Policji w Wieluniu","Wieluń","Komenda Powiatowa Policji w Wieruszowie","Wieruszów","KPP1215",null,"0123"]
["KPP1215","Komenda Powiatowa Policji w Wieruszowie","Wieruszów","Komenda Powiatowa Policji w Zduńskiej Woli","Zduńska Wola","KPP1216",null,"0124"]
["KPP1216","Komenda Powiatowa Policji w Zduńskiej Woli","Zduńska Wola","Komenda Powiatowa Policji w Zgierzu","Zgierz","KPP1217",null,"0125"]
["KPP1217","Komenda Powiatowa Policji w Zgierzu","Zgierz","Komenda Wojewódzka Policji w Łodzi","Łódź","KWP1200",null,"0130"]
["KPP1218","Komenda Powiatowa Policji Łódź-Wschód","Koluszki","Komendant Wojewódzki Policji w Łodzi","Łódź","KWP1201",null,"0131"]
["KPP1219","Komenda Powiatowa Policji w Brzezinach","Brzeziny","Laboratorium Kryminalistyczne ","Łódź","KWP1219",null,"0132"]
["KWP1200","Komenda Wojewódzka Policji w Łodzi","Łódź","Oddział Prewencji Policji ","Łódź","KWP1213",null,"0133"]
["KWP1201","Komendant Wojewódzki Policji w Łodzi","Łódź","Ośrodek Szkolenia Policji","Sieradz","KWP1212",null,"0134"]
["KWP1202","I Zastępca Komendanta Wojewódzkiego Policji w Łodzi ","Łódź","Samodzielne Stanowisko do Spraw Audytu Wewnętrznego","Łódź","KWP1206",null,"0135"]
["KWP1203","Zastępca Komendanta Wojewódzkiego Policji w Łodzi","Łódź","Samodzielny Pododdział Kontrterrorystyczny Policji w Łodzi","Łódź","KWP1214",null,"014"]
["KWP1206","Samodzielne Stanowisko do Spraw Audytu Wewnętrznego","Łódź","Sekcja ds. Funduszy Pomocowych i Zamówień Publicznych ","Łódź","KWP1215",null,"0140"]
["KWP1208","Wydział ds. Ochrony Informacji Niejawnych ","Łódź","Sztab Policji ","Łódź","KWP1220",null,"0141"]
["KWP1209","Wydział Kadr i Szkolenia ","Łódź","V Komisariat Komendy Miejskiej Policji w Łodzi","Łódź","KOP1248",null,"0142"]
["KWP1210","Zespół Prawny ","Łódź","VI Komisariat Komendy Miejskiej Policji w Łodzi","Łódź","KOP1249",null,"0143"]
["KWP1211","Wydział Konwojowy","Łódź","VII Komisariat Komendy Miejskiej Policji w Łodzi","Łódź","KOP1250",null,"0144"]
["KWP1212","Ośrodek Szkolenia Policji","Sieradz","VIII Komisariat Komendy Miejskiej Policji w Łodzi","Łódź","KOP1251",null,"0145"]
["KWP1213","Oddział Prewencji Policji ","Łódź","Wydział do walki z Cyberprzestępczością","Łódź","KWP1251",null,"0150"]
["KWP1214","Samodzielny Pododdział Kontrterrorystyczny Policji w Łodzi","Łódź","Wydział do walki z Korupcją ","Łódź","KWP1248",null,"0151"]
["KWP1215","Sekcja ds. Funduszy Pomocowych i Zamówień Publicznych ","Łódź","Wydział do walki z Przestępczością Gospodarczą ","Łódź","KWP1217",null,"0152"]
["KWP1216","Wydział Kryminalny ","Łódź","Wydział do walki z Przestępczością Narkotykową","Łódź","KWP1252",null,"0160"]
["KWP1217","Wydział do walki z Przestępczością Gospodarczą ","Łódź","Wydział Doboru","Łódź","KWP1255",null,"0161"]
["KWP1218","Wydział Techniki Operacyjnej ","Łódź","Wydział Dochodzeniowo-Śledczy ","Łódź","KWP1236",null,"0162"]
["KWP1219","Laboratorium Kryminalistyczne ","Łódź","Wydział ds. Ochrony Informacji Niejawnych ","Łódź","KWP1208",null,"0163"]
["KWP1220","Sztab Policji ","Łódź","Wydział ds. Zwalczania Przestępczości Pseudokibiców","Łódź","KWP1253",null,"0164"]
["KWP1221","Wydział Postępowań Administracyjnych ","Łódź","Wydział Finansów ","Łódź","KWP1223",null,"0165"]
["KWP1223","Wydział Finansów ","Łódź","Wydział Gospodarki Materiałowo - Technicznej ","Łódź","KWP1225",null,"0166"]
["KWP1225","Wydział Gospodarki Materiałowo - Technicznej ","Łódź","Wydział Inwestycji i Remontów ","Łódź","KWP1227",null,"0167"]
["KWP1226","Wydział Transportu ","Łódź","Wydział Kadr i Szkolenia ","Łódź","KWP1209",null,"0168"]
["KWP1227","Wydział Inwestycji i Remontów ","Łódź","Wydział Komunikacji Społecznej ","Łódź","KWP1243",null,"0169"]
["KWP1228","Wydział Łączności i Informatyki ","Łódź","Wydział Kontroli ","Łódź","KWP1245",null,"017"]
["KWP1236","Wydział Dochodzeniowo-Śledczy ","Łódź","Wydział Konwojowy","Łódź","KWP1211",null,"0170"]
["KWP1240","Wydział Prewencji ","Łódź","Wydział Kryminalny ","Łódź","KWP1216",null,"0171"]
["KWP1241","Wydział Ruchu Drogowego ","Sosnowiec","Wydział Łączności i Informatyki ","Łódź","KWP1228",null,"0172"]
["KWP1242","Wydział Wywiadu Kryminalnego ","Łódź","Wydział Postępowań Administracyjnych ","Łódź","KWP1221",null,"0173"]
["KWP1243","Wydział Komunikacji Społecznej ","Łódź","Wydział Prewencji ","Łódź","KWP1240",null,"0174"]
["KWP1244","Zespół Prasowy ","Łódź","Wydział Psychologów ","Łódź","KWP1247",null,"0175"]
["KWP1245","Wydział Kontroli ","Łódź","Wydział Ruchu Drogowego ","Sosnowiec","KWP1241",null,"0176"]
["KWP1247","Wydział Psychologów ","Łódź","Wydział Techniki Operacyjnej ","Łódź","KWP1218",null,"0177"]
["KWP1248","Wydział do walki z Korupcją ","Łódź","Wydział Transportu ","Łódź","KWP1226",null,"0178"]
["KWP1251","Wydział do walki z Cyberprzestępczością","Łódź","Wydział Wywiadu Kryminalnego ","Łódź","KWP1242",null,"0179"]
["KWP1252","Wydział do walki z Przestępczością Narkotykową","Łódź","Zarząd w Łodzi ","Łódź","CBŚ1161",null,"018"]
["KWP1253","Wydział ds. Zwalczania Przestępczości Pseudokibiców","Łódź","Zastępca Komendanta Wojewódzkiego Policji w Łodzi","Łódź","KWP1203",null,"0180"]
["KWP1254","Zespół ds. Bezpieczeństwa i Higieny Pracy","Łódź","Zespół ds. Bezpieczeństwa i Higieny Pracy","Łódź","KWP1254",null,"0181"]
["KWP1255","Wydział Doboru","Łódź","Zespół Prasowy ","Łódź","KWP1244",null,"0182"]
["CBŚ1162","Zarząd w Łodzi ","Łódź","Zespół Prawny ","Łódź","KWP1210",null,"0183"]
[null,null,null,null,null,null,null,"0184"]
[null,null,null,null,null,null,null,"0185"]
[null,null,null,null,null,null,null,"0186"]
[null,null,null,null,null,null,null,"0187"]
[null,null,null,null,null,null,null,"0188"]
[null,null,null,null,null,null,null,"0189"]
[null,null,null,null,null,null,null,"0190"]
[null,"IdJedn",null,null,null,null,null,"0191"]
[null,"NazwaJedn","IdJedn",null,null,null,null,"0192"]
[1,"Komenda Miejska Policji w Łodzi","KMP1241",null,null,null,null,"0193"]
[2,"Komenda Miejska Policji w Piotrkowie Trybunalskim","KMP1255",null,null,null,null,"0194"]
[3,"Komenda Miejska Policji w Skierniewicach","KMP1256",null,null,null,null,"0195"]
[4,"I Komisariat Komendy Miejskiej Policji w Łodzi","KOP1244",null,null,null,null,"0196"]
[5,"II Komisariat Komendy Miejskiej Policji w Łodzi","KOP1245",null,null,null,null,"0197"]
[6,"III Komisariat Komendy Miejskiej Policji w Łodzi","KOP1246",null,null,null,null,"020"]
[7,"IV Komisariat Komendy Miejskiej Policji w Łodzi","KOP1247",null,null,null,null,"0200"]
[8,"V Komisariat Komendy Miejskiej Policji w Łodzi","KOP1248",null,null,null,null,"0201"]
[9,"VI Komisariat Komendy Miejskiej Policji w Łodzi","KOP1249",null,null,null,null,"0202"]
[10,"VII Komisariat Komendy Miejskiej Policji w Łodzi","KOP1250",null,null,null,null,"0203"]
[11,"VIII Komisariat Komendy Miejskiej Policji w Łodzi","KOP1251",null,null,null,null,"0204"]
[12,"Komenda Powiatowa Policji w Bełchatowie","KPP1201",null,null,null,null,"021"]
[13,"Komenda Powiatowa Policji w Kutnie","KPP1202",null,null,null,null,"0210"]
[14,"Komenda Powiatowa Policji w Łasku","KPP1203",null,null,null,null,"0211"]
[15,"Komenda Powiatowa Policji w Łęczycy","KPP1204",null,null,null,null,"0212"]
[16,"Komenda Powiatowa Policji w Łowiczu","KPP1205",null,null,null,null,"0213"]
[17,"Komenda Powiatowa Policji w Opocznie","KPP1206",null,null,null,null,"0214"]
[18,"Komenda Powiatowa Policji w Pabianicach","KPP1207",null,null,null,null,"0215"]
[19,"Komenda Powiatowa Policji w Pajęcznie","KPP1208",null,null,null,null,"0216"]
[20,"Komenda Powiatowa Policji w Poddębicach","KPP1209",null,null,null,null,"0217"]
[21,"Komenda Powiatowa Policji w Radomsku","KPP1210",null,null,null,null,"022"]
[22,"Komenda Powiatowa Policji w Rawie Mazowieckiej","KPP1211",null,null,null,null,"0220"]
[23,"Komenda Powiatowa Policji w Sieradzu","KPP1212",null,null,null,null,"0221"]
[24,"Komenda Powiatowa Policji w Tomaszowie Mazowieckim","KPP1213",null,null,null,null,"0222"]
[25,"Komenda Powiatowa Policji w Wieluniu","KPP1214",null,null,null,null,"0223"]
[26,"Komenda Powiatowa Policji w Wieruszowie","KPP1215",null,null,null,null,"0224"]
[27,"Komenda Powiatowa Policji w Zduńskiej Woli","KPP1216",null,null,null,null,"0225"]
[28,"Komenda Powiatowa Policji w Zgierzu","KPP1217",null,null,null,null,"0226"]
[29,"Komenda Powiatowa Policji Łódź-Wschód","KPP1218",null,null,null,null,"023"]
[30,"Komenda Powiatowa Policji w Brzezinach","KPP1219",null,null,null,null,"0230"]
[31,"Komenda Wojewódzka Policji w Łodzi","KWP1200",null,null,null,null,"0231"]
[32,"Komendant Wojewódzki Policji w Łodzi","KWP1201",null,null,null,null,"0232"]
[33,"I Zastępca Komendanta Wojewódzkiego Policji w Łodzi ","KWP1202",null,null,null,null,"0233"]
[34,"Zastępca Komendanta Wojewódzkiego Policji w Łodzi","KWP1203",null,null,null,null,"0234"]
[35,"Samodzielne Stanowisko do Spraw Audytu Wewnętrznego","KWP1206",null,null,null,null,"0235"]
[36,"Wydział ds. Ochrony Informacji Niejawnych ","KWP1208",null,null,null,null,"0236"]
[37,"Wydział Kadr i Szkolenia ","KWP1209",null,null,null,null,"024"]
[38,"Zespół Prawny ","KWP1210",null,null,null,null,"0240"]
[39,"Wydział Konwojowy","KWP1211",null,null,null,null,"0241"]
[40,"Ośrodek Szkolenia Policji","KWP1212",null,null,null,null,"0242"]
[41,"Oddział Prewencji Policji ","KWP1213",null,null,null,null,"0243"]
[42,"Samodzielny Pododdział Kontrterrorystyczny Policji w Łodzi","KWP1214",null,null,null,null,"0244"]
[43,"Sekcja ds. Funduszy Pomocowych i Zamówień Publicznych ","KWP1215",null,null,null,null,"0245"]
[44,"Wydział Kryminalny ","KWP1216",null,null,null,null,"0246"]
[45,"Wydział do walki z Przestępczością Gospodarczą ","KWP1217",null,null,null,null,"0247"]
[46,"Wydział Techniki Operacyjnej ","KWP1218",null,null,null,null,"025"]
[47,"Laboratorium Kryminalistyczne ","KWP1219",null,null,null,null,"0250"]
[48,"Sztab Policji ","KWP1220",null,null,null,null,"0251"]
[49,"Wydział Postępowań Administracyjnych ","KWP1221",null,null,null,null,"0252"]
[50,"Wydział Finansów ","KWP1223",null,null,null,null,"0253"]
[51,"Wydział Gospodarki Materiałowo - Technicznej ","KWP1225",null,null,null,null,"0254"]
[52,"Wydział Transportu ","KWP1226",null,null,null,null,"0255"]
[53,"Wydział Inwestycji i Remontów ","KWP1227",null,null,null,null,"0256"]
[54,"Wydział Łączności i Informatyki ","KWP1228",null,null,null,null,"026"]
[55,"Wydział Dochodzeniowo-Śledczy ","KWP1236",null,null,null,null,"0260"]
[56,"Wydział Prewencji ","KWP1240",null,null,null,null,"0261"]
[57,"Wydział Ruchu Drogowego ","KWP1241",null,null,null,null,"0262"]
[58,"Wydział Wywiadu Kryminalnego ","KWP1242",null,null,null,null,"027"]
[59,"Wydział Komunikacji Społecznej ","KWP1243",null,null,null,null,"0270"]
[60,"Zespół Prasowy ","KWP1244",null,null,null,null,"0271"]
[61,"Wydział Kontroli ","KWP1245",null,null,null,null,"0272"]
[62,"Wydział Psychologów ","KWP1247",null,null,null,null,"0273"]
[63,"Wydział do walki z Korupcją ","KWP1248",null,null,null,null,"0274"]
[64,"Wydział do walki z Cyberprzestępczością","KWP1251",null,null,null,null,"0275"]
[65,"Wydział do walki z Przestępczością Narkotykową","KWP1252",null,null,null,null,"0276"]
[66,"Wydział ds. Zwalczania Przestępczości Pseudokibiców","KWP1253",null,null,null,null,"0277"]
[67,"Zespół ds. Bezpieczeństwa i Higieny Pracy","KWP1254",null,null,null,null,"0278"]
[68,"Wydział Doboru","KWP1255",null,null,null,null,"028"]
[69,"Centralne Biuro Śledcze Policji","CBŚ1161",null,null,null,null,"0280"]
[70,"Zarząd w Łodzi ","CBŚ1161",null,null,null,null,"0281"]
[null,null,null,null,null,null,null,"0282"]
[null,null,null,null,null,null,null,"0283"]
[null,null,null,null,null,null,null,"0290"]
[null,null,null,null,null,null,null,"0291"]
[null,null,null,null,null,null,null,"0292"]
[null,null,null,null,null,null,null,"0293"]
[null,null,null,null,null,null,null,"0294"]
[null,null,null,null,null,null,null,"0295"]
[null,null,null,null,null,null,null,"0296"]
[null,null,null,null,null,null,null,"0297"]
[null,null,null,null,null,null,null,"030"]
[null,null,null,null,null,null,null,"0300"]
[null,null,null,null,null,null,null,"0301"]
[null,null,null,null,null,null,null,"0302"]
[null,null,null,null,null,null,null,"031"]
[null,null,null,null,null,null,null,"032"]
[null,null,null,null,null,null,null,"0320"]
[null,null,null,null,null,null,null,"0321"]
[null,null,null,null,null,null,null,"0322"]
[null,null,null,null,null,null,null,"0323"]
[null,null,null,null,null,null,null,"0324"]
[null,null,null,null,null,null,null,"0325"]
[null,null,null,null,null,null,null,"0326"]
[null,null,null,null,null,null,null,"0327"]
[null,null,null,null,null,null,null,"033"]
[null,null,null,null,null,null,null,"0330"]
[null,null,null,null,null,null,null,"0331"]
[null,null,null,null,null,null,null,"0332"]
[null,null,null,null,null,null,null,"0333"]
[null,null,null,null,null,null,null,"0334"]
[null,null,null,null,null,null,null,"0335"]
[null,null,null,null,null,null,null,"0336"]
[null,null,null,null,null,null,null,"0337"]
[null,null,null,null,null,null,null,"034"]
[null,null,null,null,null,null,null,"0340"]
[null,null,null,null,null,null,null,"0341"]
[null,null,null,null,null,null,null,"0342"]
[null,null,null,null,null,null,null,"0343"]
[null,null,null,null,null,null,null,"035"]
[null,null,null,null,null,null,null,"0350"]
[null,null,null,null,null,null,null,"0351"]
[null,null,null,null,null,null,null,"0352"]
[null,null,null,null,null,null,null,"0353"]
[null,null,null,null,null,null,null,"0354"]
[null,null,null,null,null,null,null,"0355"]
[null,null,null,null,null,null,null,"0356"]
[null,null,null,null,null,null,null,"036"]
[null,null,null,null,null,null,null,"037"]
[null,null,null,null,null,null,null,"038"]
[null,null,null,null,null,null,null,"0400"]
[null,null,null,null,null,null,null,"0401"]
[null,null,null,null,null,null,null,"0402"]
[null,null,null,null,null,null,null,"0403"]
[null,null,null,null,null,null,null,"0404"]
[null,null,null,null,null,null,null,"0410"]
[null,null,null,null,null,null,null,"0411"]
[null,null,null,null,null,null,null,"042"]
[null,null,null,null,null,null,null,"0420"]
[null,null,null,null,null,null,null,"0421"]
[null,null,null,null,null,null,null,"0422"]
[null,null,null,null,null,null,null,"0423"]
[null,null,null,null,null,null,null,"043"]
[null,null,null,null,null,null,null,"0430"]
[null,null,null,null,null,null,null,"0431"]
[null,null,null,null,null,null,null,"0432"]
[null,null,null,null,null,null,null,"044"]
[null,null,null,null,null,null,null,"0440"]
[null,null,null,null,null,null,null,"0441"]
[null,null,null,null,null,null,null,"0442"]
[null,null,null,null,null,null,null,"0443"]
[null,null,null,null,null,null,null,"0444"]
[null,null,null,null,null,null,null,"0445"]
[null,null,null,null,null,null,null,"0450"]
[null,null,null,null,null,null,null,"0451"]
[null,null,null,null,null,null,null,"0452"]
[null,null,null,null,null,null,null,"0453"]
[null,null,null,null,null,null,null,"0454"]
[null,null,null,null,null,null,null,"050"]
[null,null,null,null,null,null,null,"0500"]
[null,null,null,null,null,null,null,"0501"]
[null,null,null,null,null,null,null,"0502"]
[null,null,null,null,null,null,null,"0503"]
[null,null,null,null,null,null,null,"0504"]
[null,null,null,null,null,null,null,"0505"]
[null,null,null,null,null,null,null,"0506"]
[null,null,null,null,null,null,null,"0510"]
[null,null,null,null,null,null,null,"0511"]
[null,null,null,null,null,null,null,"052"]
[null,null,null,null,null,null,null,"053"]
[null,null,null,null,null,null,null,"054"]
[null,null,null,null,null,null,null,"055"]
[null,null,null,null,null,null,null,"060"]
[null,null,null,null,null,null,null,"0600"]
[null,null,null,null,null,null,null,"0601"]
[null,null,null,null,null,null,null,"0602"]
[null,null,null,null,null,null,null,"0603"]
[null,null,null,null,null,null,null,"0604"]
[null,null,null,null,null,null,null,"0605"]
[null,null,null,null,null,null,null,"0610"]
[null,null,null,null,null,null,null,"0611"]
[null,null,null,null,null,null,null,"0612"]
[null,null,null,null,null,null,null,"0613"]
[null,null,null,null,null,null,null,"0614"]
[null,null,null,null,null,null,null,"0615"]
[null,null,null,null,null,null,null,"062"]
[null,null,null,null,null,null,null,"0620"]
[null,null,null,null,null,null,null,"0621"]
[null,null,null,null,null,null,null,"0622"]
[null,null,null,null,null,null,null,"0623"]
[null,null,null,null,null,null,null,"0624"]
[null,null,null,null,null,null,null,"0630"]
[null,null,null,null,null,null,null,"0631"]
[null,null,null,null,null,null,null,"064"]
[null,null,null,null,null,null,null,"065"]
[null,null,null,null,null,null,null,"0660"]
[null,null,null,null,null,null,null,"0661"]
[null,null,null,null,null,null,null,"0662"]
[null,null,null,null,null,null,null,"0663"]
[null,null,null,null,null,null,null,"0664"]
[null,null,null,null,null,null,null,"0665"]
[null,null,null,null,null,null,null,"0666"]
[null,null,null,null,null,null,null,"0667"]
[null,null,null,null,null,null,null,"0668"]
[null,null,null,null,null,null,null,"070"]
[null,null,null,null,null,null,null,"071"]
[null,null,null,null,null,null,null,"0710"]
[null,null,null,null,null,null,null,"0711"]
[null,null,null,null,null,null,null,"0712"]
[null,null,null,null,null,null,null,"0713"]
[null,null,null,null,null,null,null,"0714"]
[null,null,null,null,null,null,null,"0715"]
[null,null,null,null,null,null,null,"072"]
[null,null,null,null,null,null,null,"0720"]
[null,null,null,null,null,null,null,"0721"]
[null,null,null,null,null,null,null,"0722"]
[null,null,null,null,null,null,null,"0723"]
[null,null,null,null,null,null,null,"073"]
[null,null,null,null,null,null,null,"0730"]
[null,null,null,null,null,null,null,"0731"]
[null,null,null,null,null,null,null,"0732"]
[null,null,null,null,null,null,null,"0733"]
[null,null,null,null,null,null,null,"0740"]
[null,null,null,null,null,null,null,"0741"]
[null,null,null,null,null,null,null,"0742"]
[null,null,null,null,null,null,null,"0743"]
[null,null,null,null,null,null,null,"0744"]
[null,null,null,null,null,null,null,"0745"]
[null,null,null,null,null,null,null,"0746"]
[null,null,null,null,null,null,null,"0747"]
[null,null,null,null,null,null,null,"0748"]
[null,null,null,null,null,null,null,"075"]
[null,null,null,null,null,null,null,"0750"]
[null,null,null,null,null,null,null,"0751"]
[null,null,null,null,null,null,null,"0752"]
[null,null,null,null,null,null,null,"0753"]
[null,null,null,null,null,null,null,"0754"]
[null,null,null,null,null,null,null,"0755"]
[null,null,null,null,null,null,null,"0756"]
[null,null,null,null,null,null,null,"076"]
[null,null,null,null,null,null,null,"077"]
[null,null,null,null,null,null,null,"0770"]
[null,null,null,null,null,null,null,"0771"]
[null,null,null,null,null,null,null,"0772"]
[null,null,null,null,null,null,null,"0773"]
[null,null,null,null,null,null,null,"0774"]
[null,null,null,null,null,null,null,"0775"]
[null,null,null,null,null,null,null,"0776"]
[null,null,null,null,null,null,null,"0777"]
[null,null,null,null,null,null,null,"078"]
[null,null,null,null,null,null,null,"0780"]
[null,null,null,null,null,null,null,"0781"]
[null,null,null,null,null,null,null,"0782"]
[null,null,null,null,null,null,null,"0783"]
[null,null,null,null,null,null,null,"0784"]
[null,null,null,null,null,null,null,"0785"]
[null,null,null,null,null,null,null,"0786"]
[null,null,null,null,null,null,null,"0787"]
[null,null,null,null,null,null,null,"0790"]
[null,null,null,null,null,null,null,"0791"]
[null,null,null,null,null,null,null,"0792"]
[null,null,null,null,null,null,null,"0793"]
[null,null,null,null,null,null,null,"0794"]
[null,null,null,null,null,null,null,"0800"]
[null,null,null,null,null,null,null,"0801"]
[null,null,null,null,null,null,null,"0802"]
[null,null,null,null,null,null,null,"0803"]
[null,null,null,null,null,null,null,"0804"]
[null,null,null,null,null,null,null,"0805"]
[null,null,null,null,null,null,null,"0806"]
[null,null,null,null,null,null,null,"0807"]
[null,null,null,null,null,null,null,"0810"]
[null,null,null,null,null,null,null,"0811"]
[null,null,null,null,null,null,null,"0812"]
[null,null,null,null,null,null,null,"0813"]
[null,null,null,null,null,null,null,"0814"]
[null,null,null,null,null,null,null,"0815"]
[null,null,null,null,null,null,null,"0816"]
[null,null,null,null,null,null,null,"0820"]
[null,null,null,null,null,null,null,"0821"]
[null,null,null,null,null,null,null,"0822"]
[null,null,null,null,null,null,null,"0823"]
[null,null,null,null,null,null,null,"083"]
[null,null,null,null,null,null,null,"0830"]
[null,null,null,null,null,null,null,"0831"]
[null,null,null,null,null,null,null,"084"]
[null,null,null,null,null,null,null,"085"]
[null,null,null,null,null,null,null,"0860"]
[null,null,null,null,null,null,null,"0861"]
[null,null,null,null,null,null,null,"090"]
[null,null,null,null,null,null,null,"0900"]
[null,null,null,null,null,null,null,"0901"]
[null,null,null,null,null,null,null,"091"]
[null,null,null,null,null,null,null,"0910"]
[null,null,null,null,null,null,null,"0911"]
[null,null,null,null,null,null,null,"0912"]
[null,null,null,null,null,null,null,"0913"]
[null,null,null,null,null,null,null,"0914"]
[null,null,null,null,null,null,null,"0915"]
[null,null,null,null,null,null,null,"092"]
[null,null,null,null,null,null,null,"093"]
[null,null,null,null,null,null,null,"094"]
[null,null,null,null,null,null,null,"0940"]
[null,null,null,null,null,null,null,"0941"]
[null,null,null,null,null,null,null,"0942"]
[null,null,null,null,null,null,null,"095"]
[null,null,null,null,null,null,null,"096"]
[null,null,null,null,null,null,null,"097"]
[null,null,null,null,null,null,null,"0970"]
[null,null,null,null,null,null,null,"0971"]
[null,null,null,null,null,null,null,"10"]
[null,null,null,null,null,null,null,"100"]
[null,null,null,null,null,null,null,"101"]
[null,null,null,null,null,null,null,"110"]
[null,null,null,null,null,null,null,"1100"]
[null,null,null,null,null,null,null,"1101"]
[null,null,null,null,null,null,null,"1102"]
[null,null,null,null,null,null,null,"1103"]
[null,null,null,null,null,null,null,"1104"]
[null,null,null,null,null,null,null,"1105"]
[null,null,null,null,null,null,null,"1106"]
[null,null,null,null,null,null,null,"1107"]
[null,null,null,null,null,null,null,"1110"]
[null,null,null,null,null,null,null,"1111"]
[null,null,null,null,null,null,null,"1112"]
[null,null,null,null,null,null,null,"1113"]
[null,null,null,null,null,null,null,"1114"]
[null,null,null,null,null,null,null,"112"]
[null,null,null,null,null,null,null,"1120"]
[null,null,null,null,null,null,null,"1121"]
[null,null,null,null,null,null,null,"1130"]
[null,null,null,null,null,null,null,"1131"]
[null,null,null,null,null,null,null,"1132"]
[null,null,null,null,null,null,null,"1133"]
[null,null,null,null,null,null,null,"1134"]
[null,null,null,null,null,null,null,"1135"]
[null,null,null,null,null,null,null,"1136"]
[null,null,null,null,null,null,null,"1137"]
[null,null,null,null,null,null,null,"114"]
[null,null,null,null,null,null,null,"1140"]
[null,null,null,null,null,null,null,"1141"]
[null,null,null,null,null,null,null,"1150"]
[null,null,null,null,null,null,null,"1151"]
[null,null,null,null,null,null,null,"1152"]
[null,null,null,null,null,null,null,"1200"]
[null,null,null,null,null,null,null,"1201"]
[null,null,null,null,null,null,null,"1202"]
[null,null,null,null,null,null,null,"1203"]
[null,null,null,null,null,null,null,"1204"]
[null,null,null,null,null,null,null,"1205"]
[null,null,null,null,null,null,null,"1206"]
[null,null,null,null,null,null,null,"1207"]
[null,null,null,null,null,null,null,"1208"]
[null,null,null,null,null,null,null,"1210"]
[null,null,null,null,null,null,null,"1211"]
[null,null,null,null,null,null,null,"1212"]
[null,null,null,null,null,null,null,"1213"]
[null,null,null,null,null,null,null,"1214"]
[null,null,null,null,null,null,null,"1215"]
[null,null,null,null,null,null,null,"1216"]
[null,null,null,null,null,null,null,"1217"]
[null,null,null,null,null,null,null,"1218"]
[null,null,null,null,null,null,null,"1220"]
[null,null,null,null,null,null,null,"1221"]
[null,null,null,null,null,null,null,"1222"]
[null,null,null,null,null,null,null,"1223"]
[null,null,null,null,null,null,null,"1224"]
[null,null,null,null,null,null,null,"1225"]
[null,null,null,null,null,null,null,"1230"]
[null,null,null,null,null,null,null,"1231"]
[null,null,null,null,null,null,null,"1232"]
[null,null,null,null,null,null,null,"1233"]
[null,null,null,null,null,null,null,"1240"]
[null,null,null,null,null,null,null,"1241"]
[null,null,null,null,null,null,null,"1242"]
[null,null,null,null,null,null,null,"1243"]
[null,null,null,null,null,null,null,"1244"]
[null,null,null,null,null,null,null,"1245"]
[null,null,null,null,null,null,null,"125"]
[null,null,null,null,null,null,null,"1250"]
[null,null,null,null,null,null,null,"1251"]
[null,null,null,null,null,null,null,"126"]
[null,null,null,null,null,null,null,"1260"]
[null,null,null,null,null,null,null,"1261"]
[null,null,null,null,null,null,null,"127"]
[null,null,null,null,null,null,null,"1270"]
[null,null,null,null,null,null,null,"1271"]
[null,null,null,null,null,null,null,"1272"]
[null,null,null,null,null,null,null,"1273"]
[null,null,null,null,null,null,null,"1280"]
[null,null,null,null,null,null,null,"1281"]
[null,null,null,null,null,null,null,"1282"]
[null,null,null,null,null,null,null,"1283"]
[null,null,null,null,null,null,null,"1284"]
[null,null,null,null,null,null,null,"1285"]
[null,null,null,null,null,null,null,"1286"]
[null,null,null,null,null,null,null,"1287"]
[null,null,null,null,null,null,null,"1288"]
[null,null,null,null,null,null,null,"1289"]
[null,null,null,null,null,null,null,"1290"]
[null,null,null,null,null,null,null,"1291"]
[null,null,null,null,null,null,null,"1292"]
[null,null,null,null,null,null,null,"1293"]
[null,null,null,null,null,null,null,"1294"]
[null,null,null,null,null,null,null,"1295"]
[null,null,null,null,null,null,null,"1300"]
[null,null,null,null,null,null,null,"1301"]
[null,null,null,null,null,null,null,"1302"]
[null,null,null,null,null,null,null,"1303"]
[null,null,null,null,null,null,null,"1304"]
[null,null,null,null,null,null,null,"1305"]
[null,null,null,null,null,null,null,"1310"]
[null,null,null,null,null,null,null,"1311"]
[null,null,null,null,null,null,null,"1312"]
[null,null,null,null,null,null,null,"1313"]
[null,null,null,null,null,null,null,"1314"]
[null,null,null,null,null,null,null,"1320"]
[null,null,null,null,null,null,null,"1321"]
[null,null,null,null,null,null,null,"1322"]
[null,null,null,null,null,null,null,"1400"]
[null,null,null,null,null,null,null,"1401"]
[null,null,null,null,null,null,null,"1402"]
[null,null,null,null,null,null,null,"1403"]
[null,null,null,null,null,null,null,"1404"]
[null,null,null,null,null,null,null,"1405"]
[null,null,null,null,null,null,null,"1406"]
[null,null,null,null,null,null,null,"1407"]
[null,null,null,null,null,null,null,"1408"]
[null,null,null,null,null,null,null,"1409"]
[null,null,null,null,null,null,null,"141"]
[null,null,null,null,null,null,null,"1410"]
[null,null,null,null,null,null,null,"1411"]
[null,null,null,null,null,null,null,"1412"]
[null,null,null,null,null,null,null,"1413"]
[null,null,null,null,null,null,null,"1414"]
[null,null,null,null,null,null,null,"1415"]
[null,null,null,null,null,null,null,"1416"]
[null,null,null,null,null,null,null,"1420"]
[null,null,null,null,null,null,null,"1421"]
[null,null,null,null,null,null,null,"1422"]
[null,null,null,null,null,null,null,"1423"]
[null,null,null,null,null,null,null,"1424"]
[null,null,null,null,null,null,null,"1425"]
[null,null,null,null,null,null,null,"1426"]
[null,null,null,null,null,null,null,"1427"]
[null,null,null,null,null,null,null,"1428"]
[null,null,null,null,null,null,null,"1430"]
[null,null,null,null,null,null,null,"1431"]
[null,null,null,null,null,null,null,"1432"]
[null,null,null,null,null,null,null,"1433"]
[null,null,null,null,null,null,null,"144"]
[null,null,null,null,null,null,null,"150"]
[null,null,null,null,null,null,null,"151"]
[null,null,null,null,null,null,null,"1510"]
[null,null,null,null,null,null,null,"1511"]
[null,null,null,null,null,null,null,"152"]
[null,null,null,null,null,null,null,"1520"]
[null,null,null,null,null,null,null,"1521"]
[null,null,null,null,null,null,null,"1522"]
[null,null,null,null,null,null,null,"1523"]
[null,null,null,null,null,null,null,"160"]
[null,null,null,null,null,null,null,"1600"]
[null,null,null,null,null,null,null,"1601"]
[null,null,null,null,null,null,null,"1602"]
[null,null,null,null,null,null,null,"161"]
[null,null,null,null,null,null,null,"1610"]
[null,null,null,null,null,null,null,"1611"]
[null,null,null,null,null,null,null,"162"]
[null,null,null,null,null,null,null,"1620"]
[null,null,null,null,null,null,null,"1621"]
[null,null,null,null,null,null,null,"1622"]
[null,null,null,null,null,null,null,"163"]
[null,null,null,null,null,null,null,"1630"]
[null,null,null,null,null,null,null,"1631"]
[null,null,null,null,null,null,null,"1632"]
[null,null,null,null,null,null,null,"170"]
[null,null,null,null,null,null,null,"171"]
[null,null,null,null,null,null,null,"1710"]
[null,null,null,null,null,null,null,"1711"]
[null,null,null,null,null,null,null,"1712"]
[null,null,null,null,null,null,null,"172"]
[null,null,null,null,null,null,null,"1720"]
[null,null,null,null,null,null,null,"1721"]
[null,null,null,null,null,null,null,"1722"]
[null,null,null,null,null,null,null,"1723"]
[null,null,null,null,null,null,null,"1724"]
[null,null,null,null,null,null,null,"1725"]
[null,null,null,null,null,null,null,"1726"]
[null,null,null,null,null,null,null,"173"]
[null,null,null,null,null,null,null,"1730"]
[null,null,null,null,null,null,null,"1731"]
[null,null,null,null,null,null,null,"1732"]
[null,null,null,null,null,null,null,"1733"]
[null,null,null,null,null,null,null,"1734"]
[null,null,null,null,null,null,null,"174"]
[null,null,null,null,null,null,null,"1740"]
[null,null,null,null,null,null,null,"1741"]
[null,null,null,null,null,null,null,"1742"]
[null,null,null,null,null,null,null,"175"]
[null,null,null,null,null,null,null,"1750"]
[null,null,null,null,null,null,null,"1751"]
[null,null,null,null,null,null,null,"1752"]
[null,null,null,null,null,null,null,"1753"]
[null,null,null,null,null,null,null,"176"]
[null,null,null,null,null,null,null,"180"]
[null,null,null,null,null,null,null,"181"]
[null,null,null,null,null,null,null,"182"]
[null,null,null,null,null,null,null,"183"]
[null,null,null,null,null,null,null,"1830"]
[null,null,null,null,null,null,null,"1831"]
[null,null,null,null,null,null,null,"1832"]
[null,null,null,null,null,null,null,"1833"]
[null,null,null,null,null,null,null,"184"]
[null,null,null,null,null,null,null,"1840"]
[null,null,null,null,null,null,null,"1841"]
[null,null,null,null,null,null,null,"1842"]
[null,null,null,null,null,null,null,"1843"]
[null,null,null,null,null,null,null,"1844"]
[null,null,null,null,null,null,null,"1845"]
[null,null,null,null,null,null,null,"185"]
[null,null,null,null,null,null,null,"190"]
[null,null,null,null,null,null,null,"1900"]
[null,null,null,null,null,null,null,"1901"]
[null,null,null,null,null,null,null,"191"]
[null,null,null,null,null,null,null,"1910"]
[null,null,null,null,null,null,null,"1911"]
[null,null,null,null,null,null,null,"1912"]
[null,null,null,null,null,null,null,"1913"]
[null,null,null,null,null,null,null,"1914"]
[null,null,null,null,null,null,null,"1915"]
[null,null,null,null,null,null,null,"192"]
[null,null,null,null,null,null,null,"1930"]
[null,null,null,null,null,null,null,"1931"]
[null,null,null,null,null,null,null,"1932"]
[null,null,null,null,null,null,null,"1933"]
[null,null,null,null,null,null,null,"1934"]
[null,null,null,null,null,null,null,"1940"]
[null,null,null,null,null,null,null,"1941"]
[null,null,null,null,null,null,null,"1942"]
[null,null,null,null,null,null,null,"1943"]
[null,null,null,null,null,null,null,"1944"]
[null,null,null,null,null,null,null,"20"]
[null,null,null,null,null,null,null,"200"]
[null,null,null,null,null,null,null,"201"]
[null,null,null,null,null,null,null,"202"]
[null,null,null,null,null,null,null,"210"]
[null,null,null,null,null,null,null,"2100"]
[null,null,null,null,null,null,null,"2101"]
[null,null,null,null,null,null,null,"211"]
[null,null,null,null,null,null,null,"212"]
[null,null,null,null,null,null,null,"2120"]
[null,null,null,null,null,null,null,"2121"]
[null,null,null,null,null,null,null,"2122"]
[null,null,null,null,null,null,null,"2123"]
[null,null,null,null,null,null,null,"2124"]
[null,null,null,null,null,null,null,"2125"]
[null,null,null,null,null,null,null,"2126"]
[null,null,null,null,null,null,null,"2127"]
[null,null,null,null,null,null,null,"2128"]
[null,null,null,null,null,null,null,"2129"]
[null,null,null,null,null,null,null,"213"]
[null,null,null,null,null,null,null,"220"]
[null,null,null,null,null,null,null,"2200"]
[null,null,null,null,null,null,null,"2201"]
[null,null,null,null,null,null,null,"2202"]
[null,null,null,null,null,null,null,"2203"]
[null,null,null,null,null,null,null,"2210"]
[null,null,null,null,null,null,null,"2211"]
[null,null,null,null,null,null,null,"2212"]
[null,null,null,null,null,null,null,"2213"]
[null,null,null,null,null,null,null,"2214"]
[null,null,null,null,null,null,null,"2215"]
[null,null,null,null,null,null,null,"2220"]
[null,null,null,null,null,null,null,"2221"]
[null,null,null,null,null,null,null,"2222"]
[null,null,null,null,null,null,null,"2223"]
[null,null,null,null,null,null,null,"2224"]
[null,null,null,null,null,null,null,"2225"]
[null,null,null,null,null,null,null,"2226"]
[null,null,null,null,null,null,null,"2227"]
[null,null,null,null,null,null,null,"2228"]
[null,null,null,null,null,null,null,"2229"]
[null,null,null,null,null,null,null,"223"]
[null,null,null,null,null,null,null,"2230"]
[null,null,null,null,null,null,null,"2231"]
[null,null,null,null,null,null,null,"2232"]
[null,null,null,null,null,null,null,"2233"]
[null,null,null,null,null,null,null,"2234"]
[null,null,null,null,null,null,null,"2240"]
[null,null,null,null,null,null,null,"2241"]
[null,null,null,null,null,null,null,"230"]
[null,null,null,null,null,null,null,"2300"]
[null,null,null,null,null,null,null,"2301"]
[null,null,null,null,null,null,null,"2302"]
[null,null,null,null,null,null,null,"2303"]
[null,null,null,null,null,null,null,"2304"]
[null,null,null,null,null,null,null,"2310"]
[null,null,null,null,null,null,null,"2311"]
[null,null,null,null,null,null,null,"2312"]
[null,null,null,null,null,null,null,"2313"]
[null,null,null,null,null,null,null,"2314"]
[null,null,null,null,null,null,null,"2315"]
[null,null,null,null,null,null,null,"2316"]
[null,null,null,null,null,null,null,"2317"]
[null,null,null,null,null,null,null,"2318"]
[null,null,null,null,null,null,null,"2319"]
[null,null,null,null,null,null,null,"2320"]
[null,null,null,null,null,null,null,"2321"]
[null,null,null,null,null,null,null,"2322"]
[null,null,null,null,null,null,null,"2323"]
[null,null,null,null,null,null,null,"2324"]
[null,null,null,null,null,null,null,"2325"]
[null,null,null,null,null,null,null,"2326"]
[null,null,null,null,null,null,null,"2327"]
[null,null,null,null,null,null,null,"2328"]
[null,null,null,null,null,null,null,"233"]
[null,null,null,null,null,null,null,"2330"]
[null,null,null,null,null,null,null,"2331"]
[null,null,null,null,null,null,null,"2332"]
[null,null,null,null,null,null,null,"2333"]
[null,null,null,null,null,null,null,"234"]
[null,null,null,null,null,null,null,"2340"]
[null,null,null,null,null,null,null,"2341"]
[null,null,null,null,null,null,null,"2342"]
[null,null,null,null,null,null,null,"2343"]
[null,null,null,null,null,null,null,"2344"]
[null,null,null,null,null,null,null,"2350"]
[null,null,null,null,null,null,null,"2351"]
[null,null,null,null,null,null,null,"2352"]
[null,null,null,null,null,null,null,"2353"]
[null,null,null,null,null,null,null,"2354"]
[null,null,null,null,null,null,null,"2355"]
[null,null,null,null,null,null,null,"2356"]
[null,null,null,null,null,null,null,"2357"]
[null,null,null,null,null,null,null,"2358"]
[null,null,null,null,null,null,null,"2359"]
[null,null,null,null,null,null,null,"236"]
[null,null,null,null,null,null,null,"2360"]
[null,null,null,null,null,null,null,"2361"]
[null,null,null,null,null,null,null,"2362"]
[null,null,null,null,null,null,null,"237"]
[null,null,null,null,null,null,null,"2370"]
[null,null,null,null,null,null,null,"2371"]
[null,null,null,null,null,null,null,"2372"]
[null,null,null,null,null,null,null,"2373"]
[null,null,null,null,null,null,null,"2374"]
[null,null,null,null,null,null,null,"2375"]
[null,null,null,null,null,null,null,"2376"]
[null,null,null,null,null,null,null,"2377"]
[null,null,null,null,null,null,null,"2378"]
[null,null,null,null,null,null,null,"2380"]
[null,null,null,null,null,null,null,"2381"]
[null,null,null,null,null,null,null,"2382"]
[null,null,null,null,null,null,null,"2383"]
[null,null,null,null,null,null,null,"2386"]
[null,null,null,null,null,null,null,"2390"]
[null,null,null,null,null,null,null,"2391"]
[null,null,null,null,null,null,null,"2392"]
[null,null,null,null,null,null,null,"2393"]
[null,null,null,null,null,null,null,"240"]
[null,null,null,null,null,null,null,"2400"]
[null,null,null,null,null,null,null,"2401"]
[null,null,null,null,null,null,null,"2402"]
[null,null,null,null,null,null,null,"2403"]
[null,null,null,null,null,null,null,"2404"]
[null,null,null,null,null,null,null,"2405"]
[null,null,null,null,null,null,null,"2406"]
[null,null,null,null,null,null,null,"2407"]
[null,null,null,null,null,null,null,"2408"]
[null,null,null,null,null,null,null,"2409"]
[null,null,null,null,null,null,null,"241"]
[null,null,null,null,null,null,null,"2410"]
[null,null,null,null,null,null,null,"2411"]
[null,null,null,null,null,null,null,"2412"]
[null,null,null,null,null,null,null,"2413"]
[null,null,null,null,null,null,null,"2414"]
[null,null,null,null,null,null,null,"2415"]
[null,null,null,null,null,null,null,"2416"]
[null,null,null,null,null,null,null,"2417"]
[null,null,null,null,null,null,null,"2418"]
[null,null,null,null,null,null,null,"2419"]
[null,null,null,null,null,null,null,"242"]
[null,null,null,null,null,null,null,"243"]
[null,null,null,null,null,null,null,"244"]
[null,null,null,null,null,null,null,"2440"]
[null,null,null,null,null,null,null,"2441"]
[null,null,null,null,null,null,null,"2442"]
[null,null,null,null,null,null,null,"2443"]
[null,null,null,null,null,null,null,"2444"]
[null,null,null,null,null,null,null,"2445"]
[null,null,null,null,null,null,null,"2446"]
[null,null,null,null,null,null,null,"245"]
[null,null,null,null,null,null,null,"2450"]
[null,null,null,null,null,null,null,"2451"]
[null,null,null,null,null,null,null,"2452"]
[null,null,null,null,null,null,null,"246"]
[null,null,null,null,null,null,null,"2460"]
[null,null,null,null,null,null,null,"2461"]
[null,null,null,null,null,null,null,"2462"]
[null,null,null,null,null,null,null,"247"]
[null,null,null,null,null,null,null,"25"]
[null,null,null,null,null,null,null,"250"]
[null,null,null,null,null,null,null,"251"]
[null,null,null,null,null,null,null,"252"]
[null,null,null,null,null,null,null,"260"]
[null,null,null,null,null,null,null,"2600"]
[null,null,null,null,null,null,null,"2601"]
[null,null,null,null,null,null,null,"261"]
[null,null,null,null,null,null,null,"262"]
[null,null,null,null,null,null,null,"2620"]
[null,null,null,null,null,null,null,"2621"]
[null,null,null,null,null,null,null,"2622"]
[null,null,null,null,null,null,null,"2623"]
[null,null,null,null,null,null,null,"2624"]
[null,null,null,null,null,null,null,"2625"]
[null,null,null,null,null,null,null,"2626"]
[null,null,null,null,null,null,null,"2627"]
[null,null,null,null,null,null,null,"2628"]
[null,null,null,null,null,null,null,"2629"]
[null,null,null,null,null,null,null,"263"]
[null,null,null,null,null,null,null,"270"]
[null,null,null,null,null,null,null,"271"]
[null,null,null,null,null,null,null,"272"]
[null,null,null,null,null,null,null,"273"]
[null,null,null,null,null,null,null,"274"]
[null,null,null,null,null,null,null,"275"]
[null,null,null,null,null,null,null,"280"]
[null,null,null,null,null,null,null,"2800"]
[null,null,null,null,null,null,null,"2801"]
[null,null,null,null,null,null,null,"2802"]
[null,null,null,null,null,null,null,"2803"]
[null,null,null,null,null,null,null,"2804"]
[null,null,null,null,null,null,null,"2805"]
[null,null,null,null,null,null,null,"2806"]
[null,null,null,null,null,null,null,"2807"]
[null,null,null,null,null,null,null,"2808"]
[null,null,null,null,null,null,null,"281"]
[null,null,null,null,null,null,null,"2810"]
[null,null,null,null,null,null,null,"2811"]
[null,null,null,null,null,null,null,"2812"]
[null,null,null,null,null,null,null,"2813"]
[null,null,null,null,null,null,null,"2814"]
[null,null,null,null,null,null,null,"2815"]
[null,null,null,null,null,null,null,"2816"]
[null,null,null,null,null,null,null,"2817"]
[null,null,null,null,null,null,null,"2818"]
[null,null,null,null,null,null,null,"282"]
[null,null,null,null,null,null,null,"2820"]
[null,null,null,null,null,null,null,"2821"]
[null,null,null,null,null,null,null,"2822"]
[null,null,null,null,null,null,null,"2823"]
[null,null,null,null,null,null,null,"2824"]
[null,null,null,null,null,null,null,"2825"]
[null,null,null,null,null,null,null,"2826"]
[null,null,null,null,null,null,null,"283"]
[null,null,null,null,null,null,null,"2830"]
[null,null,null,null,null,null,null,"2831"]
[null,null,null,null,null,null,null,"2832"]
[null,null,null,null,null,null,null,"2833"]
[null,null,null,null,null,null,null,"2834"]
[null,null,null,null,null,null,null,"2835"]
[null,null,null,null,null,null,null,"2836"]
[null,null,null,null,null,null,null,"2837"]
[null,null,null,null,null,null,null,"2838"]
[null,null,null,null,null,null,null,"284"]
[null,null,null,null,null,null,null,"285"]
[null,null,null,null,null,null,null,"286"]
[null,null,null,null,null,null,null,"300"]
[null,null,null,null,null,null,null,"301"]
[null,null,null,null,null,null,null,"302"]
[null,null,null,null,null,null,null,"3020"]
[null,null,null,null,null,null,null,"3021"]
[null,null,null,null,null,null,null,"310"]
[null,null,null,null,null,null,null,"3100"]
[null,null,null,null,null,null,null,"3101"]
[null,null,null,null,null,null,null,"3110"]
[null,null,null,null,null,null,null,"3111"]
[null,null,null,null,null,null,null,"3112"]
[null,null,null,null,null,null,null,"3113"]
[null,null,null,null,null,null,null,"312"]
[null,null,null,null,null,null,null,"313"]
[null,null,null,null,null,null,null,"320"]
[null,null,null,null,null,null,null,"3200"]
[null,null,null,null,null,null,null,"3201"]
[null,null,null,null,null,null,null,"321"]
[null,null,null,null,null,null,null,"322"]
[null,null,null,null,null,null,null,"3220"]
[null,null,null,null,null,null,null,"3221"]
[null,null,null,null,null,null,null,"323"]
[null,null,null,null,null,null,null,"324"]
[null,null,null,null,null,null,null,"325"]
[null,null,null,null,null,null,null,"330"]
[null,null,null,null,null,null,null,"331"]
[null,null,null,null,null,null,null,"332"]
[null,null,null,null,null,null,null,"333"]
[null,null,null,null,null,null,null,"334"]
[null,null,null,null,null,null,null,"335"]
[null,null,null,null,null,null,null,"336"]
[null,null,null,null,null,null,null,"337"]
[null,null,null,null,null,null,null,"34"]
[null,null,null,null,null,null,null,"3400"]
[null,null,null,null,null,null,null,"3401"]
[null,null,null,null,null,null,null,"3410"]
[null,null,null,null,null,null,null,"3411"]
[null,null,null,null,null,null,null,"3420"]
[null,null,null,null,null,null,null,"3421"]
[null,null,null,null,null,null,null,"3422"]
[null,null,null,null,null,null,null,"3423"]
[null,null,null,null,null,null,null,"3424"]
[null,null,null,null,null,null,null,"3430"]
[null,null,null,null,null,null,null,"3431"]
[null,null,null,null,null,null,null,"3432"]
[null,null,null,null,null,null,null,"3433"]
[null,null,null,null,null,null,null,"3434"]
[null,null,null,null,null,null,null,"3440"]
[null,null,null,null,null,null,null,"3441"]
[null,null,null,null,null,null,null,"3442"]
[null,null,null,null,null,null,null,"3443"]
[null,null,null,null,null,null,null,"350"]
[null,null,null,null,null,null,null,"3500"]
[null,null,null,null,null,null,null,"3501"]
[null,null,null,null,null,null,null,"351"]
[null,null,null,null,null,null,null,"3510"]
[null,null,null,null,null,null,null,"3511"]
[null,null,null,null,null,null,null,"36"]
[null,null,null,null,null,null,null,"3600"]
[null,null,null,null,null,null,null,"3601"]
[null,null,null,null,null,null,null,"361"]
[null,null,null,null,null,null,null,"37"]
[null,null,null,null,null,null,null,"38"]
[null,null,null,null,null,null,null,"3800"]
[null,null,null,null,null,null,null,"3801"]
[null,null,null,null,null,null,null,"40"]
[null,null,null,null,null,null,null,"41"]
[null,null,null,null,null,null,null,"4100"]
[null,null,null,null,null,null,null,"4101"]
[null,null,null,null,null,null,null,"4102"]
[null,null,null,null,null,null,null,"4103"]
[null,null,null,null,null,null,null,"4104"]
[null,null,null,null,null,null,null,"4105"]
[null,null,null,null,null,null,null,"411"]
[null,null,null,null,null,null,null,"4120"]
[null,null,null,null,null,null,null,"4121"]
[null,null,null,null,null,null,null,"413"]
[null,null,null,null,null,null,null,"414"]
[null,null,null,null,null,null,null,"4150"]
[null,null,null,null,null,null,null,"4151"]
[null,null,null,null,null,null,null,"420"]
[null,null,null,null,null,null,null,"421"]
[null,null,null,null,null,null,null,"4210"]
[null,null,null,null,null,null,null,"4211"]
[null,null,null,null,null,null,null,"422"]
[null,null,null,null,null,null,null,"4220"]
[null,null,null,null,null,null,null,"4221"]
[null,null,null,null,null,null,null,"423"]
[null,null,null,null,null,null,null,"424"]
[null,null,null,null,null,null,null,"43"]
[null,null,null,null,null,null,null,"44"]
[null,null,null,null,null,null,null,"440"]
[null,null,null,null,null,null,null,"4410"]
[null,null,null,null,null,null,null,"4411"]
[null,null,null,null,null,null,null,"4412"]
[null,null,null,null,null,null,null,"4420"]
[null,null,null,null,null,null,null,"4421"]
[null,null,null,null,null,null,null,"4422"]
[null,null,null,null,null,null,null,"4423"]
[null,null,null,null,null,null,null,"4424"]
[null,null,null,null,null,null,null,"4425"]
[null,null,null,null,null,null,null,"4426"]
[null,null,null,null,null,null,null,"4427"]
[null,null,null,null,null,null,null,"4430"]
[null,null,null,null,null,null,null,"4431"]
[null,null,null,null,null,null,null,"4440"]
[null,null,null,null,null,null,null,"4441"]
[null,null,null,null,null,null,null,"4442"]
[null,null,null,null,null,null,null,"445"]
[null,null,null,null,null,null,null,"446"]
[null,null,null,null,null,null,null,"447"]
[null,null,null,null,null,null,null,"448"]
[null,null,null,null,null,null,null,"500"]
[null,null,null,null,null,null,null,"5000"]
[null,null,null,null,null,null,null,"5001"]
[null,null,null,null,null,null,null,"5002"]
[null,null,null,null,null,null,null,"5003"]
[null,null,null,null,null,null,null,"5004"]
[null,null,null,null,null,null,null,"5005"]
[null,null,null,null,null,null,null,"5006"]
[null,null,null,null,null,null,null,"501"]
[null,null,null,null,null,null,null,"5010"]
[null,null,null,null,null,null,null,"5011"]
[null,null,null,null,null,null,null,"5012"]
[null,null,null,null,null,null,null,"5013"]
[null,null,null,null,null,null,null,"5014"]
[null,null,null,null,null,null,null,"5015"]
[null,null,null,null,null,null,null,"5016"]
[null,null,null,null,null,null,null,"5017"]
[null,null,null,null,null,null,null,"5018"]
[null,null,null,null,null,null,null,"502"]
[null,null,null,null,null,null,null,"5100"]
[null,null,null,null,null,null,null,"5101"]
[null,null,null,null,null,null,null,"5102"]
[null,null,null,null,null,null,null,"5103"]
[null,null,null,null,null,null,null,"5104"]
[null,null,null,null,null,null,null,"5105"]
[null,null,null,null,null,null,null,"5106"]
[null,null,null,null,null,null,null,"5107"]
[null,null,null,null,null,null,null,"5110"]
[null,null,null,null,null,null,null,"5111"]
[null,null,null,null,null,null,null,"5112"]
[null,null,null,null,null,null,null,"5113"]
[null,null,null,null,null,null,null,"5114"]
[null,null,null,null,null,null,null,"5115"]
[null,null,null,null,null,null,null,"5116"]
[null,null,null,null,null,null,null,"5117"]
[null,null,null,null,null,null,null,"5118"]
[null,null,null,null,null,null,null,"512"]
[null,null,null,null,null,null,null,"5120"]
[null,null,null,null,null,null,null,"5121"]
[null,null,null,null,null,null,null,"5122"]
[null,null,null,null,null,null,null,"5123"]
[null,null,null,null,null,null,null,"5124"]
[null,null,null,null,null,null,null,"513"]
[null,null,null,null,null,null,null,"5130"]
[null,null,null,null,null,null,null,"5131"]
[null,null,null,null,null,null,null,"5132"]
[null,null,null,null,null,null,null,"5133"]
[null,null,null,null,null,null,null,"5134"]
[null,null,null,null,null,null,null,"5135"]
[null,null,null,null,null,null,null,"5136"]
[null,null,null,null,null,null,null,"5137"]
[null,null,null,null,null,null,null,"5140"]
[null,null,null,null,null,null,null,"5141"]
[null,null,null,null,null,null,null,"5142"]
[null,null,null,null,null,null,null,"5143"]
[null,null,null,null,null,null,null,"5144"]
[null,null,null,null,null,null,null,"5145"]
[null,null,null,null,null,null,null,"5146"]
[null,null,null,null,null,null,null,"5147"]
[null,null,null,null,null,null,null,"5148"]
[null,null,null,null,null,null,null,"5149"]
[null,null,null,null,null,null,null,"5150"]
[null,null,null,null,null,null,null,"5151"]
[null,null,null,null,null,null,null,"5152"]
[null,null,null,null,null,null,null,"5153"]
[null,null,null,null,null,null,null,"5154"]
[null,null,null,null,null,null,null,"5155"]
[null,null,null,null,null,null,null,"5160"]
[null,null,null,null,null,null,null,"5161"]
[null,null,null,null,null,null,null,"5162"]
[null,null,null,null,null,null,null,"5163"]
[null,null,null,null,null,null,null,"5164"]
[null,null,null,null,null,null,null,"5165"]
[null,null,null,null,null,null,null,"5166"]
[null,null,null,null,null,null,null,"5167"]
[null,null,null,null,null,null,null,"5168"]
[null,null,null,null,null,null,null,"5169"]
[null,null,null,null,null,null,null,"517"]
[null,null,null,null,null,null,null,"5170"]
[null,null,null,null,null,null,null,"5171"]
[null,null,null,null,null,null,null,"5172"]
[null,null,null,null,null,null,null,"5173"]
[null,null,null,null,null,null,null,"5174"]
[null,null,null,null,null,null,null,"5175"]
[null,null,null,null,null,null,null,"5176"]
[null,null,null,null,null,null,null,"5177"]
[null,null,null,null,null,null,null,"5178"]
[null,null,null,null,null,null,null,"5179"]
[null,null,null,null,null,null,null,"5180"]
[null,null,null,null,null,null,null,"5181"]
[null,null,null,null,null,null,null,"5182"]
[null,null,null,null,null,null,null,"5183"]
[null,null,null,null,null,null,null,"5184"]
[null,null,null,null,null,null,null,"5185"]
[null,null,null,null,null,null,null,"5186"]
[null,null,null,null,null,null,null,"5187"]
[null,null,null,null,null,null,null,"5200"]
[null,null,null,null,null,null,null,"5201"]
[null,null,null,null,null,null,null,"5202"]
[null,null,null,null,null,null,null,"5203"]
[null,null,null,null,null,null,null,"5204"]
[null,null,null,null,null,null,null,"5205"]
[null,null,null,null,null,null,null,"5206"]
[null,null,null,null,null,null,null,"5207"]
[null,null,null,null,null,null,null,"5208"]
[null,null,null,null,null,null,null,"5209"]
[null,null,null,null,null,null,null,"5210"]
[null,null,null,null,null,null,null,"5211"]
[null,null,null,null,null,null,null,"5212"]
[null,null,null,null,null,null,null,"5213"]
[null,null,null,null,null,null,null,"5214"]
[null,null,null,null,null,null,null,"5215"]
[null,null,null,null,null,null,null,"5220"]
[null,null,null,null,null,null,null,"5221"]
[null,null,null,null,null,null,null,"5222"]
[null,null,null,null,null,null,null,"5223"]
[null,null,null,null,null,null,null,"5224"]
[null,null,null,null,null,null,null,"5225"]
[null,null,null,null,null,null,null,"5226"]
[null,null,null,null,null,null,null,"5227"]
[null,null,null,null,null,null,null,"5228"]
[null,null,null,null,null,null,null,"5229"]
[null,null,null,null,null,null,null,"5230"]
[null,null,null,null,null,null,null,"5231"]
[null,null,null,null,null,null,null,"5232"]
[null,null,null,null,null,null,null,"5233"]
[null,null,null,null,null,null,null,"5234"]
[null,null,null,null,null,null,null,"530"]
[null,null,null,null,null,null,null,"5300"]
[null,null,null,null,null,null,null,"5301"]
[null,null,null,null,null,null,null,"5302"]
[null,null,null,null,null,null,null,"5303"]
[null,null,null,null,null,null,null,"5304"]
[null,null,null,null,null,null,null,"5305"]
[null,null,null,null,null,null,null,"5306"]
[null,null,null,null,null,null,null,"5307"]
[null,null,null,null,null,null,null,"5308"]
[null,null,null,null,null,null,null,"5309"]
[null,null,null,null,null,null,null,"531"]
[null,null,null,null,null,null,null,"5310"]
[null,null,null,null,null,null,null,"5311"]
[null,null,null,null,null,null,null,"5312"]
[null,null,null,null,null,null,null,"5313"]
[null,null,null,null,null,null,null,"5314"]
[null,null,null,null,null,null,null,"5315"]
[null,null,null,null,null,null,null,"5316"]
[null,null,null,null,null,null,null,"5317"]
[null,null,null,null,null,null,null,"5318"]
[null,null,null,null,null,null,null,"5319"]
[null,null,null,null,null,null,null,"5320"]
[null,null,null,null,null,null,null,"5321"]
[null,null,null,null,null,null,null,"533"]
[null,null,null,null,null,null,null,"534"]
[null,null,null,null,null,null,null,"535"]
[null,null,null,null,null,null,null,"536"]
[null,null,null,null,null,null,null,"5370"]
[null,null,null,null,null,null,null,"5371"]
[null,null,null,null,null,null,null,"5380"]
[null,null,null,null,null,null,null,"5381"]
[null,null,null,null,null,null,null,"5382"]
[null,null,null,null,null,null,null,"5383"]
[null,null,null,null,null,null,null,"5384"]
[null,null,null,null,null,null,null,"539"]
[null,null,null,null,null,null,null,"5400"]
[null,null,null,null,null,null,null,"5401"]
[null,null,null,null,null,null,null,"5402"]
[null,null,null,null,null,null,null,"5403"]
[null,null,null,null,null,null,null,"5404"]
[null,null,null,null,null,null,null,"5405"]
[null,null,null,null,null,null,null,"5406"]
[null,null,null,null,null,null,null,"5407"]
[null,null,null,null,null,null,null,"5408"]
[null,null,null,null,null,null,null,"5409"]
[null,null,null,null,null,null,null,"5410"]
[null,null,null,null,null,null,null,"5411"]
[null,null,null,null,null,null,null,"5412"]
[null,null,null,null,null,null,null,"5413"]
[null,null,null,null,null,null,null,"5414"]
[null,null,null,null,null,null,null,"5415"]
[null,null,null,null,null,null,null,"5416"]
[null,null,null,null,null,null,null,"5417"]
[null,null,null,null,null,null,null,"5418"]
[null,null,null,null,null,null,null,"5420"]
[null,null,null,null,null,null,null,"5421"]
[null,null,null,null,null,null,null,"5422"]
[null,null,null,null,null,null,null,"5423"]
[null,null,null,null,null,null,null,"5424"]
[null,null,null,null,null,null,null,"5425"]
[null,null,null,null,null,null,null,"5426"]
[null,null,null,null,null,null,null,"5427"]
[null,null,null,null,null,null,null,"5428"]
[null,null,null,null,null,null,null,"5429"]
[null,null,null,null,null,null,null,"5430"]
[null,null,null,null,null,null,null,"5431"]
[null,null,null,null,null,null,null,"5432"]
[null,null,null,null,null,null,null,"5433"]
[null,null,null,null,null,null,null,"5434"]
[null,null,null,null,null,null,null,"5435"]
[null,null,null,null,null,null,null,"5436"]
[null,null,null,null,null,null,null,"5437"]
[null,null,null,null,null,null,null,"5438"]
[null,null,null,null,null,null,null,"5439"]
[null,null,null,null,null,null,null,"5440"]
[null,null,null,null,null,null,null,"5441"]
[null,null,null,null,null,null,null,"5442"]
[null,null,null,null,null,null,null,"5443"]
[null,null,null,null,null,null,null,"5444"]
[null,null,null,null,null,null,null,"5445"]
[null,null,null,null,null,null,null,"5446"]
[null,null,null,null,null,null,null,"5447"]
[null,null,null,null,null,null,null,"5448"]
[null,null,null,null,null,null,null,"5449"]
[null,null,null,null,null,null,null,"5450"]
[null,null,null,null,null,null,null,"5451"]
[null,null,null,null,null,null,null,"5452"]
[null,null,null,null,null,null,null,"5453"]
[null,null,null,null,null,null,null,"5454"]
[null,null,null,null,null,null,null,"5455"]
[null,null,null,null,null,null,null,"5456"]
[null,null,null,null,null,null,null,"5460"]
[null,null,null,null,null,null,null,"5461"]
[null,null,null,null,null,null,null,"5462"]
[null,null,null,null,null,null,null,"5463"]
[null,null,null,null,null,null,null,"5464"]
[null,null,null,null,null,null,null,"5465"]
[null,null,null,null,null,null,null,"5466"]
[null,null,null,null,null,null,null,"5470"]
[null,null,null,null,null,null,null,"5471"]
[null,null,null,null,null,null,null,"5472"]
[null,null,null,null,null,null,null,"5473"]
[null,null,null,null,null,null,null,"5474"]
[null,null,null,null,null,null,null,"5475"]
[null,null,null,null,null,null,null,"5480"]
[null,null,null,null,null,null,null,"5481"]
[null,null,null,null,null,null,null,"5482"]
[null,null,null,null,null,null,null,"5483"]
[null,null,null,null,null,null,null,"5484"]
[null,null,null,null,null,null,null,"5485"]
[null,null,null,null,null,null,null,"5490"]
[null,null,null,null,null,null,null,"5491"]
[null,null,null,null,null,null,null,"5492"]
[null,null,null,null,null,null,null,"5493"]
[null,null,null,null,null,null,null,"5494"]
[null,null,null,null,null,null,null,"5495"]
[null,null,null,null,null,null,null,"550"]
[null,null,null,null,null,null,null,"5500"]
[null,null,null,null,null,null,null,"5501"]
[null,null,null,null,null,null,null,"5502"]
[null,null,null,null,null,null,null,"5503"]
[null,null,null,null,null,null,null,"5504"]
[null,null,null,null,null,null,null,"5505"]
[null,null,null,null,null,null,null,"5506"]
[null,null,null,null,null,null,null,"5507"]
[null,null,null,null,null,null,null,"5508"]
[null,null,null,null,null,null,null,"551"]
[null,null,null,null,null,null,null,"5510"]
[null,null,null,null,null,null,null,"5511"]
[null,null,null,null,null,null,null,"5512"]
[null,null,null,null,null,null,null,"5513"]
[null,null,null,null,null,null,null,"5514"]
[null,null,null,null,null,null,null,"5515"]
[null,null,null,null,null,null,null,"5516"]
[null,null,null,null,null,null,null,"5517"]
[null,null,null,null,null,null,null,"5518"]
[null,null,null,null,null,null,null,"5519"]
[null,null,null,null,null,null,null,"552"]
[null,null,null,null,null,null,null,"5600"]
[null,null,null,null,null,null,null,"5601"]
[null,null,null,null,null,null,null,"5602"]
[null,null,null,null,null,null,null,"5603"]
[null,null,null,null,null,null,null,"5604"]
[null,null,null,null,null,null,null,"5605"]
[null,null,null,null,null,null,null,"5606"]
[null,null,null,null,null,null,null,"5610"]
[null,null,null,null,null,null,null,"5611"]
[null,null,null,null,null,null,null,"5612"]
[null,null,null,null,null,null,null,"5613"]
[null,null,null,null,null,null,null,"5614"]
[null,null,null,null,null,null,null,"5615"]
[null,null,null,null,null,null,null,"5616"]
[null,null,null,null,null,null,null,"5617"]
[null,null,null,null,null,null,null,"570"]
[null,null,null,null,null,null,null,"571"]
[null,null,null,null,null,null,null,"572"]
[null,null,null,null,null,null,null,"5730"]
[null,null,null,null,null,null,null,"5731"]
[null,null,null,null,null,null,null,"5732"]
[null,null,null,null,null,null,null,"5733"]
[null,null,null,null,null,null,null,"5734"]
[null,null,null,null,null,null,null,"5735"]
[null,null,null,null,null,null,null,"5736"]
[null,null,null,null,null,null,null,"580"]
[null,null,null,null,null,null,null,"581"]
[null,null,null,null,null,null,null,"582"]
[null,null,null,null,null,null,null,"583"]
[null,null,null,null,null,null,null,"584"]
[null,null,null,null,null,null,null,"5850"]
[null,null,null,null,null,null,null,"5851"]
[null,null,null,null,null,null,null,"5852"]
[null,null,null,null,null,null,null,"5853"]
[null,null,null,null,null,null,null,"5854"]
[null,null,null,null,null,null,null,"5855"]
[null,null,null,null,null,null,null,"6000"]
[null,null,null,null,null,null,null,"6001"]
[null,null,null,null,null,null,null,"6002"]
[null,null,null,null,null,null,null,"6003"]
[null,null,null,null,null,null,null,"6004"]
[null,null,null,null,null,null,null,"6005"]
[null,null,null,null,null,null,null,"601"]
[null,null,null,null,null,null,null,"6010"]
[null,null,null,null,null,null,null,"6011"]
[null,null,null,null,null,null,null,"6012"]
[null,null,null,null,null,null,null,"6013"]
[null,null,null,null,null,null,null,"6014"]
[null,null,null,null,null,null,null,"6020"]
[null,null,null,null,null,null,null,"6021"]
[null,null,null,null,null,null,null,"6022"]
[null,null,null,null,null,null,null,"6023"]
[null,null,null,null,null,null,null,"603"]
[null,null,null,null,null,null,null,"604"]
[null,null,null,null,null,null,null,"605"]
[null,null,null,null,null,null,null,"606"]
[null,null,null,null,null,null,null,"61"]
[null,null,null,null,null,null,null,"620"]
[null,null,null,null,null,null,null,"6200"]
[null,null,null,null,null,null,null,"6201"]
[null,null,null,null,null,null,null,"6202"]
[null,null,null,null,null,null,null,"621"]
[null,null,null,null,null,null,null,"6210"]
[null,null,null,null,null,null,null,"6211"]
[null,null,null,null,null,null,null,"6212"]
[null,null,null,null,null,null,null,"622"]
[null,null,null,null,null,null,null,"623"]
[null,null,null,null,null,null,null,"624"]
[null,null,null,null,null,null,null,"625"]
[null,null,null,null,null,null,null,"626"]
[null,null,null,null,null,null,null,"627"]
[null,null,null,null,null,null,null,"628"]
[null,null,null,null,null,null,null,"630"]
[null,null,null,null,null,null,null,"6300"]
[null,null,null,null,null,null,null,"6301"]
[null,null,null,null,null,null,null,"6302"]
[null,null,null,null,null,null,null,"631"]
[null,null,null,null,null,null,null,"632"]
[null,null,null,null,null,null,null,"6320"]
[null,null,null,null,null,null,null,"6321"]
[null,null,null,null,null,null,null,"6322"]
[null,null,null,null,null,null,null,"633"]
[null,null,null,null,null,null,null,"6330"]
[null,null,null,null,null,null,null,"6331"]
[null,null,null,null,null,null,null,"634"]
[null,null,null,null,null,null,null,"640"]
[null,null,null,null,null,null,null,"6400"]
[null,null,null,null,null,null,null,"6401"]
[null,null,null,null,null,null,null,"6402"]
[null,null,null,null,null,null,null,"6403"]
[null,null,null,null,null,null,null,"6404"]
[null,null,null,null,null,null,null,"641"]
[null,null,null,null,null,null,null,"642"]
[null,null,null,null,null,null,null,"643"]
[null,null,null,null,null,null,null,"644"]
[null,null,null,null,null,null,null,"645"]
[null,null,null,null,null,null,null,"646"]
[null,null,null,null,null,null,null,"647"]
[null,null,null,null,null,null,null,"648"]
[null,null,null,null,null,null,null,"65"]
[null,null,null,null,null,null,null,"700"]
[null,null,null,null,null,null,null,"701"]
[null,null,null,null,null,null,null,"7010"]
[null,null,null,null,null,null,null,"7011"]
[null,null,null,null,null,null,null,"7012"]
[null,null,null,null,null,null,null,"702"]
[null,null,null,null,null,null,null,"7020"]
[null,null,null,null,null,null,null,"7021"]
[null,null,null,null,null,null,null,"7022"]
[null,null,null,null,null,null,null,"7023"]
[null,null,null,null,null,null,null,"710"]
[null,null,null,null,null,null,null,"7100"]
[null,null,null,null,null,null,null,"7101"]
[null,null,null,null,null,null,null,"7102"]
[null,null,null,null,null,null,null,"7103"]
[null,null,null,null,null,null,null,"711"]
[null,null,null,null,null,null,null,"7110"]
[null,null,null,null,null,null,null,"7111"]
[null,null,null,null,null,null,null,"7112"]
[null,null,null,null,null,null,null,"7113"]
[null,null,null,null,null,null,null,"712"]
[null,null,null,null,null,null,null,"7120"]
[null,null,null,null,null,null,null,"7121"]
[null,null,null,null,null,null,null,"7122"]
[null,null,null,null,null,null,null,"7123"]
[null,null,null,null,null,null,null,"7124"]
[null,null,null,null,null,null,null,"7125"]
[null,null,null,null,null,null,null,"7130"]
[null,null,null,null,null,null,null,"7131"]
[null,null,null,null,null,null,null,"7132"]
[null,null,null,null,null,null,null,"7133"]
[null,null,null,null,null,null,null,"7140"]
[null,null,null,null,null,null,null,"7141"]
[null,null,null,null,null,null,null,"7142"]
[null,null,null,null,null,null,null,"7143"]
[null,null,null,null,null,null,null,"7144"]
[null,null,null,null,null,null,null,"7145"]
[null,null,null,null,null,null,null,"7146"]
[null,null,null,null,null,null,null,"7150"]
[null,null,null,null,null,null,null,"7151"]
[null,null,null,null,null,null,null,"7152"]
[null,null,null,null,null,null,null,"7153"]
[null,null,null,null,null,null,null,"7154"]
[null,null,null,null,null,null,null,"7160"]
[null,null,null,null,null,null,null,"7161"]
[null,null,null,null,null,null,null,"7162"]
[null,null,null,null,null,null,null,"7163"]
[null,null,null,null,null,null,null,"7164"]
[null,null,null,null,null,null,null,"7165"]
[null,null,null,null,null,null,null,"7170"]
[null,null,null,null,null,null,null,"7171"]
[null,null,null,null,null,null,null,"7172"]
[null,null,null,null,null,null,null,"720"]
[null,null,null,null,null,null,null,"7200"]
[null,null,null,null,null,null,null,"7201"]
[null,null,null,null,null,null,null,"7202"]
[null,null,null,null,null,null,null,"7210"]
[null,null,null,null,null,null,null,"7211"]
[null,null,null,null,null,null,null,"7220"]
[null,null,null,null,null,null,null,"7221"]
[null,null,null,null,null,null,null,"7222"]
[null,null,null,null,null,null,null,"7223"]
[null,null,null,null,null,null,null,"73"]
[null,null,null,null,null,null,null,"7300"]
[null,null,null,null,null,null,null,"7301"]
[null,null,null,null,null,null,null,"7302"]
[null,null,null,null,null,null,null,"7303"]
[null,null,null,null,null,null,null,"7400"]
[null,null,null,null,null,null,null,"7401"]
[null,null,null,null,null,null,null,"75"]
[null,null,null,null,null,null,null,"800"]
[null,null,null,null,null,null,null,"801"]
[null,null,null,null,null,null,null,"802"]